Workbook

Sheet Accueil
A1: 1900-01-01
B2: Date initiale | E2: Poids | G2: Taille | K2: F 50
B3: =TODAY() -> 2021-01-17 | C3: =IF(D3=0,FIND(".",E3),0) ->  | D3: =IF(ISNUMBER(E3),1,0) -> 0 | F3: kg | H3: m
B4: modifier si nécessaire | D4: =IF(ISNUMBER(G3),1,0) -> 0
B7: Code ou identifiant | U7: =INFO("SYSTEM") -> pcdos
U8: =IF(LEFT(U7,1)="p",1,0) -> 1
B12: Date de naissance
K13: Dates de passation des questionnaires et diagnostics probables
B14: xx/xx/xx | Q14: =IF(Archive1!$C$51="","","è ") ->  | R14: =IF(Archive1!$C$51="","",Archive1!$C$51) -> 
B15: =YEAR(B3)-YEAR(B13) -> 121
B16: Sexe
Q17: =IF(Archive2!C51="","","è ") ->  | R17: =IF(Archive2!$C$51="","",Archive2!$C$51) -> 
B19: Diagnostic Principal
Q20: =IF(Archive3!C51="","","è ") ->  | R20: =IF(Archive3!$C$51="","",Archive3!$C$51) -> 
B23: Dépense énergétique de repos | Q23: =IF(Archive4!C51="","","è ") ->  | R23: =IF(Archive4!C$51="","",Archive4!C$51) -> 
B24: =IF(E3*G3=0,"",IF(recueil!E5=1,ROUND(B26,0),ROUND(B27,0)) & " Kcal") -> 
B25: Formule de Harris-Benedict
B26: =IF(recueil!E$6="","",(9.5634*E$3)+(184.96*G$3)-4.6756*B$15)+655.1 -> 89.3524 | Q26: =IF(Archive5!C51="","","è ") ->  | R26: =IF(Archive5!C$51="","",Archive5!C$51) -> 
B27: =IF(recueil!E$6="","",(13.7516*E$3)+(500.33*G$3)-6.755*B$15)+66.473 -> -750.882
B33: =NOW() -> 2021-01-17T16:05:21.520
B34: =(_xlfn.DAYS(B33,B13))/365 -> 121.1315068
B44: =IF(B13="",0,(B3-B13)/365) -> 0

Sheet socio
A1: Questionnaire Socio-démographique
A3: Langue maternelle ( langue dans laquelle a été effectuée la majorité de la scolarité)
A5: Comment vous financez-vous ? | C5: Vous habitez :
A7: État civil | C7: Famille : | D7: Parents | E7: nbre de frères | F7: nbre de soeurs
E8: 0 | F8: 0
A10: Etudes : | B10: Niveau atteint | C10: Professions : | D10: père | F10: mère
F12: vous | G12: votre profession ou celle que vous envisagez de faire
A15: Histoire Thérapeutique
A17: Hospitalisations antérieures pour le même trouble (nombre) | E17: Durée cumulée: | F17: mois
A19: Psychothérapie(s) antérieures éventuelles | C19: Type | D19: Durée
A20: 1 | D20: mois
A21: 2 | D21: mois
A22: 3 | D22: mois
A23: Psychothérapie en cours | C23: Type | D23: Durée
D24: mois
A26: Génogramme | D26: Eventuellement | H26: Eventuellement
C27: Année de naissance | D27: Année de décès | E27: Antécédents | G27: Année de naissance | H27: Année de décès
A28: Grands parents | B28: Grand-mère | F28: Grand-père
A29: maternels | B29: GMM | F29: GPM
A34: Grands parents | B34: Grand-mère | F34: Grand-père
A35: paternels | B35: GMP | F35: GPP
A40: Parents | B40: Mère | F40: Père
A46: Fratrie | B46: =IF($E$8=0,"NC","Frère 1") -> NC | F46: =IF($F$8=0,"NC","Sœur 1") -> NC
B49: =IF(E8<2,"","Frère 2") ->  | F49: =IF($F$8<2,"","Sœur 2") -> 
B52: =IF(E8<3,"","Frère 3") ->  | F52: =IF($F$8<3,"","Sœur 3") -> 
B55: =IF($E$8<4,"","Frère 4") ->  | F55: =IF($F$8<4,"","Sœur 4") -> 
B58: =IF($E$8<5,"","Frère 5") ->  | F58: =IF($F$8<5,"","Sœur 5") -> 
B61: =IF($E$8<6,"","Frère 6") ->  | F61: =IF($F$8<6,"","Sœur 6") -> 
A64: Données médicales
B66: Nom | C66: Adresse
A67: Médecin (MG)
A68: Psychiatre
A69: Psychothérapeute
A70: Coach
B72: Médicaux | C72: Chirurgicaux | D72: Psy | E72: Allergies
A73: Antécédents
A83: Traitement actuel

Sheet TestsAN
A1: Questionnaire d'évaluation de l'anorexie
A3: Instructions | C3: Pour information
B4: Vous trouverez ci-dessous une série de questions permettant de préciser le diagnostic et l'intensité du trouble des conduites alimentaires dont vous souffrez. Il évalue aussi son impact sur votre vie quotidienne. Choisissez la réponse vous paraissant la plus adaptée pour la période des 15 derniers jours. | C4: Votre poids minimum normal est proche de :
C5: =IF(ISBLANK(Accueil!$B$8),"",'Courbe In'!$B$10) ->  | D5: kg
C6: Valeur seuil de l'anorexie pour vous :
C7: =IF(ISBLANK(Accueil!$B$8),"",'Courbe In'!$B$11) ->  | D7: kg
B8: Évaluation diagnostique
A9: 1 | B9: Votre poids actuel est-il égal ou inférieur à la valeur seuil de l'anorexie (Cf. encadré ci-dessus) ?
A10: 2 | B10: Avez-vous le désir de maintenir votre poids en dessous de sa valeur minimale normale (Cf. encadré ci-dessus) ?
A11: 3 | B11: Faites-vous, ou avez-vous fait dans le passé, beaucoup d'efforts pour perdre du poids ou ne pas en prendre ?
A12: 4 | B12: Vous arrive-t-il de recourir à des vomissements pour ne pas prendre de poids ?
A13: 5 | B13: Vous arrive-t-il de recourir à des laxatifs pour ne pas prendre de poids ?
A14: 6 | B14: Vous arrive-t-il de recourir à des diurétiques pour ne pas prendre de poids ?
A15: 7 | B15: Avez-vous tendance à réduire le nombre de repas pris chaque jour ?
A16: 8 | B16: Evitez-vous de manger certains aliments systématiquement ?
A17: 9 | B17: Faites-vous du sport ou des exercices physiques pour contrôler votre poids ?
B18: Évaluation de l'incidence des troubles
A19: 10 | B19: Quel est l'impact du trouble sur l'état de vos cheveux, votre peau et/ou vos ongles ?
A20: 11 | B20: Quel est l'impact sur votre tube digestif (douleur, constipation, diarrhées, etc.) ?
A21: 12 | B21: Quel est l'impact sur votre sensation de fatigue physique ?
A22: 13 | B22: Quel est l'impact sur votre sexualité ?
A23: 14 | B23: Ce trouble alimentaire affecte-t-il votre moral ?
A24: 15 | B24: Ce trouble alimentaire a-t-il augmenté votre niveau d'anxiété ?
A25: 16 | B25: Ce trouble a-t-il un effet négatif sur votre estime personnelle ?
A26: 17 | B26: Ce trouble vous rend-t-il irritable?
A27: 18 | B27: Ce trouble altère-t-il votre capacité à vous concentrer dans vos activités?
A28: 19 | B28: Votre sommeil en est-il perturbé?
A29: 20 | B29: A cause de ce trouble, vous arrive-t-il de prendre de l'alcool, des drogues ou des médicaments non prescrits?
A30: 21 | B30: Ce trouble vous empêche-t-il de travailler?
A31: 22 | B31: Ce trouble vous empêche-t-il de poursuivre des activités qui vous plaisaient avant ?
A32: 23 | B32: Ce trouble nuit-il à vos relations avec les membres de votre famille (parents, enfants ou proches)?
A33: 24 | B33: Ce trouble nuit-il à vos relations avec vos ami(e)s?
A34: 25 | B34: Ce trouble nuit-il à votre vie amoureuse?
A35: 26 | B35: Sur une échelle de 0 à 10, à combien estimez-vous la souffrance que vous occasionnent ces troubles avec: 0 = pas du tout de souffrance; 10 = une souffrance extrême.
B36: =IF(recueil!P42<26,"Merci de bien vouloir compléter le questionnaire avant de continuer","Merci. Vous pouvez maintenant passer à la suite.") -> Merci de bien vouloir compléter le questionnaire avant de continuer

Sheet TestsBN
B1: Questionnaire d'évaluation de la boulimie et des accès hyperphagiques
A4: Instructions
A5: Vous trouverez ci-dessous une série de questions permettant de préciser le diagnostic et l'intensité du trouble des conduites alimentaires dont vous souffrez. Il évalue aussi son impact sur votre vie quotidienne. Choisissez la réponse vous paraissant la plus adaptée pour la période des 15 derniers jours.
B8: Évaluation diagnostique
A9: 1 | B9: A quelle fréquence moyenne avez-vous eu des crises boulimiques ou des journées entières de pertes de contrôle de votre alimentation?
A10: 2 | B10: Cette phase de crises de boulimie ou de pertes de contrôle dure depuis combien de temps d'après vous ?
A11: 3 | B11: Ces crises ou pertes de contrôle sont-elles suivies de vomissements ?
A12: 4 | B12: Faites-vous recours à des laxatifs dans le but de compenser les effets des crises ?
A13: 5 | B13: Faites-vous recours à des diurétiques dans le but de compenser les effets des crises ?
A14: 6 | B14: Avez-vous tendance à réduire le nombre de repas pris chaque jour ?
A15: 7 | B15: Evitez-vous de manger certains aliments systématiquement ?
A16: 8 | B16: Faites-vous du sport ou des exercices physiques pour contrôler votre poids ?
A17: 9 | B17: Considérez-vous que votre poids et/ou votre silhouette influencent votre estime personnelle et l'image qu'on a de vous ?
B18: Évaluation de l'incidence des troubles
A19: 10 | B19: Quel est l'impact des crises et comportements compensatoires sur vos dents ?
A20: 11 | B20: Quel est l'impact des crises et comportements compensatoires sur votre tube digestif ?
A21: 12 | B21: Quel est l'impact des crises et comportements compensatoires sur votre sensation de fatigue physique ?
A22: 13 | B22: Quel est l'impact du trouble sur votre sexualité ?
A23: 14 | B23: Ces crises ou pertes de contrôle ont-elles un effet sur votre moral ?
A24: 15 | B24: Ces crises ou pertes de contrôle ont-elles un effet sur votre niveau d'anxiété ?
A25: 16 | B25: Ces crises ou pertes de contrôle ont-elles un effet sur votre estime personnelle ?
A26: 17 | B26: Ces crises ou pertes de contrôle vous rendent-elles irritable?
A27: 18 | B27: Ces crises ou pertes de contrôle nuisent-elles à votre capacité à vous concentrer dans vos activités?
A28: 19 | B28: Votre sommeil en est-il perturbé?
A29: 20 | B29: A cause de ces crises et pertes de contrôle, vous arrive-t-il de prendre de l'alcool, des drogues ou des médicaments non prescrits?
A30: 21 | B30: Ces troubles vous empêchent-ils de travailler?
A31: 22 | B31: Ces crises ont-elles un impact sur votre budget?
A32: 23 | B32: Ces troubles nuisent-ils à vos relations avec les membres de votre famille (parents, enfants ou proches)?
A33: 24 | B33: Ces troubles nuisent-ils à vos relations avec vos ami(e)s?
A34: 25 | B34: Ces troubles nuisent-ils à votre vie amoureuse?
A35: 26 | B35: Sur une échelle de 0 à 10, à combien estimez-vous la souffrance que vous occasionnent ces troubles avec: 0 = pas du tout de souffrance; 10 = une souffrance extrême.
B36: =IF(recueil!N42<26,"Merci de bien vouloir compléter le questionnaire avant de continuer","Merci. Vous pouvez passer à la suite.") -> Merci de bien vouloir compléter le questionnaire avant de continuer

Sheet Facteurs
B1: Evaluation des facteurs d'entretien
A3: Instructions
B4: Vous trouverez ci-dessous une série d'affirmations permettant de préciser les éventuels facteurs qui peuvent favoriser le maintien de votre trouble des conduites alimentaires. Répondez, s'il vous plait, à toutes les lignes. Choisissez la réponse la plus vraie pour vous en ce moment.
B7: Désir de maigrir
A8: 1 | B8: Toute prise de poids est inacceptable pour moi.
A9: 2 | B9: J’ai plus de chance de plaire aux autres en perdant du poids
A10: 3 | B10: En perdant du poids je me plairai plus à moi-même
A11: 4 | B11: L’idée de perdre du poids est une préoccupation majeure pour moi
A12: 5 | B12: Quand je perds du poids c’est une réussite et j’en suis fière
A13: 6 | B13: Ma valeur personnelle dépend du fait d’être plus mince
B14: Attitudes critiques envers le corps
A15: 7 | B15: Je devrais avoir moins de graisse et plus de muscle
A16: 8 | B16: Je déteste ma silhouette
A17: 9 | B17: Je déteste certaines parties de mon corps
A18: 10 | B18: Je passe du temps à observer et à critiquer mon corps
A19: 11 | B19: Je me compare aux autres constamment
A20: 12 | B20: J’ai honte de mon corps
B21: Restrictions alimentaires
A22: 13 | B22: J’évite les aliments qui risquent de me faire grossir (gras, sucrés,…)
A23: 14 | B23: J’essaie de manger moins que les autres
A24: 15 | B24: Je saute régulièrement des repas ou des collations
A25: 16 | B25: Je choisis de préférence les aliments les plus légers
A26: 17 | B26: J’éprouve de la culpabilité après les repas
A27: 18 | B27: Je ne mange pas à la même vitesse que tout le monde
B28: Orthorexie (tendance à adopter des règles alimentaires strictes)
A29: 19 | B29: Ma santé dépend beaucoup de ce que je mange
A30: 20 | B30: Je sélectionne soigneusement les aliments bons pour ma santé (Bio, sans OGM, sans conservateur, …)
A31: 21 | B31: Il est indispensable d'équilibrer chaque repas
A32: 22 | B32: J’attribue à certains aliments des vertus essentielles (anti-oxydant, riches en vitamines et/ou oligo-éléments, …)
A33: 23 | B33: J'encourage mes proches à manger sainement
A34: 24 | B34: Quand je choisis mes aliments, je suis attentif(-ive) à leur origine, leur mode de fabrication et de commercialisation
B35: Perfectionnisme
A36: 25 | B36: Je dois tout faire parfaitement
A37: 26 | B37: Je suis plus exigent(e) pour moi que pour les autres
A38: 27 | B38: Je dois être irréprochable
A39: 28 | B39: J’ai toujours besoin de faire plus ou mieux
A40: 29 | B40: Je fonctionne en tout ou rien
A41: 30 | B41: Je consacre beaucoup d’énergie et de temps pour faire les choses bien
B42: Dépression (sur les 15 derniers jours)
A43: 31 | B43: Je me sens en permanence triste et déprimé(e)
A44: 32 | B44: Je fuis les contacts, même ceux que je trouvais agréables auparavant
A45: 33 | B45: Je ne crois pas que les choses iront mieux dans l’avenir
A46: 34 | B46: Je ne prends plus aucun plaisir à rien
A47: 35 | B47: J’ai perdu tout élan
A48: 36 | B48: J’ai envie de mourir
B49: Tempérament anxieux
A50: 37 | B50: Je suis quelqu’un de plus anxieux que la plupart des gens
A51: 38 | B51: Je me prémunis en permanence contre les catastrophes éventuelles
A52: 39 | B52: Si je n’y prends garde, je peux être responsable d’une erreur grave
A53: 40 | B53: Je suis tendu(e) en permanence
A54: 41 | B54: Je panique facilement
A55: 42 | B55: Les gens me trouvent nerveux(se)
B56: Impulsivité
A57: 43 | B57: J’ai des coups de tête
A58: 44 | B58: J’ai besoin d’émotions fortes
A59: 45 | B59: Je suis casse-cou, j’aime prendre des risques
A60: 46 | B60: Je ne vais pas au bout des choses, je me lasse facilement
A61: 47 | B61: Je me laisse facilement surprendre par les événements
A62: 48 | B62: Je résiste mal à mes impulsions
B63: Hypercontrôle
A64: 49 | B64: Je ne dois pas me laisser déborder par mes émotions
A65: 50 | B65: Je dois garder le contrôle de mes actes
A66: 51 | B66: Je ne dois pas être esclave de mes envies et de mes besoins
A67: 52 | B67: Je suis paniqué(e) à l’idée de lâcher-prise, dans tous les domaines
A68: 53 | B68: Mon entourage me reproche d’être trop directif(ve)
A69: 54 | B69: Je suis contrarié(e) par les imprévus
B70: Inhibition
A71: 55 | B71: J’ai de la peine à faire valoir mes droits, mes besoins ou mes idées auprès des autres
A72: 56 | B72: Je suis timide
A73: 57 | B73: Les besoins et les désirs des autres passent avant les miens
A74: 58 | B74: Je préfère me mettre en retrait plutôt que de risquer un conflit
A75: 59 | B75: Je dois plaire à tout le monde
A76: 60 | B76: Je n'aime pas parler de moi
B77: Vie sociale et relationnelle
A78: 61 | B78: J’ai de la peine à trouver ma place dans la société
A79: 62 | B79: Je ne me sens pas utile pour les autres
A80: 63 | B80: Je souffre d'avoir peu ou pas d’ami(e)s intimes
A81: 64 | B81: Je ne me sens pas en sécurité dans mes relations avec les autres
A82: 65 | B82: Je me sens différent(e)
A83: 66 | B83: J'accorde difficilement ma confiance
B84: Faible estime de soi
A85: 67 | B85: Je n'ai pas de raisons d'être fier (fière) de moi
A86: 68 | B86: Je suis nul(le) et sans valeur
A87: 69 | B87: J’ai du mal à me trouver des qualités ou des compétences
A88: 70 | B88: Les autres sont mieux que moi
A89: 71 | B89: J’ai souvent honte de moi
A90: 72 | B90: Je me sens souvent en échec dans ce que j’entreprends
B91: Evitement de la maturité
A92: 73 | B92: J’ai besoin qu’on me rassure et qu’on me protège
A93: 74 | B93: Je fuis les responsabilités
A94: 75 | B94: Avoir un corps d’adulte me déplaît
A95: 76 | B95: Être mince fait paraître plus jeune
A96: 77 | B96: Je ne me vois pas avoir des enfants
A97: 78 | B97: Je suis incapable d’être autonome
B98: Motivation envers les soins
A99: 79 | B99: Si je le pouvais, je préfèrerais m’y engager plus tard
A100: 80 | B100: Je n’ai pas le sentiment qu’il soit nécessaire de me soigner
A101: 81 | B101: Me soigner n’améliorera pas ma qualité de vie
A102: 82 | B102: Je me sens incapable de faire ce qu’il faut pour guérir de ce trouble
A103: 83 | B103: Je n’adhère pas aux principes du traitement qui m’est proposé
A104: 84 | B104: Je ne me sens pas assez en confiance avec ce(s) soignant(s)

Sheet RAADS
B2: RAADS-14
B3: Ce questionnaire est conçu comme un entretien semi-dirigé
B4: les réponses sont à choisir dans la liste suivante:
B5: "Vrai maintenant et quand j'étais jeune"
B6: "Vrai seulement maintenant" (fait référence aux compétences acquises)
B7: "Vrai seulement avant mes 16 ans"
B8: "Jamais vrai"
B9: Choisir la réponse qui correspond le mieux à ce que dit le sujet
A11: 1 | B11: Il m'est difficile de comprendre comment les autres se sentent quand nous parlons. | L11: =IF(Z11="","",1) ->  | N11: =IF(Z11="","",4-Z11) -> 
A12: 2 | B12: Certaines textures ordinaires qui ne dérangent pas les autres semblent très offensives quand elles touchent ma peau. | L12: =IF(Z12="","",1) ->  | N12: =IF(Z12="","",4-Z12) -> 
A13: 3 | B13: Il m'est très difficile de travailler et de fonctionner en groupes.
A14: 4 | B14: Il m'est difficile de comprendre ce que les autres attendent de moi. | O14: Score: | P14: =IF(L25<14,"",SUM(N11:N24)) -> 
A15: 5 | B15: Je ne sais souvent pas comment agir dans des situations sociales.
A16: 6 | B16: Je peux discuter et faire la conversation avec les gens. | L16: =IF(Z16="","",1) ->  | N16: =IF(Z16="","",Z16-1) -> 
A17: 7 | B17: Quand je me sens submergé(e) par mes sens, je dois m'isoler pour me calmer.
A18: 8 | B18: Comment me faire des amis et me socialiser est un mystère pour moi.
A19: 9 | B19: Lorsque je parle à quelqu'un, j'ai du mal à savoir quand c'est à mon tour de parler ou d'écouter.
A20: 10 | B20: Parfois, je dois me boucher les oreilles pour bloquer les bruits douloureux (comme le bruit d'un aspirateur ou de gens qui parlent trop ou trop fort).
A21: 11 | B21: Il peut être très difficile de lire les mouvements du visage, de la main et du corps de quelqu'un lorsque nous parlons.
A22: 12 | B22: Je me concentre sur les détails plutôt que sur l'idée générale.
A23: 13 | B23: Je prends les choses trop à la lettre, de sorte que je rate souvent ce que les gens essaient de dire.
A24: 14 | B24: Je deviens très contrarié(e) quand la façon dont j'aime faire les choses est soudainement changée.
L25: =SUM(L11:L24) -> 0

Sheet GraphTCA

Sheet Incidence

Sheet Courbe In
A1: CODE
A2: =IF(ISBLANK(Accueil!B8),"",Accueil!B8) ->  | AA2: =Accueil!B3 -> 2021-01-17 | AB2: =AA2+7 -> 2021-01-24 | AC2: =AB2+7 -> 2021-01-31 | AD2: 2021-02-07 | AE2: 2021-02-14 | AF2: 2021-02-21 | AG2: 2021-02-28 | AH2: 2021-03-07 | AI2: 2021-03-14 | AJ2: 2021-03-21 | AK2: 2021-03-28 | AL2: 2021-04-04 | AM2: 2021-04-11 | AN2: 2021-04-18 | AO2: 2021-04-25 | AP2: 2021-05-02 | AQ2: 2021-05-09 | AR2: 2021-05-16 | AS2: 2021-05-23 | AT2: 2021-05-30 | AU2: =AT2+7 -> 2021-06-06 | AV2: =AU2+7 -> 2021-06-13 | AW2: 2021-06-20 | AX2: 2021-06-27 | AY2: 2021-07-04 | AZ2: 2021-07-11 | BA2: 2021-07-18 | BB2: 2021-07-25 | BC2: 2021-08-01 | BD2: 2021-08-08 | BE2: 2021-08-15 | BF2: 2021-08-22 | BG2: 2021-08-29 | BH2: 2021-09-05 | BI2: 2021-09-12 | BJ2: 2021-09-19 | BK2: 2021-09-26 | BL2: 2021-10-03 | BM2: 2021-10-10 | BN2: 2021-10-17 | BO2: 2021-10-24 | BP2: 2021-10-31 | BQ2: 2021-11-07 | BR2: 2021-11-14 | BS2: 2021-11-21 | BT2: 2021-11-28 | BU2: 2021-12-05 | BV2: 2021-12-12 | BW2: 2021-12-19 | BX2: 2021-12-26 | BY2: 2022-01-02 | BZ2: 2022-01-09 | CA2: 2022-01-16 | CB2: 2022-01-23 | CC2: 2022-01-30 | CD2: 2022-02-06
A3: Prénom | D3: =IF(ISBLANK(Accueil!B3),"",Accueil!B3) -> 44213 | Z3: Minimum normal | AA3: =VLOOKUP(INT('IMC d''équilibre'!$D$5),'IMC d''équilibre'!$F:$I,2)*$B$7*$B$7 ->  | AB3: =AA3 ->  | AE3: =VLOOKUP(INT('IMC d''équilibre'!$D$5+1),'IMC d''équilibre'!$F:$I,2)*$B$7*$B$7 ->  | AF3: =AE3 ->  | AI3: =VLOOKUP(INT('IMC d''équilibre'!$D$5+2),'IMC d''équilibre'!$F:$I,2)*$B$7*$B$7 ->  | AJ3: =AI3 ->  | AM3: =VLOOKUP(INT('IMC d''équilibre'!$D$5+3),'IMC d''équilibre'!$F:$I,2)*$B$7*$B$7 ->  | AN3: =AM3 ->  | AQ3: =VLOOKUP(INT('IMC d''équilibre'!$D$5+4),'IMC d''équilibre'!$F:$I,2)*$B$7*$B$7 ->  | AR3: =AQ3 ->  | AU3: =VLOOKUP(INT('IMC d''équilibre'!$D$5+5),'IMC d''équilibre'!$F:$I,2)*$B$7*$B$7 ->  | AV3: =AU3 ->  | AY3: =VLOOKUP(INT('IMC d''équilibre'!$D$5+6),'IMC d''équilibre'!$F:$I,2)*$B$7*$B$7 ->  | AZ3: =AY3 ->  | BC3: =VLOOKUP(INT('IMC d''équilibre'!$D$5+7),'IMC d''équilibre'!$F:$I,2)*$B$7*$B$7 ->  | BD3: =BC3 ->  | BG3: =VLOOKUP(INT('IMC d''équilibre'!$D$5+8),'IMC d''équilibre'!$F:$I,2)*$B$7*$B$7 ->  | BH3: =BG3 ->  | BK3: =VLOOKUP(INT('IMC d''équilibre'!$D$5+9),'IMC d''équilibre'!$F:$I,2)*$B$7*$B$7 ->  | BL3: =BK3 ->  | BO3: =VLOOKUP(INT('IMC d''équilibre'!$D$5+10),'IMC d''équilibre'!$F:$I,2)*$B$7*$B$7 ->  | BP3: =BO3 ->  | BS3: =VLOOKUP(INT('IMC d''équilibre'!$D$5+11),'IMC d''équilibre'!$F:$I,2)*$B$7*$B$7 ->  | BT3: =BS3 ->  | BU3: =BT3 ->  | BV3: =BU3 ->  | BW3: =VLOOKUP(INT('IMC d''équilibre'!$D$5+12),'IMC d''équilibre'!$F:$I,2)*$B$7*$B$7 ->  | BX3: =BW3 ->  | CA3: =VLOOKUP(INT('IMC d''équilibre'!$D$5+13),'IMC d''équilibre'!$F:$I,2)*$B$7*$B$7 ->  | CB3: =CA3 ->  | CC3: =CB3 ->  | CD3: =CC3 -> 
Z4: Maximum normal | AA4: =VLOOKUP(INT('IMC d''équilibre'!$D$5),'IMC d''équilibre'!$F:$J,5)*$B$7*$B$7 ->  | AE4: =VLOOKUP(INT('IMC d''équilibre'!$D$5+1),'IMC d''équilibre'!$F:$J,5)*$B$7*$B$7 ->  | AI4: =VLOOKUP(INT('IMC d''équilibre'!$D$5+2),'IMC d''équilibre'!$F:$J,5)*$B$7*$B$7 ->  | AM4: =VLOOKUP(INT('IMC d''équilibre'!$D$5+3),'IMC d''équilibre'!$F:$J,5)*$B$7*$B$7 ->  | AQ4: =VLOOKUP(INT('IMC d''équilibre'!$D$5+4),'IMC d''équilibre'!$F:$J,5)*$B$7*$B$7 ->  | AU4: =VLOOKUP(INT('IMC d''équilibre'!$D$5+5),'IMC d''équilibre'!$F:$J,5)*$B$7*$B$7 ->  | AY4: =VLOOKUP(INT('IMC d''équilibre'!$D$5+6),'IMC d''équilibre'!$F:$J,5)*$B$7*$B$7 ->  | BC4: =VLOOKUP(INT('IMC d''équilibre'!$D$5+7),'IMC d''équilibre'!$F:$J,5)*$B$7*$B$7 ->  | BG4: =VLOOKUP(INT('IMC d''équilibre'!$D$5+8),'IMC d''équilibre'!$F:$J,5)*$B$7*$B$7 ->  | BK4: =VLOOKUP(INT('IMC d''équilibre'!$D$5+9),'IMC d''équilibre'!$F:$J,5)*$B$7*$B$7 ->  | BO4: =VLOOKUP(INT('IMC d''équilibre'!$D$5+10),'IMC d''équilibre'!$F:$J,5)*$B$7*$B$7 ->  | BS4: =VLOOKUP(INT('IMC d''équilibre'!$D$5+11),'IMC d''équilibre'!$F:$J,5)*$B$7*$B$7 ->  | BT4: =BS4 ->  | BW4: =VLOOKUP(INT('IMC d''équilibre'!$D$5+12),'IMC d''équilibre'!$F:$J,5)*$B$7*$B$7 ->  | CA4: =VLOOKUP(INT('IMC d''équilibre'!$D$5+13),'IMC d''équilibre'!$F:$J,5)*$B$7*$B$7 ->  | CB4: =CA4 -> 
A5: Date de naissance | Z5: Anorexie | AA5: =VLOOKUP(INT('IMC d''équilibre'!$D$5),'IMC d''équilibre'!$F:$I,3)*$B$7*$B$7 ->  | AE5: =VLOOKUP(INT('IMC d''équilibre'!$D$5+1),'IMC d''équilibre'!$F:$I,3)*$B$7*$B$7 ->  | AI5: =VLOOKUP(INT('IMC d''équilibre'!$D$5+2),'IMC d''équilibre'!$F:$I,3)*$B$7*$B$7 ->  | AM5: =VLOOKUP(INT('IMC d''équilibre'!$D$5+3),'IMC d''équilibre'!$F:$I,3)*$B$7*$B$7 ->  | AQ5: =VLOOKUP(INT('IMC d''équilibre'!$D$5+4),'IMC d''équilibre'!$F:$I,3)*$B$7*$B$7 ->  | AU5: =VLOOKUP(INT('IMC d''équilibre'!$D$5+5),'IMC d''équilibre'!$F:$I,3)*$B$7*$B$7 ->  | AY5: =VLOOKUP(INT('IMC d''équilibre'!$D$5+6),'IMC d''équilibre'!$F:$I,3)*$B$7*$B$7 ->  | BC5: =VLOOKUP(INT('IMC d''équilibre'!$D$5+7),'IMC d''équilibre'!$F:$I,3)*$B$7*$B$7 ->  | BG5: =VLOOKUP(INT('IMC d''équilibre'!$D$5+8),'IMC d''équilibre'!$F:$I,3)*$B$7*$B$7 ->  | BK5: =VLOOKUP(INT('IMC d''équilibre'!$D$5+9),'IMC d''équilibre'!$F:$I,3)*$B$7*$B$7 ->  | BO5: =VLOOKUP(INT('IMC d''équilibre'!$D$5+10),'IMC d''équilibre'!$F:$I,3)*$B$7*$B$7 ->  | BS5: =VLOOKUP(INT('IMC d''équilibre'!$D$5+11),'IMC d''équilibre'!$F:$I,3)*$B$7*$B$7 ->  | BW5: =VLOOKUP(INT('IMC d''équilibre'!$D$5+12),'IMC d''équilibre'!$F:$I,3)*$B$7*$B$7 ->  | CA5: =VLOOKUP(INT('IMC d''équilibre'!$D$5+13),'IMC d''équilibre'!$F:$I,3)*$B$7*$B$7 -> 
A6: =Accueil!B13 -> 00:00:00 | Z6: Surpoids | AA6: =IF(recueil!A2<1,"",'Courbe IMC'!C58*B7*B7) ->  | AB6: =AA6 ->  | AC6: =AB6 ->  | AE6: =AD6+(AE3-AA3) ->  | AI6: =AH6+(AI3-AE3) ->  | AM6: =AL6+(AM3-AI3) ->  | AQ6: =AP6+(AQ3-AM3) ->  | AU6: =AT6+(AU3-AQ3) ->  | AV6: =AU6 ->  | AY6: =AX6+(AY3-AU3) ->  | BC6: =BB6+(BC3-AY3) ->  | BG6: =BF6+(BG3-BC3) ->  | BK6: =BJ6+(BK3-BG3) ->  | BO6: =BN6+(BO3-BK3) ->  | BS6: =BR6+(BS3-BO3) ->  | BT6: =BS6 ->  | BW6: =BV6+(BW3-BS3) ->  | CA6: =BZ6+(CA3-BW3) ->  | CB6: =CA6 -> 
A7: Taille | B7: =IF(ISBLANK(Accueil!G3),"",Accueil!G3) ->  | Z7: Obésité | AA7: =IF(recueil!A2<1,"",'Courbe IMC'!C59*B7*B7) ->  | AB7: =AA7 ->  | AE7: =AD7+(AE3-AA3) ->  | AI7: =AH7+(AI3-AE3) ->  | AM7: =AL7+(AM3-AI3) ->  | AQ7: =AP7+(AQ3-AM3) ->  | AU7: =AT7+(AU3-AQ3) ->  | AY7: =AX7+(AY3-AU3) ->  | BC7: =BB7+(BC3-AY3) ->  | BG7: =BF7+(BG3-BC3) ->  | BK7: =BJ7+(BK3-BG3) ->  | BO7: =BN7+(BO3-BK3) ->  | BS7: =BR7+(BS3-BO3) ->  | BW7: =BV7+(BW3-BS3) ->  | CA7: =BZ7+(CA3-BW3) -> 
A8: Poids de départ | B8: =IF(ISBLANK(Accueil!E3),"",Accueil!E3) ->  | Z8: Hospitalisation | AA8: =VLOOKUP(INT('IMC d''équilibre'!$D$5),'IMC d''équilibre'!$F:$K,6)*$B$7*$B$7 ->  | AE8: =VLOOKUP(INT('IMC d''équilibre'!$D$5+1),'IMC d''équilibre'!$F:$K,6)*$B$7*$B$7 ->  | AI8: =VLOOKUP(INT('IMC d''équilibre'!$D$5+2),'IMC d''équilibre'!$F:$K,6)*$B$7*$B$7 ->  | AM8: =VLOOKUP(INT('IMC d''équilibre'!$D$5+3),'IMC d''équilibre'!$F:$K,6)*$B$7*$B$7 ->  | AQ8: =VLOOKUP(INT('IMC d''équilibre'!$D$5+4),'IMC d''équilibre'!$F:$K,6)*$B$7*$B$7 ->  | AU8: =VLOOKUP(INT('IMC d''équilibre'!$D$5+5),'IMC d''équilibre'!$F:$K,6)*$B$7*$B$7 ->  | AV8: =AU8 ->  | AY8: =VLOOKUP(INT('IMC d''équilibre'!$D$5+6),'IMC d''équilibre'!$F:$K,6)*$B$7*$B$7 ->  | BC8: =VLOOKUP(INT('IMC d''équilibre'!$D$5+7),'IMC d''équilibre'!$F:$K,6)*$B$7*$B$7 ->  | BG8: =VLOOKUP(INT('IMC d''équilibre'!$D$5+8),'IMC d''équilibre'!$F:$K,6)*$B$7*$B$7 ->  | BK8: =VLOOKUP(INT('IMC d''équilibre'!$D$5+9),'IMC d''équilibre'!$F:$K,6)*$B$7*$B$7 ->  | BO8: =VLOOKUP(INT('IMC d''équilibre'!$D$5+10),'IMC d''équilibre'!$F:$K,6)*$B$7*$B$7 ->  | BS8: =VLOOKUP(INT('IMC d''équilibre'!$D$5+11),'IMC d''équilibre'!$F:$K,6)*$B$7*$B$7 ->  | BW8: =VLOOKUP(INT('IMC d''équilibre'!$D$5+12),'IMC d''équilibre'!$F:$K,6)*$B$7*$B$7 ->  | CA8: =VLOOKUP(INT('IMC d''équilibre'!$D$5+13),'IMC d''équilibre'!$F:$K,6)*$B$7*$B$7 -> 
A9: IMC de départ | B9: =IF(ISBLANK(Accueil!G3),"",B8/(B7*B7)) ->  | G9: =IF(ISBLANK(recueil!E5),"",(recueil!E5-1)) -> -1 | Z9: Danger | AA9: =VLOOKUP(INT('IMC d''équilibre'!$D$5),'IMC d''équilibre'!$F:$I,4)*$B$7*$B$7 ->  | AE9: =VLOOKUP(INT('IMC d''équilibre'!$D$5+1),'IMC d''équilibre'!$F:$J,4)*$B$7*$B$7 ->  | AI9: =VLOOKUP(INT('IMC d''équilibre'!$D$5+2),'IMC d''équilibre'!$F:$I,4)*$B$7*$B$7 ->  | AM9: =VLOOKUP(INT('IMC d''équilibre'!$D$5+3),'IMC d''équilibre'!$F:$I,4)*$B$7*$B$7 ->  | AQ9: =VLOOKUP(INT('IMC d''équilibre'!$D$5+4),'IMC d''équilibre'!$F:$I,4)*$B$7*$B$7 ->  | AU9: =VLOOKUP(INT('IMC d''équilibre'!$D$5+5),'IMC d''équilibre'!$F:$I,4)*$B$7*$B$7 ->  | AV9: =AU9 ->  | AY9: =VLOOKUP(INT('IMC d''équilibre'!$D$5+6),'IMC d''équilibre'!$F:$I,4)*$B$7*$B$7 ->  | BC9: =VLOOKUP(INT('IMC d''équilibre'!$D$5+7),'IMC d''équilibre'!$F:$I,4)*$B$7*$B$7 ->  | BG9: =VLOOKUP(INT('IMC d''équilibre'!$D$5+8),'IMC d''équilibre'!$F:$I,4)*$B$7*$B$7 ->  | BK9: =VLOOKUP(INT('IMC d''équilibre'!$D$5+9),'IMC d''équilibre'!$F:$I,4)*$B$7*$B$7 ->  | BO9: =VLOOKUP(INT('IMC d''équilibre'!$D$5+10),'IMC d''équilibre'!$F:$I,4)*$B$7*$B$7 ->  | BS9: =VLOOKUP(INT('IMC d''équilibre'!$D$5+11),'IMC d''équilibre'!$F:$I,4)*$B$7*$B$7 ->  | BW9: =VLOOKUP(INT('IMC d''équilibre'!$D$5+12),'IMC d''équilibre'!$F:$I,4)*$B$7*$B$7 ->  | CA9: =VLOOKUP(INT('IMC d''équilibre'!$D$5+13),'IMC d''équilibre'!$F:$I,4)*$B$7*$B$7 -> 
A10: Minimum normal | B10: =IF(ISBLANK(Accueil!B$8),"",'IMC d''équilibre'!D$12) -> 
A11: Seuil pathologique | B11: =IF(ISBLANK(Accueil!G3),"",AA5) -> 
A12: Maigreur sévère | B12: =IF(ISBLANK(Accueil!G3),"",AA8) -> 
A13: Maigreur extrême | B13: =IF(ISBLANK(Accueil!G3),"",AA9) -> 
A14: Surpoids | B14: =IF(ISBLANK(Accueil!G3),"",AA6) -> 
A15: Obésité | B15: =IF(ISBLANK(Accueil!G3),"",AA7) -> 
A17: Modifier les limites du graphique :
A19: inférieure:
A20: 40
A22: supérieure:
A23: 96
J40: =A4 -> 0
J41: =A2 -> 

Sheet GraphIMC

Sheet Courbe IMC
A1: corrections hô | B1: MAX | C1: 0.2 | D1: 0.5 | E1: 0.25 | F1: 0.25 | G1: 0.25 | H1: 0.2 | I1: 0.2 | J1: 0.12 | K1: 0.2 | L1: 0 | M1: -0.15 | N1: -0.1 | O1: 0 | P1: 0.1 | Q1: 0.15 | R1: 0.2 | S1: 0.2 | T1: 0.57 | U1: 0.68 | V1: 0.72 | W1: 0.73 | X1: 0.8
B2: MIN | C2: 0 | D2: 0.1 | E2: 0.1 | F2: 0.1 | G2: 0.15 | H2: 0.24 | I2: 0.2 | J2: 0.25 | K2: 0.18 | L2: 0.1 | M2: -0.05 | N2: -0.35 | O2: -0.4 | P2: -0.4 | Q2: -0.4 | R2: -0.25 | S2: -0.1 | T2: 0.05 | U2: 0.25 | V2: 0.5 | W2: 0.65 | X2: 0.85
B3: Age | C3: 1 | D3: 2 | E3: 3 | F3: 4 | G3: 5 | H3: 6 | I3: 7 | J3: 8 | K3: 9 | L3: 10 | M3: 11 | N3: 12 | O3: 13 | P3: 14 | Q3: 15 | R3: 16 | S3: 17 | T3: 18 | U3: 19 | V3: 20 | W3: 21 | X3: 22
B4: Dates | C4: ='Courbe In'!$A$6+365.25*C3 -> 1900-12-30T06:00:00 | D4: ='Courbe In'!$A$6+365.25*D3 -> 1901-12-30T12:00:00 | E4: ='Courbe In'!$A$6+365.25*E3 -> 1902-12-30T18:00:00 | F4: ='Courbe In'!$A$6+365.25*F3 -> 1903-12-31 | G4: ='Courbe In'!$A$6+365.25*G3 -> 1904-12-30T06:00:00 | H4: ='Courbe In'!$A$6+365.25*H3 -> 1905-12-30T12:00:00 | I4: ='Courbe In'!$A$6+365.25*I3 -> 1906-12-30T18:00:00 | J4: ='Courbe In'!$A$6+365.25*J3 -> 1907-12-31 | K4: ='Courbe In'!$A$6+365.25*K3 -> 1908-12-30T06:00:00 | L4: ='Courbe In'!$A$6+365.25*L3 -> 1909-12-30T12:00:00 | M4: ='Courbe In'!$A$6+365.25*M3 -> 1910-12-30T18:00:00 | N4: ='Courbe In'!$A$6+365.25*N3 -> 1911-12-31 | O4: ='Courbe In'!$A$6+365.25*O3 -> 1912-12-30T06:00:00 | P4: ='Courbe In'!$A$6+365.25*P3 -> 1913-12-30T12:00:00 | Q4: ='Courbe In'!$A$6+365.25*Q3 -> 1914-12-30T18:00:00 | R4: ='Courbe In'!$A$6+365.25*R3 -> 1915-12-31 | S4: ='Courbe In'!$A$6+365.25*S3 -> 1916-12-30T06:00:00 | T4: ='Courbe In'!$A$6+365.25*T3 -> 1917-12-30T12:00:00 | U4: ='Courbe In'!$A$6+365.25*U3 -> 1918-12-30T18:00:00 | V4: ='Courbe In'!$A$6+365.25*V3 -> 1919-12-31 | W4: ='Courbe In'!$A$6+365.25*W3 -> 1920-12-30T06:00:00 | X4: ='Courbe In'!$A$6+365.25*X3 -> 1921-12-30T12:00:00
B5: MIN | C5: =16.4+(C2*'Courbe In'!G9) -> 16.4 | D5: =15.5+(D2*'Courbe In'!G9) -> 15.4 | E5: =14.9+(E2*'Courbe In'!G9) -> 14.8 | F5: =14.6+(F2*'Courbe In'!G9) -> 14.5 | G5: =14.45+(G2*'Courbe In'!G9) -> 14.3 | H5: =14.35+(H2*'Courbe In'!G9) -> 14.11 | I5: =14.4+(I2*'Courbe In'!G9) -> 14.2 | J5: =14.5+(J2*'Courbe In'!G9) -> 14.25 | K5: =14.8+(K2*'Courbe In'!G9) -> 14.62 | L5: =15.1+(L2*'Courbe In'!G9) -> 15 | M5: =15.5+(M2*'Courbe In'!G9) -> 15.55 | N5: =16.1+(N2*'Courbe In'!G9) -> 16.45 | O5: =16.6+(O2*'Courbe In'!G9) -> 17 | P5: =17.3+(P2*'Courbe In'!G9) -> 17.7 | Q5: =17.9+(Q2*'Courbe In'!G9) -> 18.3 | R5: =18.35+(R2*'Courbe In'!G9) -> 18.6 | S5: =18.6+(S2*'Courbe In'!G9) -> 18.7 | T5: =18.75+(T2*'Courbe In'!G9) -> 18.7 | U5: =18.85+(U2*'Courbe In'!G9) -> 18.6 | V5: =18.9+(V2*'Courbe In'!G9) -> 18.4 | W5: =18.95+(W2*'Courbe In'!G9) -> 18.3 | X5: =19+(X2*'Courbe In'!G9) -> 18.15
A6: Prénom | B6: MAX | C6: =18.5+('Courbe In'!G9*C1) -> 18.3 | D6: =17+(D1*'Courbe In'!G9) -> 16.5 | E6: =16.4+(E1*'Courbe In'!G9) -> 16.15 | F6: =16.1+(F1*'Courbe In'!G9) -> 15.85 | G6: =16+(G1*'Courbe In'!G9) -> 15.75 | H6: =16.05+(H1*'Courbe In'!G9) -> 15.85 | I6: =16.2+(I1*'Courbe In'!G9) -> 16 | J6: =16.5+(J1*'Courbe In'!G9) -> 16.38 | K6: =16.8+(K1*'Courbe In'!G9) -> 16.6 | L6: =17.4+(L1*'Courbe In'!G9) -> 17.4 | M6: =18+(M1*'Courbe In'!G9) -> 18.15 | N6: =18.6+(N1*'Courbe In'!G9) -> 18.7 | O6: =19.25+(O1*'Courbe In'!G9) -> 19.25 | P6: =19.8+(P1*'Courbe In'!G9) -> 19.7 | Q6: =20.4+(Q1*'Courbe In'!G9) -> 20.25 | R6: =20.9+(R1*'Courbe In'!G9) -> 20.7 | S6: =21.2+(S1*'Courbe In'!G9) -> 21 | T6: =21.5+(T1*'Courbe In'!G9) -> 20.93 | U6: =21.8+(U1*'Courbe In'!G9) -> 21.12 | V6: =22+(V1*'Courbe In'!G9) -> 21.28 | W6: =22.1+(W1*'Courbe In'!G9) -> 21.37 | X6: =22.2+(X1*'Courbe In'!G9) -> 21.4 | Y6: =22.2+(Y1*'Courbe In'!G9) -> 22.2 | Z6: =22.2+(Z1*'Courbe In'!G9) -> 22.2 | AA6: =22.2+(AA1*'Courbe In'!G9) -> 22.2 | AB6: =22.2+(AB1*'Courbe In'!G9) -> 22.2 | AC6: =22.2+(AC1*'Courbe In'!G9) -> 22.2 | AD6: =22.2+(AD1*'Courbe In'!G9) -> 22.2 | AE6: =22.2+(AE1*'Courbe In'!G9) -> 22.2 | AF6: =22.2+(AF1*'Courbe In'!G9) -> 22.2 | AG6: =22.2+(AG1*'Courbe In'!G9) -> 22.2 | AH6: =22.2+(AH1*'Courbe In'!G9) -> 22.2 | AI6: =22.2+(AI1*'Courbe In'!G9) -> 22.2 | AJ6: =22.2+(AJ1*'Courbe In'!G9) -> 22.2 | AK6: =22.2+(AK1*'Courbe In'!G9) -> 22.2 | AL6: =22.2+(AL1*'Courbe In'!G9) -> 22.2 | AM6: =22.2+(AM1*'Courbe In'!G9) -> 22.2 | AN6: =22.2+(AN1*'Courbe In'!G9) -> 22.2 | AO6: =22.2+(AO1*'Courbe In'!G9) -> 22.2 | AP6: =22.2+(AP1*'Courbe In'!G9) -> 22.2 | AQ6: =22.2+(AQ1*'Courbe In'!G9) -> 22.2 | AR6: =22.2+(AR1*'Courbe In'!G9) -> 22.2 | AS6: =22.2+(AS1*'Courbe In'!G9) -> 22.2 | AT6: =22.2+(AT1*'Courbe In'!G9) -> 22.2 | AU6: =22.2+(AU1*'Courbe In'!G9) -> 22.2 | AV6: =22.2+(AV1*'Courbe In'!G9) -> 22.2 | AW6: =22.2+(AW1*'Courbe In'!G9) -> 22.2 | AX6: =22.2+(AX1*'Courbe In'!G9) -> 22.2 | AY6: =22.2+(AY1*'Courbe In'!G9) -> 22.2 | AZ6: =22.2+(AZ1*'Courbe In'!G9) -> 22.2
A7: =IF(ISBLANK('Courbe In'!A4),"",'Courbe In'!A4) ->  | B7: IMC | C7: =IF(ISBLANK(C8),"",IF(ISBLANK(C9),"",C8/(C9*C9))) ->  | BA7: =IF(ISBLANK(BA8),"",IF(ISBLANK(BA9),"",BA8/(BA9*BA9))) -> 
A8: Date de naissance | B8: Poids
A9: =IF(ISBLANK(Accueil!B13),"",Accueil!B13) ->  | B9: Taille
B10: Dates
B11: Age | C11: =IF(ISBLANK(C10),"",(C10-'Courbe In'!$A$6)/365.25) ->  | D11: =IF(ISBLANK(D10),"",(D10-'Courbe In'!$A$6)/365.25) ->  | E11: =IF(ISBLANK(E10),"",(E10-'Courbe In'!$A$6)/365.25) ->  | F11: =IF(ISBLANK(F10),"",(F10-'Courbe In'!$A$6)/365.25) ->  | G11: =IF(ISBLANK(G10),"",(G10-'Courbe In'!$A$6)/365.25) ->  | H11: =IF(ISBLANK(H10),"",(H10-'Courbe In'!$A$6)/365.25) ->  | I11: =IF(ISBLANK(I10),"",(I10-'Courbe In'!$A$6)/365.25) ->  | J11: =IF(ISBLANK(J10),"",(J10-'Courbe In'!$A$6)/365.25) ->  | K11: =IF(ISBLANK(K10),"",(K10-'Courbe In'!$A$6)/365.25) ->  | L11: =IF(ISBLANK(L10),"",(L10-'Courbe In'!$A$6)/365.25) ->  | M11: =IF(ISBLANK(M10),"",(M10-'Courbe In'!$A$6)/365.25) ->  | N11: =IF(ISBLANK(N10),"",(N10-'Courbe In'!$A$6)/365.25) ->  | O11: =IF(ISBLANK(O10),"",(O10-'Courbe In'!$A$6)/365.25) ->  | P11: =IF(ISBLANK(P10),"",(P10-'Courbe In'!$A$6)/365.25) ->  | Q11: =IF(ISBLANK(Q10),"",(Q10-'Courbe In'!$A$6)/365.25) ->  | R11: =IF(ISBLANK(R10),"",(R10-'Courbe In'!$A$6)/365.25) ->  | S11: =IF(ISBLANK(S10),"",(S10-'Courbe In'!$A$6)/365.25) ->  | T11: =IF(ISBLANK(T10),"",(T10-'Courbe In'!$A$6)/365.25) ->  | U11: =IF(ISBLANK(U10),"",(U10-'Courbe In'!$A$6)/365.25) ->  | V11: =IF(ISBLANK(V10),"",(V10-'Courbe In'!$A$6)/365.25) ->  | W11: =IF(ISBLANK(W10),"",(W10-'Courbe In'!$A$6)/365.25) ->  | X11: =IF(ISBLANK(X10),"",(X10-'Courbe In'!$A$6)/365.25) ->  | Y11: =IF(ISBLANK(Y10),"",(Y10-'Courbe In'!$A$6)/365.25) ->  | Z11: =IF(ISBLANK(Z10),"",(Z10-'Courbe In'!$A$6)/365.25) ->  | AA11: =IF(ISBLANK(AA10),"",(AA10-'Courbe In'!$A$6)/365.25) ->  | AB11: =IF(ISBLANK(AB10),"",(AB10-'Courbe In'!$A$6)/365.25) ->  | AC11: =IF(ISBLANK(AC10),"",(AC10-'Courbe In'!$A$6)/365.25) ->  | AD11: =IF(ISBLANK(AD10),"",(AD10-'Courbe In'!$A$6)/365.25) ->  | AE11: =IF(ISBLANK(AE10),"",(AE10-'Courbe In'!$A$6)/365.25) ->  | AF11: =IF(ISBLANK(AF10),"",(AF10-'Courbe In'!$A$6)/365.25) ->  | AG11: =IF(ISBLANK(AG10),"",(AG10-'Courbe In'!$A$6)/365.25) ->  | AH11: =IF(ISBLANK(AH10),"",(AH10-'Courbe In'!$A$6)/365.25) ->  | AI11: =IF(ISBLANK(AI10),"",(AI10-'Courbe In'!$A$6)/365.25) ->  | AJ11: =IF(ISBLANK(AJ10),"",(AJ10-'Courbe In'!$A$6)/365.25) ->  | AK11: =IF(ISBLANK(AK10),"",(AK10-'Courbe In'!$A$6)/365.25) ->  | AL11: =IF(ISBLANK(AL10),"",(AL10-'Courbe In'!$A$6)/365.25) ->  | AM11: =IF(ISBLANK(AM10),"",(AM10-'Courbe In'!$A$6)/365.25) ->  | AN11: =IF(ISBLANK(AN10),"",(AN10-'Courbe In'!$A$6)/365.25) ->  | AO11: =IF(ISBLANK(AO10),"",(AO10-'Courbe In'!$A$6)/365.25) ->  | AP11: =IF(ISBLANK(AP10),"",(AP10-'Courbe In'!$A$6)/365.25) ->  | AQ11: =IF(ISBLANK(AQ10),"",(AQ10-'Courbe In'!$A$6)/365.25) ->  | AR11: =IF(ISBLANK(AR10),"",(AR10-'Courbe In'!$A$6)/365.25) ->  | AS11: =IF(ISBLANK(AS10),"",(AS10-'Courbe In'!$A$6)/365.25) ->  | AT11: =IF(ISBLANK(AT10),"",(AT10-'Courbe In'!$A$6)/365.25) ->  | AU11: =IF(ISBLANK(AU10),"",(AU10-'Courbe In'!$A$6)/365.25) ->  | AV11: =IF(ISBLANK(AV10),"",(AV10-'Courbe In'!$A$6)/365.25) ->  | AW11: =IF(ISBLANK(AW10),"",(AW10-'Courbe In'!$A$6)/365.25) ->  | AX11: =IF(ISBLANK(AX10),"",(AX10-'Courbe In'!$A$6)/365.25) ->  | AY11: =IF(ISBLANK(AY10),"",(AY10-'Courbe In'!$A$6)/365.25) ->  | AZ11: =IF(ISBLANK(AZ10),"",(AZ10-'Courbe In'!$A$6)/365.25) ->  | BA11: =IF(ISBLANK(BA10),"",(BA10-'Courbe In'!$A$6)/365.25) ->  | BB11: =IF(ISBLANK(BB10),"",(BB10-'Courbe In'!$A$6)/365.25) ->  | BC11: =IF(ISBLANK(BC10),"",(BC10-'Courbe In'!$A$6)/365.25) ->  | BD11: =IF(ISBLANK(BD10),"",(BD10-'Courbe In'!$A$6)/365.25) ->  | BE11: =IF(ISBLANK(BE10),"",(BE10-'Courbe In'!$A$6)/365.25) ->  | BF11: =IF(ISBLANK(BF10),"",(BF10-'Courbe In'!$A$6)/365.25) ->  | BG11: =IF(ISBLANK(BG10),"",(BG10-'Courbe In'!$A$6)/365.25) ->  | BH11: =IF(ISBLANK(BH10),"",(BH10-'Courbe In'!$A$6)/365.25) ->  | BI11: =IF(ISBLANK(BI10),"",(BI10-'Courbe In'!$A$6)/365.25) ->  | BJ11: =IF(ISBLANK(BJ10),"",(BJ10-'Courbe In'!$A$6)/365.25) -> 
H17: =(NOW()-('Courbe In'!A6))/365.25 -> 121.0504323
C19: =C7 ->  | D19: =D7 ->  | E19: =E7 ->  | F19: =F7 -> 
C20: =IF(ISBLANK(C10),22,C11) -> 22 | D20: =IF(ISBLANK(D10),22,D11) -> 22 | E20: =IF(ISBLANK(E10),22,E11) -> 22 | F20: 22 | G20: 22 | H20: 22 | I20: 22 | J20: 22 | K20: 22 | L20: 22 | M20: 22 | N20: 22 | O20: 22 | P20: 22 | Q20: 22 | R20: 22 | S20: 22 | T20: 22 | U20: 22 | V20: 22 | W20: 22 | X20: 22 | Y20: 22 | Z20: 22 | AA20: 22 | AB20: 22 | AC20: 22 | AD20: 22 | AE20: 22 | AF20: 22 | AG20: 22 | AH20: 22 | AI20: 22 | AJ20: 22 | AK20: 22 | AL20: 22 | AM20: 22 | AN20: 22 | AO20: 22 | AP20: 22 | AQ20: 22 | AR20: 22 | AS20: 22 | AT20: 22 | AU20: 22 | AV20: 22 | AW20: 22 | AX20: 22 | AY20: 22 | AZ20: 22
M40: =Z7 -> 
B45: Anorexie | L45: =AVERAGE(L5:L6)*0.8252 -> 13.36824 | M45: 13.90462 | N45: 14.50289 | O45: 14.95675 | P45: 15.43124 | Q45: 15.90573 | R45: =AVERAGE(R5:R6)*0.826 -> 16.2309 | S45: =AVERAGE(S5:S6)*0.84 -> 16.674 | T45: 17 | U45: 17 | V45: 17 | W45: 17 | X45: 17
B46: Hospit. | L46: =AVERAGE(L5:L6)*0.777 -> 12.5874 | M46: 13.09245 | N46: 13.655775 | O46: 14.083125 | P46: 14.5299 | Q46: 14.976675 | R46: 15.26805 | S46: 15.42345 | T46: 16 | U46: 16 | V46: 16 | W46: 16 | X46: 16
B47: Danger | L47: =AVERAGE(L5:L6)*0.745 -> 12.069 | M47: 12.55325 | N47: 13.093375 | O47: 13.503125 | P47: 13.9315 | Q47: 14.359875 | R47: 14.63925 | S47: 14.78825 | T47: =AVERAGE(T5:T6)*0.745 -> 14.762175 | U47: 15 | V47: 15 | W47: 15 | X47: 15
B48: Surpoids | C48: =AVERAGE(C5:C6)*1.09 -> 18.9115 | D48: =AVERAGE(D5:D6)*1.11 -> 17.7045 | E48: =AVERAGE(E5:E6)*1.12 -> 17.332 | F48: =AVERAGE(F5:F6)*1.124 -> 17.0567 | G48: =AVERAGE(G5:G6)*1.125 -> 16.903125 | H48: =AVERAGE(H5:H6)*1.145 -> 17.1521 | I48: =AVERAGE(I5:I6)*1.168 -> 17.6368 | J48: =AVERAGE(J5:J6)*1.19 -> 18.22485 | K48: =AVERAGE(K5:K6)*1.21 -> 18.8881 | L48: =AVERAGE(L5:L6)*1.23 -> 19.926 | M48: =AVERAGE(M5:M6)*1.243 -> 20.94455 | N48: =AVERAGE(N5:N6)*1.254 -> 22.03905 | O48: =AVERAGE(O5:O6)*1.263 -> 22.891875 | P48: =AVERAGE(P5:P6)*1.263 -> 23.6181 | Q48: =AVERAGE(Q5:Q6)*1.253 -> 24.151575 | R48: =AVERAGE(R5:R6)*1.245 -> 24.46425 | S48: =AVERAGE(S5:S6)*1.246 -> 24.7331 | T48: 25 | U48: 25 | V48: 25 | W48: 25 | X48: 25
B49: Obésité | D49: =AVERAGE(D5:D6)*1.22 -> 19.459 | E49: =AVERAGE(E5:E6)*1.24 -> 19.189 | F49: =AVERAGE(F5:F6)*1.25 -> 18.96875 | G49: =AVERAGE(G5:G6)*1.262 -> 18.96155 | H49: =AVERAGE(H5:H6)*1.29 -> 19.3242 | I49: =AVERAGE(I5:I6)*1.34 -> 20.234 | J49: =AVERAGE(J5:J6)*1.39 -> 21.28785 | K49: =AVERAGE(K5:K6)*1.45 -> 22.6345 | L49: =AVERAGE(L5:L6)*1.483 -> 24.0246 | M49: =AVERAGE(M5:M6)*1.52 -> 25.612 | N49: =AVERAGE(N5:N6)*1.54 -> 27.0655 | O49: =AVERAGE(O5:O6)*1.55 -> 28.09375 | P49: =AVERAGE(P5:P6)*1.54 -> 28.798 | Q49: =AVERAGE(Q5:Q6)*1.52 -> 29.298 | R49: =AVERAGE(R5:R6)*1.51 -> 29.6715 | S49: =AVERAGE(S5:S6)*1.51 -> 29.9735 | T49: 30 | U49: 30 | V49: 30 | W49: 30 | X49: 30
B50: Médiane | C50: =AVERAGE(C51,C48) -> 17.49175 | D50: =AVERAGE(D51,D48) -> 16.47525 | E50: 15.9698 | F50: 15.6841 | G50: 15.5086125 | H50: 15.539335 | I50: 15.8261 | J50: 16.1448 | K50: 16.65902 | L50: 17.3655 | M50: 18.1462 | N50: 19.1376 | O50: 19.8354375 | P50: 20.544 | Q50: 21.1068375 | R50: 21.411225 | S50: 21.595 | T50: 21.75 | U50: 21.75 | V50: 21.75 | W50: 21.75 | X50: 21.75
B51: Limte inf. | C51: =C5*0.98 -> 16.072 | D51: =D5*0.99 -> 15.246 | E51: =E5*0.987 -> 14.6076 | F51: 14.3115 | G51: 14.1141 | H51: 13.92657 | I51: 14.0154 | J51: 14.06475 | K51: 14.42994 | L51: 14.805 | M51: 15.34785 | N51: 16.23615 | O51: 16.779 | P51: 17.4699 | Q51: 18.0621 | R51: 18.3582 | S51: 18.4569 | T51: 18.5 | U51: 18.5 | V51: 18.5 | W51: 18.5 | X51: 18.5
C54: 1 | D54: 2 | E54: 3 | F54: 4 | G54: 5 | H54: 6 | I54: 7 | J54: 8 | K54: 9 | L54: 10 | M54: 11 | N54: 12 | O54: 13 | P54: 14 | Q54: 15 | R54: 16 | S54: 17 | T54: 18 | U54: 19 | V54: 20 | W54: 21 | X54: 22
C55: =C48 -> 18.9115 | D55: 17.7045 | E55: 17.332 | F55: 17.0567 | G55: 16.903125 | H55: 17.1521 | I55: 17.6368 | J55: 18.22485 | K55: 18.8881 | L55: 19.926 | M55: 20.94455 | N55: 22.03905 | O55: 22.891875 | P55: 23.6181 | Q55: 24.151575 | R55: 24.46425 | S55: 24.7331 | T55: 25 | U55: 25 | V55: 25 | W55: 25 | X55: 25
C56: =C49 -> 0 | D56: 19.459 | E56: 19.189 | F56: 18.96875 | G56: 18.96155 | H56: 19.3242 | I56: 20.234 | J56: 21.28785 | K56: 22.6345 | L56: 24.0246 | M56: 25.612 | N56: 27.0655 | O56: 28.09375 | P56: 28.798 | Q56: 29.298 | R56: 29.6715 | S56: 29.9735 | T56: 30 | U56: 30 | V56: 30 | W56: 30 | X56: 30
C58: =HLOOKUP(INT(H17),C54:X56,2) -> 25
C59: =HLOOKUP(INT(H17),C54:X56,3) -> 30
A66: Anorexie | B66: Surpoids | C66: Obésité | D66: Données interpolées | E66: Age
B67: 22.8595 | C67: 25.3025 | D67: =IF(ISBLANK(#REF!),"",#REF!) ->  | E67: =IF(ISBLANK(#REF!),"",#REF!) -> 
B68: 21.2875 | C68: 23.5625 | D68: =IF(ISBLANK(#REF!),"",#REF!) ->  | E68: =IF(ISBLANK(#REF!),"",#REF!) -> 
B69: 20.5015 | C69: 22.6925 | D69: =IF(ISBLANK(#REF!),"",#REF!) ->  | E69: =IF(ISBLANK(#REF!),"",#REF!) -> 
B70: 20.1085 | C70: 22.2575 | D70: =IF(ISBLANK(#REF!),"",#REF!) ->  | E70: =IF(ISBLANK(#REF!),"",#REF!) -> 
B71: 19.94475 | C71: 22.07625 | D71: =IF(ISBLANK(#REF!),"",#REF!) ->  | E71: =IF(ISBLANK(#REF!),"",#REF!) -> 
B72: 19.912 | C72: 22.04 | D72: =IF(ISBLANK(#REF!),"",#REF!) ->  | E72: =IF(ISBLANK(#REF!),"",#REF!) -> 
B73: 20.043 | C73: 22.185 | D73: =IF(ISBLANK(#REF!),"",#REF!) ->  | E73: =IF(ISBLANK(#REF!),"",#REF!) -> 
B74: 20.305 | C74: 22.475 | D74: =IF(ISBLANK(#REF!),"",#REF!) ->  | E74: =IF(ISBLANK(#REF!),"",#REF!) -> 
B75: 20.698 | C75: 22.91 | D75: =IF(ISBLANK(#REF!),"",#REF!) ->  | E75: =IF(ISBLANK(#REF!),"",#REF!) -> 
A76: 13.8125 | B76: 21.2875 | C76: 23.5625 | D76: =IF(ISBLANK(#REF!),"",#REF!) ->  | E76: =IF(ISBLANK(#REF!),"",#REF!) -> 
A77: 14.2375 | B77: 21.9425 | C77: 24.2875 | D77: =IF(ISBLANK(#REF!),"",#REF!) ->  | E77: =IF(ISBLANK(#REF!),"",#REF!) -> 
A78: 14.7475 | B78: 22.7285 | C78: 25.1575 | D78: =IF(ISBLANK(#REF!),"",#REF!) ->  | E78: =IF(ISBLANK(#REF!),"",#REF!) -> 
A79: 15.23625 | B79: 23.48175 | C79: 25.99125 | D79: =IF(ISBLANK(#REF!),"",#REF!) ->  | E79: =IF(ISBLANK(#REF!),"",#REF!) -> 
A80: 15.7675 | B80: 24.3005 | C80: 26.8975 | D80: =IF(ISBLANK(#REF!),"",#REF!) ->  | E80: =IF(ISBLANK(#REF!),"",#REF!) -> 
A81: 16.2775 | B81: 25.0865 | C81: 27.7675 | D81: =IF(ISBLANK(#REF!),"",#REF!) ->  | E81: =IF(ISBLANK(#REF!),"",#REF!) -> 
A82: 16.68125 | B82: 25.70875 | C82: 28.45625 | D82: =IF(ISBLANK(#REF!),"",#REF!) ->  | E82: =IF(ISBLANK(#REF!),"",#REF!) -> 
A83: 16.915 | B83: 26.069 | C83: 28.855 | D83: =IF(ISBLANK(#REF!),"",#REF!) ->  | E83: =IF(ISBLANK(#REF!),"",#REF!) -> 
A84: 17.10625 | B84: 26.36375 | C84: 29.18125 | D84: =IF(ISBLANK(#REF!),"",#REF!) ->  | E84: =IF(ISBLANK(#REF!),"",#REF!) -> 
A85: 17.27625 | B85: 26.62575 | C85: 29.47125 | D85: =IF(ISBLANK(#REF!),"",#REF!) ->  | E85: =IF(ISBLANK(#REF!),"",#REF!) -> 
A86: 17.3825 | B86: 26.7895 | C86: 29.6525 | D86: =IF(ISBLANK(#REF!),"",#REF!) ->  | E86: =IF(ISBLANK(#REF!),"",#REF!) -> 
A87: 17.44625 | B87: 26.88775 | C87: 29.76125 | D87: =IF(ISBLANK(#REF!),"",#REF!) ->  | E87: =IF(ISBLANK(#REF!),"",#REF!) -> 
A88: 17.51 | B88: 26.986 | C88: 29.87 | D88: =IF(ISBLANK(#REF!),"",#REF!) ->  | E88: =IF(ISBLANK(#REF!),"",#REF!) -> 
D89: =IF(ISBLANK(#REF!),"",#REF!) ->  | E89: =IF(ISBLANK(#REF!),"",#REF!) -> 
D90: =IF(ISBLANK(#REF!),"",#REF!) ->  | E90: =IF(ISBLANK(#REF!),"",#REF!) -> 
D91: =IF(ISBLANK(#REF!),"",#REF!) ->  | E91: =IF(ISBLANK(#REF!),"",#REF!) -> 
D92: =IF(ISBLANK(#REF!),"",#REF!) ->  | E92: =IF(ISBLANK(#REF!),"",#REF!) -> 
D93: =IF(ISBLANK(#REF!),"",#REF!) ->  | E93: =IF(ISBLANK(#REF!),"",#REF!) -> 
D94: =IF(ISBLANK(#REF!),"",#REF!) ->  | E94: =IF(ISBLANK(#REF!),"",#REF!) -> 
D95: =IF(ISBLANK(#REF!),"",#REF!) ->  | E95: =IF(ISBLANK(#REF!),"",#REF!) -> 
D96: =IF(ISBLANK(#REF!),"",#REF!) ->  | E96: =IF(ISBLANK(#REF!),"",#REF!) -> 
D97: =IF(ISBLANK(#REF!),"",#REF!) ->  | E97: =IF(ISBLANK(#REF!),"",#REF!) -> 
D98: =IF(ISBLANK(#REF!),"",#REF!) ->  | E98: =IF(ISBLANK(#REF!),"",#REF!) -> 
D99: =IF(ISBLANK(#REF!),"",#REF!) ->  | E99: =IF(ISBLANK(#REF!),"",#REF!) -> 
D100: =IF(ISBLANK(#REF!),"",#REF!) ->  | E100: =IF(ISBLANK(#REF!),"",#REF!) -> 
D101: =IF(ISBLANK(#REF!),"",#REF!) ->  | E101: =IF(ISBLANK(#REF!),"",#REF!) -> 
D102: =IF(ISBLANK(#REF!),"",#REF!) ->  | E102: =IF(ISBLANK(#REF!),"",#REF!) -> 
D103: =IF(ISBLANK(#REF!),"",#REF!) ->  | E103: =IF(ISBLANK(#REF!),"",#REF!) -> 
D104: =IF(ISBLANK(#REF!),"",#REF!) ->  | E104: =IF(ISBLANK(#REF!),"",#REF!) -> 
D105: =IF(ISBLANK(#REF!),"",#REF!) ->  | E105: =IF(ISBLANK(#REF!),"",#REF!) -> 
D106: =IF(ISBLANK(#REF!),"",#REF!) ->  | E106: =IF(ISBLANK(#REF!),"",#REF!) -> 
D107: =IF(ISBLANK(#REF!),"",#REF!) ->  | E107: =IF(ISBLANK(#REF!),"",#REF!) -> 
D108: =IF(ISBLANK(#REF!),"",#REF!) ->  | E108: =IF(ISBLANK(#REF!),"",#REF!) -> 
D109: =IF(ISBLANK(#REF!),"",#REF!) ->  | E109: =IF(ISBLANK(#REF!),"",#REF!) -> 
D110: =IF(ISBLANK(#REF!),"",#REF!) ->  | E110: =IF(ISBLANK(#REF!),"",#REF!) -> 
D111: =IF(ISBLANK(#REF!),"",#REF!) ->  | E111: =IF(ISBLANK(#REF!),"",#REF!) -> 
D112: =IF(ISBLANK(#REF!),"",#REF!) ->  | E112: =IF(ISBLANK(#REF!),"",#REF!) -> 
D113: =IF(ISBLANK(#REF!),"",#REF!) ->  | E113: =IF(ISBLANK(#REF!),"",#REF!) -> 
D114: =IF(ISBLANK(#REF!),"",#REF!) ->  | E114: =IF(ISBLANK(#REF!),"",#REF!) -> 
D115: =IF(ISBLANK(#REF!),"",#REF!) ->  | E115: =IF(ISBLANK(#REF!),"",#REF!) -> 
D116: =IF(ISBLANK(#REF!),"",#REF!) ->  | E116: =IF(ISBLANK(#REF!),"",#REF!) -> 
D117: =IF(ISBLANK(#REF!),"",#REF!) ->  | E117: =IF(ISBLANK(#REF!),"",#REF!) -> 
D118: =IF(ISBLANK(#REF!),"",#REF!) ->  | E118: =IF(ISBLANK(#REF!),"",#REF!) -> 
D119: =IF(ISBLANK(#REF!),"",#REF!) ->  | E119: =IF(ISBLANK(#REF!),"",#REF!) -> 
D120: =IF(ISBLANK(#REF!),"",#REF!) ->  | E120: =IF(ISBLANK(#REF!),"",#REF!) -> 
D121: =IF(ISBLANK(#REF!),"",#REF!) ->  | E121: =IF(ISBLANK(#REF!),"",#REF!) -> 
D122: =IF(ISBLANK(#REF!),"",#REF!) ->  | E122: =IF(ISBLANK(#REF!),"",#REF!) -> 
D123: =IF(ISBLANK(#REF!),"",#REF!) ->  | E123: =IF(ISBLANK(#REF!),"",#REF!) -> 
D124: =IF(ISBLANK(#REF!),"",#REF!) ->  | E124: =IF(ISBLANK(#REF!),"",#REF!) -> 
D125: =IF(ISBLANK(#REF!),"",#REF!) ->  | E125: =IF(ISBLANK(#REF!),"",#REF!) -> 
D126: =IF(ISBLANK(#REF!),"",#REF!) ->  | E126: =IF(ISBLANK(#REF!),"",#REF!) -> 
D127: =IF(ISBLANK(#REF!),"",#REF!) ->  | E127: =IF(ISBLANK(#REF!),"",#REF!) -> 
D128: =IF(ISBLANK(#REF!),"",#REF!) ->  | E128: =IF(ISBLANK(#REF!),"",#REF!) -> 
D129: =IF(ISBLANK(#REF!),"",#REF!) ->  | E129: =IF(ISBLANK(#REF!),"",#REF!) -> 
D130: =IF(ISBLANK(#REF!),"",#REF!) ->  | E130: =IF(ISBLANK(#REF!),"",#REF!) -> 
D131: =IF(ISBLANK(#REF!),"",#REF!) ->  | E131: =IF(ISBLANK(#REF!),"",#REF!) -> 
D132: =IF(ISBLANK(#REF!),"",#REF!) ->  | E132: =IF(ISBLANK(#REF!),"",#REF!) -> 
D133: =IF(ISBLANK(#REF!),"",#REF!) ->  | E133: =IF(ISBLANK(#REF!),"",#REF!) -> 
D134: =IF(ISBLANK(#REF!),"",#REF!) ->  | E134: =IF(ISBLANK(#REF!),"",#REF!) -> 
D135: =IF(ISBLANK(#REF!),"",#REF!) ->  | E135: =IF(ISBLANK(#REF!),"",#REF!) -> 
D136: =IF(ISBLANK(#REF!),"",#REF!) ->  | E136: =IF(ISBLANK(#REF!),"",#REF!) -> 
D137: =IF(ISBLANK(#REF!),"",#REF!) ->  | E137: =IF(ISBLANK(#REF!),"",#REF!) -> 
D138: =IF(ISBLANK(#REF!),"",#REF!) ->  | E138: =IF(ISBLANK(#REF!),"",#REF!) -> 
D139: =IF(ISBLANK(#REF!),"",#REF!) ->  | E139: =IF(ISBLANK(#REF!),"",#REF!) -> 
D140: =IF(ISBLANK(#REF!),"",#REF!) ->  | E140: =IF(ISBLANK(#REF!),"",#REF!) -> 
D141: =IF(ISBLANK(#REF!),"",#REF!) ->  | E141: =IF(ISBLANK(#REF!),"",#REF!) -> 
D142: =IF(ISBLANK(#REF!),"",#REF!) ->  | E142: =IF(ISBLANK(#REF!),"",#REF!) -> 
D143: =IF(ISBLANK(#REF!),"",#REF!) ->  | E143: =IF(ISBLANK(#REF!),"",#REF!) -> 
D144: =IF(ISBLANK(#REF!),"",#REF!) ->  | E144: =IF(ISBLANK(#REF!),"",#REF!) -> 
D145: =IF(ISBLANK(#REF!),"",#REF!) ->  | E145: =IF(ISBLANK(#REF!),"",#REF!) -> 
D146: =IF(ISBLANK(#REF!),"",#REF!) ->  | E146: =IF(ISBLANK(#REF!),"",#REF!) -> 
D147: =IF(ISBLANK(#REF!),"",#REF!) ->  | E147: =IF(ISBLANK(#REF!),"",#REF!) -> 
D148: =IF(ISBLANK(#REF!),"",#REF!) ->  | E148: =IF(ISBLANK(#REF!),"",#REF!) -> 
D149: =IF(ISBLANK(#REF!),"",#REF!) ->  | E149: =IF(ISBLANK(#REF!),"",#REF!) -> 
D150: =IF(ISBLANK(#REF!),"",#REF!) ->  | E150: =IF(ISBLANK(#REF!),"",#REF!) -> 
D151: =IF(ISBLANK(#REF!),"",#REF!) ->  | E151: =IF(ISBLANK(#REF!),"",#REF!) -> 
D152: =IF(ISBLANK(#REF!),"",#REF!) ->  | E152: =IF(ISBLANK(#REF!),"",#REF!) -> 
D153: =IF(ISBLANK(#REF!),"",#REF!) ->  | E153: =IF(ISBLANK(#REF!),"",#REF!) -> 
D154: =IF(ISBLANK(#REF!),"",#REF!) ->  | E154: =IF(ISBLANK(#REF!),"",#REF!) -> 
D155: =IF(ISBLANK(#REF!),"",#REF!) ->  | E155: =IF(ISBLANK(#REF!),"",#REF!) -> 
D156: =IF(ISBLANK(#REF!),"",#REF!) ->  | E156: =IF(ISBLANK(#REF!),"",#REF!) -> 
D157: =IF(ISBLANK(#REF!),"",#REF!) ->  | E157: =IF(ISBLANK(#REF!),"",#REF!) -> 
D158: =IF(ISBLANK(#REF!),"",#REF!) ->  | E158: =IF(ISBLANK(#REF!),"",#REF!) -> 
D159: =IF(ISBLANK(#REF!),"",#REF!) ->  | E159: =IF(ISBLANK(#REF!),"",#REF!) -> 
D160: =IF(ISBLANK(#REF!),"",#REF!) ->  | E160: =IF(ISBLANK(#REF!),"",#REF!) -> 
D161: =IF(ISBLANK(#REF!),"",#REF!) ->  | E161: =IF(ISBLANK(#REF!),"",#REF!) -> 
D162: =IF(ISBLANK(#REF!),"",#REF!) ->  | E162: =IF(ISBLANK(#REF!),"",#REF!) -> 
D163: =IF(ISBLANK(#REF!),"",#REF!) ->  | E163: =IF(ISBLANK(#REF!),"",#REF!) -> 
D164: =IF(ISBLANK(#REF!),"",#REF!) ->  | E164: =IF(ISBLANK(#REF!),"",#REF!) -> 
D165: =IF(ISBLANK(#REF!),"",#REF!) ->  | E165: =IF(ISBLANK(#REF!),"",#REF!) -> 
D166: =IF(ISBLANK(#REF!),"",#REF!) ->  | E166: =IF(ISBLANK(#REF!),"",#REF!) -> 
D167: =IF(ISBLANK(#REF!),"",#REF!) ->  | E167: =IF(ISBLANK(#REF!),"",#REF!) -> 
D168: =IF(ISBLANK(#REF!),"",#REF!) ->  | E168: =IF(ISBLANK(#REF!),"",#REF!) -> 
D169: =IF(ISBLANK(#REF!),"",#REF!) ->  | E169: =IF(ISBLANK(#REF!),"",#REF!) -> 
D170: =IF(ISBLANK(#REF!),"",#REF!) ->  | E170: =IF(ISBLANK(#REF!),"",#REF!) -> 
D171: =IF(ISBLANK(#REF!),"",#REF!) ->  | E171: =IF(ISBLANK(#REF!),"",#REF!) -> 
D172: =IF(ISBLANK(#REF!),"",#REF!) ->  | E172: =IF(ISBLANK(#REF!),"",#REF!) -> 
D173: =IF(ISBLANK(#REF!),"",#REF!) ->  | E173: =IF(ISBLANK(#REF!),"",#REF!) -> 
D174: =IF(ISBLANK(#REF!),"",#REF!) ->  | E174: =IF(ISBLANK(#REF!),"",#REF!) -> 
D175: =IF(ISBLANK(#REF!),"",#REF!) ->  | E175: =IF(ISBLANK(#REF!),"",#REF!) -> 
D176: =IF(ISBLANK(#REF!),"",#REF!) ->  | E176: =IF(ISBLANK(#REF!),"",#REF!) -> 
D177: =IF(ISBLANK(#REF!),"",#REF!) ->  | E177: =IF(ISBLANK(#REF!),"",#REF!) -> 
D178: =IF(ISBLANK(#REF!),"",#REF!) ->  | E178: =IF(ISBLANK(#REF!),"",#REF!) -> 
D179: =IF(ISBLANK(#REF!),"",#REF!) ->  | E179: =IF(ISBLANK(#REF!),"",#REF!) -> 
D180: =IF(ISBLANK(#REF!),"",#REF!) ->  | E180: =IF(ISBLANK(#REF!),"",#REF!) -> 
D181: =IF(ISBLANK(#REF!),"",#REF!) ->  | E181: =IF(ISBLANK(#REF!),"",#REF!) -> 
D182: =IF(ISBLANK(#REF!),"",#REF!) ->  | E182: =IF(ISBLANK(#REF!),"",#REF!) -> 
D183: =IF(ISBLANK(#REF!),"",#REF!) ->  | E183: =IF(ISBLANK(#REF!),"",#REF!) -> 
D184: =IF(ISBLANK(#REF!),"",#REF!) ->  | E184: =IF(ISBLANK(#REF!),"",#REF!) -> 
D185: =IF(ISBLANK(#REF!),"",#REF!) ->  | E185: =IF(ISBLANK(#REF!),"",#REF!) -> 
D186: =IF(ISBLANK(#REF!),"",#REF!) ->  | E186: =IF(ISBLANK(#REF!),"",#REF!) -> 
D187: =IF(ISBLANK(#REF!),"",#REF!) ->  | E187: =IF(ISBLANK(#REF!),"",#REF!) -> 

Sheet Synthèse
A1: Synthèse
A3: Désir de maigrir | B3: Critiques/ corps | C3: Restrictions | D3: Orthorexie | E3: Perfectionnisme | F3: Dépression | G3: Anxiété | H3: Impulsivité | I3: Hypercontrôle | J3: Inhibition | K3: Vie sociale | L3: Estime faible | M3: Evit. Maturité | N3: Réticence
A4: =SUM(Archive1!$J$16:$J$21) -> 0 | B4: =SUM(Archive1!$J$22:$J$27) -> 0 | C4: =SUM(Archive1!$J$28:$J$33) -> 0 | D4: =SUM(Archive1!$J$34:$J$39) -> 0 | E4: =SUM(Archive1!$J$40:$J$45) -> 0 | F4: =SUM(Archive1!$J$46:$J$51) -> 0 | G4: =SUM(Archive1!$J$52:$J$57) -> 0 | H4: =SUM(Archive1!$J$58:$J$63) -> 0 | I4: =SUM(Archive1!$J$64:$J$69) -> 0 | J4: =SUM(Archive1!$J$70:$J$75) -> 0 | K4: =SUM(Archive1!$J$76:$J$81) -> 0 | L4: =SUM(Archive1!$J$82:$J$87) -> 0 | M4: =SUM(Archive1!$J$88:$J$93) -> 0 | N4: =SUM(Archive1!$J$94:$J$99) -> 0
A5: =SUM(Archive2!$J$16:$J$21) -> 0 | B5: =SUM(Archive2!$J$22:$J$27) -> 0 | C5: =SUM(Archive2!$J$28:$J$33) -> 0 | D5: =SUM(Archive2!$J$34:$J$39) -> 0 | E5: =SUM(Archive2!$J$40:$J$45) -> 0 | F5: =SUM(Archive2!$J$46:$J$51) -> 0 | G5: =SUM(Archive2!$J$52:$J$57) -> 0 | H5: =SUM(Archive2!$J$58:$J$63) -> 0 | I5: =SUM(Archive2!$J$64:$J$69) -> 0 | J5: =SUM(Archive2!$J$70:$J$75) -> 0 | K5: =SUM(Archive2!$J$76:$J$81) -> 0 | L5: =SUM(Archive2!$J$82:$J$87) -> 0 | M5: =SUM(Archive2!$J$88:$J$93) -> 0 | N5: =SUM(Archive2!$J$94:$J$99) -> 0
A6: =SUM(Archive3!$J$16:$J$21) -> 0 | B6: =SUM(Archive3!$J$22:$J$27) -> 0 | C6: =SUM(Archive3!$J$28:$J$33) -> 0 | D6: =SUM(Archive3!$J$34:$J$39) -> 0 | E6: =SUM(Archive3!$J$40:$J$45) -> 0 | F6: =SUM(Archive3!$J$46:$J$51) -> 0 | G6: =SUM(Archive3!$J$52:$J$57) -> 0 | H6: =SUM(Archive3!$J$58:$J$63) -> 0 | I6: =SUM(Archive3!$J$64:$J$69) -> 0 | J6: =SUM(Archive3!$J$70:$J$75) -> 0 | K6: =SUM(Archive3!$J$76:$J$81) -> 0 | L6: =SUM(Archive3!$J$82:$J$87) -> 0 | M6: =SUM(Archive3!$J$88:$J$93) -> 0 | N6: =SUM(Archive3!$J$94:$J$99) -> 0
A7: =SUM(Archive4!$J$16:$J$21) -> 0 | B7: =SUM(Archive4!$J$22:$J$27) -> 0 | C7: =SUM(Archive4!$J$28:$J$33) -> 0 | D7: =SUM(Archive4!$J$34:$J$39) -> 0 | E7: =SUM(Archive4!$J$40:$J$45) -> 0 | F7: =SUM(Archive4!$J$46:$J$51) -> 0 | G7: =SUM(Archive4!$J$52:$J$57) -> 0 | H7: =SUM(Archive4!$J$58:$J$63) -> 0 | I7: =SUM(Archive4!$J$64:$J$69) -> 0 | J7: =SUM(Archive4!$J$70:$J$75) -> 0 | K7: =SUM(Archive4!$J$76:$J$81) -> 0 | L7: =SUM(Archive4!$J$82:$J$87) -> 0 | M7: =SUM(Archive4!$J$88:$J$93) -> 0 | N7: =SUM(Archive4!$J$94:$J$99) -> 0
A8: =SUM(Archive5!$J$16:$J$21) -> 0 | B8: =SUM(Archive5!$J$22:$J$27) -> 0 | C8: =SUM(Archive5!$J$28:$J$33) -> 0 | D8: =SUM(Archive5!$J$34:$J$39) -> 0 | E8: =SUM(Archive5!$J$40:$J$45) -> 0 | F8: =SUM(Archive5!$J$46:$J$51) -> 0 | G8: =SUM(Archive5!$J$52:$J$57) -> 0 | H8: =SUM(Archive5!$J$58:$J$63) -> 0 | I8: =SUM(Archive5!$J$64:$J$69) -> 0 | J8: =SUM(Archive5!$J$70:$J$75) -> 0 | K8: =SUM(Archive5!$J$76:$J$81) -> 0 | L8: =SUM(Archive5!$J$82:$J$87) -> 0 | M8: =SUM(Archive5!$J$88:$J$93) -> 0 | N8: =SUM(Archive5!$J$94:$J$99) -> 0
A11: Résultats en %
A13: =A4/24 -> 0 | B13: =B4/24 -> 0 | C13: 0 | D13: 0 | E13: 0 | F13: 0 | G13: 0 | H13: 0 | I13: 0 | J13: 0 | K13: 0 | L13: 0 | M13: 0 | N13: 0
A14: =A5/24 -> 0 | B14: 0 | C14: 0 | D14: 0 | E14: 0 | F14: 0 | G14: 0 | H14: 0 | I14: 0 | J14: 0 | K14: 0 | L14: 0 | M14: 0 | N14: 0
A15: =A6/24 -> 0 | B15: 0 | C15: 0 | D15: 0 | E15: 0 | F15: 0 | G15: 0 | H15: 0 | I15: 0 | J15: 0 | K15: 0 | L15: 0 | M15: 0 | N15: 0
A16: =A7/24 -> 0 | B16: 0 | C16: 0 | D16: 0 | E16: 0 | F16: 0 | G16: 0 | H16: 0 | I16: 0 | J16: 0 | K16: 0 | L16: 0 | M16: 0 | N16: 0
A17: =A8/24 -> 0 | B17: 0 | C17: 0 | D17: 0 | E17: 0 | F17: 0 | G17: 0 | H17: 0 | I17: 0 | J17: 0 | K17: 0 | L17: 0 | M17: 0 | N17: 0
A20: Silhouette | B20: Cheveux | C20: Visage | D20: Yeux | E20: Nez | F20: Bouche | G20: Cou | H20: Epaules | I20: Bras | J20: Avant-bras | K20: Mains | L20: Dos | M20: Poitrine | N20: Hanches | O20: Ventre | P20: Fesses | Q20: Cuisses | R20: Genoux | S20: Mollets | T20: Pieds | U20: Peau | V20: Musculature
A21: =Archive1!O4 -> 0 | B21: =Archive1!P4 -> 0 | C21: =Archive1!Q4 -> 0 | D21: =Archive1!R4 -> 0 | E21: =Archive1!S4 -> 0 | F21: =Archive1!T4 -> 0 | G21: =Archive1!U4 -> 0 | H21: =Archive1!V4 -> 0 | I21: =Archive1!W4 -> 0 | J21: =Archive1!X4 -> 0 | K21: =Archive1!Y4 -> 0 | L21: =Archive1!Z4 -> 0 | M21: =Archive1!AA4 -> 0 | N21: =Archive1!AB4 -> 0 | O21: =Archive1!AC4 -> 0 | P21: =Archive1!AD4 -> 0 | Q21: =Archive1!AE4 -> 0 | R21: =Archive1!AF4 -> 0 | S21: =Archive1!AG4 -> 0 | T21: =Archive1!AH4 -> 0 | U21: =Archive1!AI4 -> 0 | V21: =Archive1!AJ4 -> 0
A22: =Archive1!O5 -> 0 | B22: =Archive1!P5 -> 0 | C22: =Archive1!Q5 -> 0 | D22: =Archive1!R5 -> 0 | E22: =Archive1!S5 -> 0 | F22: =Archive1!T5 -> 0 | G22: =Archive1!U5 -> 0 | H22: =Archive1!V5 -> 0 | I22: =Archive1!W5 -> 0 | J22: =Archive1!X5 -> 0 | K22: =Archive1!Y5 -> 0 | L22: =Archive1!Z5 -> 0 | M22: =Archive1!AA5 -> 0 | N22: =Archive1!AB5 -> 0 | O22: =Archive1!AC5 -> 0 | P22: =Archive1!AD5 -> 0 | Q22: =Archive1!AE5 -> 0 | R22: =Archive1!AF5 -> 0 | S22: =Archive1!AG5 -> 0 | T22: =Archive1!AH5 -> 0 | U22: =Archive1!AI5 -> 0 | V22: =Archive1!AJ5 -> 0
A23: =Archive2!O4 -> 0 | B23: =Archive2!P4 -> 0 | C23: =Archive2!Q4 -> 0 | D23: =Archive2!R4 -> 0 | E23: =Archive2!S4 -> 0 | F23: =Archive2!T4 -> 0 | G23: =Archive2!U4 -> 0 | H23: =Archive2!V4 -> 0 | I23: =Archive2!W4 -> 0 | J23: =Archive2!X4 -> 0 | K23: =Archive2!Y4 -> 0 | L23: =Archive2!Z4 -> 0 | M23: =Archive2!AA4 -> 0 | N23: =Archive2!AB4 -> 0 | O23: =Archive2!AC4 -> 0 | P23: =Archive2!AD4 -> 0 | Q23: =Archive2!AE4 -> 0 | R23: =Archive2!AF4 -> 0 | S23: =Archive2!AG4 -> 0 | T23: =Archive2!AH4 -> 0 | U23: =Archive2!AI4 -> 0 | V23: =Archive2!AJ4 -> 0
A24: =Archive2!O5 -> 0 | B24: =Archive2!P5 -> 0 | C24: =Archive2!Q5 -> 0 | D24: =Archive2!R5 -> 0 | E24: =Archive2!S5 -> 0 | F24: =Archive2!T5 -> 0 | G24: =Archive2!U5 -> 0 | H24: =Archive2!V5 -> 0 | I24: =Archive2!W5 -> 0 | J24: =Archive2!X5 -> 0 | K24: =Archive2!Y5 -> 0 | L24: =Archive2!Z5 -> 0 | M24: =Archive2!AA5 -> 0 | N24: =Archive2!AB5 -> 0 | O24: =Archive2!AC5 -> 0 | P24: =Archive2!AD5 -> 0 | Q24: =Archive2!AE5 -> 0 | R24: =Archive2!AF5 -> 0 | S24: =Archive2!AG5 -> 0 | T24: =Archive2!AH5 -> 0 | U24: =Archive2!AI5 -> 0 | V24: =Archive2!AJ5 -> 0
A25: =Archive3!O4 -> 0 | B25: =Archive3!P4 -> 0 | C25: =Archive3!Q4 -> 0 | D25: =Archive3!R4 -> 0 | E25: =Archive3!S4 -> 0 | F25: =Archive3!T4 -> 0 | G25: =Archive3!U4 -> 0 | H25: =Archive3!V4 -> 0 | I25: =Archive3!W4 -> 0 | J25: =Archive3!X4 -> 0 | K25: =Archive3!Y4 -> 0 | L25: =Archive3!Z4 -> 0 | M25: =Archive3!AA4 -> 0 | N25: =Archive3!AB4 -> 0 | O25: =Archive3!AC4 -> 0 | P25: =Archive3!AD4 -> 0 | Q25: =Archive3!AE4 -> 0 | R25: =Archive3!AF4 -> 0 | S25: =Archive3!AG4 -> 0 | T25: =Archive3!AH4 -> 0 | U25: =Archive3!AI4 -> 0 | V25: =Archive3!AJ4 -> 0
A26: =Archive3!O5 -> 0 | B26: =Archive3!P5 -> 0 | C26: =Archive3!Q5 -> 0 | D26: =Archive3!R5 -> 0 | E26: =Archive3!S5 -> 0 | F26: =Archive3!T5 -> 0 | G26: =Archive3!U5 -> 0 | H26: =Archive3!V5 -> 0 | I26: =Archive3!W5 -> 0 | J26: =Archive3!X5 -> 0 | K26: =Archive3!Y5 -> 0 | L26: =Archive3!Z5 -> 0 | M26: =Archive3!AA5 -> 0 | N26: =Archive3!AB5 -> 0 | O26: =Archive3!AC5 -> 0 | P26: =Archive3!AD5 -> 0 | Q26: =Archive3!AE5 -> 0 | R26: =Archive3!AF5 -> 0 | S26: =Archive3!AG5 -> 0 | T26: =Archive3!AH5 -> 0 | U26: =Archive3!AI5 -> 0 | V26: =Archive3!AJ5 -> 0
A27: =Archive4!O4 -> 0 | B27: =Archive4!P4 -> 0 | C27: =Archive4!Q4 -> 0 | D27: =Archive4!R4 -> 0 | E27: =Archive4!S4 -> 0 | F27: =Archive4!T4 -> 0 | G27: =Archive4!U4 -> 0 | H27: =Archive4!V4 -> 0 | I27: =Archive4!W4 -> 0 | J27: =Archive4!X4 -> 0 | K27: =Archive4!Y4 -> 0 | L27: =Archive4!Z4 -> 0 | M27: =Archive4!AA4 -> 0 | N27: =Archive4!AB4 -> 0 | O27: =Archive4!AC4 -> 0 | P27: =Archive4!AD4 -> 0 | Q27: =Archive4!AE4 -> 0 | R27: =Archive4!AF4 -> 0 | S27: =Archive4!AG4 -> 0 | T27: =Archive4!AH4 -> 0 | U27: =Archive4!AI4 -> 0 | V27: =Archive4!AJ4 -> 0
A28: =Archive4!O5 -> 0 | B28: =Archive4!P5 -> 0 | C28: =Archive4!Q5 -> 0 | D28: =Archive4!R5 -> 0 | E28: =Archive4!S5 -> 0 | F28: =Archive4!T5 -> 0 | G28: =Archive4!U5 -> 0 | H28: =Archive4!V5 -> 0 | I28: =Archive4!W5 -> 0 | J28: =Archive4!X5 -> 0 | K28: =Archive4!Y5 -> 0 | L28: =Archive4!Z5 -> 0 | M28: =Archive4!AA5 -> 0 | N28: =Archive4!AB5 -> 0 | O28: =Archive4!AC5 -> 0 | P28: =Archive4!AD5 -> 0 | Q28: =Archive4!AE5 -> 0 | R28: =Archive4!AF5 -> 0 | S28: =Archive4!AG5 -> 0 | T28: =Archive4!AH5 -> 0 | U28: =Archive4!AI5 -> 0 | V28: =Archive4!AJ5 -> 0
A29: =Archive5!O4 -> 0 | B29: =Archive5!P4 -> 0 | C29: =Archive5!Q4 -> 0 | D29: =Archive5!R4 -> 0 | E29: =Archive5!S4 -> 0 | F29: =Archive5!T4 -> 0 | G29: =Archive5!U4 -> 0 | H29: =Archive5!V4 -> 0 | I29: =Archive5!W4 -> 0 | J29: =Archive5!X4 -> 0 | K29: =Archive5!Y4 -> 0 | L29: =Archive5!Z4 -> 0 | M29: =Archive5!AA4 -> 0 | N29: =Archive5!AB4 -> 0 | O29: =Archive5!AC4 -> 0 | P29: =Archive5!AD4 -> 0 | Q29: =Archive5!AE4 -> 0 | R29: =Archive5!AF4 -> 0 | S29: =Archive5!AG4 -> 0 | T29: =Archive5!AH4 -> 0 | U29: =Archive5!AI4 -> 0 | V29: =Archive5!AJ4 -> 0
A30: =Archive5!O5 -> 0 | B30: =Archive5!P5 -> 0 | C30: =Archive5!Q5 -> 0 | D30: =Archive5!R5 -> 0 | E30: =Archive5!S5 -> 0 | F30: =Archive5!T5 -> 0 | G30: =Archive5!U5 -> 0 | H30: =Archive5!V5 -> 0 | I30: =Archive5!W5 -> 0 | J30: =Archive5!X5 -> 0 | K30: =Archive5!Y5 -> 0 | L30: =Archive5!Z5 -> 0 | M30: =Archive5!AA5 -> 0 | N30: =Archive5!AB5 -> 0 | O30: =Archive5!AC5 -> 0 | P30: =Archive5!AD5 -> 0 | Q30: =Archive5!AE5 -> 0 | R30: =Archive5!AF5 -> 0 | S30: =Archive5!AG5 -> 0 | T30: =Archive5!AH5 -> 0 | U30: =Archive5!AI5 -> 0 | V30: =Archive5!AJ5 -> 0

Sheet recueil
A1: Diagnostic | B1: moment | C1: jour de naiss | D1: mois | E1: année | F1: langue | G1: finances | H1: logement | I1: état civil | J1: parents | K1: frères | L1: sœurs
A2: 1 | C2: =DAY(Accueil!B13) -> 0 | D2: =MONTH(Accueil!B13) -> 1 | E2: =YEAR(Accueil!B13) -> 1900
E3: =1939+E2 -> 3839 | K3: =IF($J$3=1,(L3-R12)*Accueil!$G$3*Accueil!$G$3/10,"") ->  | L3: 140 | M3: Silhouette perçue
B4: père | C4: mère | D4: vous | E4: sexe | F4: date | K4: =IF($J$3=1,(L4-R12)*Accueil!$G$3*Accueil!$G$3/10,"") ->  | L4: 140 | M4: Silhouette idéale
E5: 0 | K5: =IF($J$3=1,(L5-R12)*Accueil!$G$3*Accueil!$G$3/10,"") ->  | L5: 140 | M5: Silhouette moyenne
A7: hospitalisations | C7: durée
U9: age
A10: thérapie I | B10: type | C10: durée | D10: thérapie II | E10: type | F10: durée | G10: thérapie III | H10: type | I10: durée | R10: coefficient | U10: =(TODAY()-Accueil!B13)/365 -> 121.1315068
R11: IMC | U11: =U10/10 -> 12.11315068
R12: =IF(U10<15,(S12/2.1*U11)*100,0) -> 0 | S12: =COS(U11) -> 0.8990418786
A13: thérapie en cours | C13: type
A15: Evaluation diag et impact BN | D15: Evaluation diag et impact AM | G15: Facteurs d'entretien | N15: BN | P15: AN
A16: Fréquence | C16: =IF(ISBLANK(B16),"",B16-1) ->  | D16: seuil AM | F16: =IF(ISBLANK(E16),"",2-E16) ->  | G16: Désir de maigrir | H16: Q1 | J16: =IF(ISBLANK(I16),"",I16-1) ->  | K16: =IF(ISBLANK(I16),0,1) -> 0 | N16: =IF(ISBLANK(B16),0,1) -> 0 | P16: =IF(ISBLANK(E16),0,1) -> 0 | AQ16: =IF(ISBLANK(AP16),"",AP16-1) -> 
A17: Durée | D17: contrôle pds | F17: =IF(ISBLANK(E17),"",2-E17) ->  | H17: Q2 | J17: =IF(ISBLANK(I17),"",I17-1) ->  | K17: =IF(ISBLANK(I17),0,1) -> 0 | N17: =IF(ISBLANK(B17),0,1) -> 0 | P17: =IF(ISBLANK(E17),0,1) -> 0 | AQ17: =IF(ISBLANK(AP17),"",AP17-1) -> 
A18: vomissements | D18: évitement prise pds | F18: =IF(ISBLANK(E18),"",2-E18) ->  | H18: Q3 | K18: 0 | N18: 0 | P18: 0
A19: laxatifs | D19: vomissements | F19: =IF(ISBLANK(E19),"",E19-1) ->  | H19: Q4 | K19: 0 | N19: 0 | P19: 0
A20: diurétiques | D20: laxatifs | H20: Q5 | K20: 0 | N20: 0 | P20: 0
A21: restrictions | D21: diurétiques | H21: Q6 | K21: 0 | N21: 0 | P21: 0
A22: sélections | D22: repas | G22: Critiques envers le corps | H22: Q7 | K22: 0 | N22: 0 | P22: 0
A23: sports | D23: restrictions | H23: Q8 | K23: 0 | N23: 0 | P23: 0
A24: valeur perso | D24: sport | H24: Q9 | K24: 0 | N24: 0 | P24: 0
A25: dents | D25: phanères | H25: Q10 | K25: 0 | N25: 0 | P25: 0
A26: digestif | D26: digestif | H26: Q11 | K26: 0 | N26: 0 | P26: 0
A27: physique | D27: fatigue | H27: Q12 | K27: 0 | N27: 0 | P27: 0
A28: sexualité | D28: sexualité | G28: Restrictions | H28: Q13 | K28: 0 | N28: 0 | P28: 0
A29: humeur | D29: humeur | H29: Q14 | K29: 0 | N29: 0 | P29: 0
A30: anxiété | D30: anxiété | H30: Q15 | K30: 0 | N30: 0 | P30: 0
A31: irritabilité | D31: estime perso | H31: Q16 | K31: 0 | N31: 0 | P31: 0
A32: estime | D32: irritabilité | H32: Q17 | K32: 0 | N32: 0 | P32: 0
A33: concentration | D33: concentration | H33: Q18 | K33: 0 | N33: 0 | P33: 0
A34: sommeil | D34: sommeil | G34: Orthorexie | H34: Q19 | K34: 0 | N34: 0 | P34: 0
A35: produits | D35: produits | H35: Q20 | K35: 0 | N35: 0 | P35: 0
A36: travail | D36: travail | H36: Q21 | K36: 0 | N36: 0 | P36: 0
A37: argent | D37: activités | H37: Q22 | K37: 0 | N37: 0 | P37: 0
A38: famille | D38: famille | H38: Q23 | K38: 0 | N38: 0 | P38: 0
A39: ami | D39: amis | H39: Q24 | K39: 0 | N39: 0 | P39: 0
A40: amour | D40: amour | G40: Perfectionnisme | H40: Q25 | K40: 0 | N40: 0 | P40: 0
A41: perso | C41: =IF(ISBLANK(B41),"",B41-1) ->  | D41: souffrance | F41: =IF(ISBLANK(E41),"",E41-1) ->  | H41: Q26 | K41: 0 | N41: 0 | P41: 0
H42: Q27 | K42: 0 | N42: =SUM(N16:N41) -> 0 | P42: =SUM(P16:P41) -> 0
A43: Diagnostic | C43: =IF(ISBLANK(B16),"",(IF(C16*C17=0,"TROUBLE ABSENT OU INFRA-CLINIQUE",IF(C18+C19+C20+C23>2,"BOULIMIE","HYPERPHAGIE BOULIMIQUE")))) ->  | D43: Diagnostic | F43: =IF(ISBLANK(E16),"",(IF(F16*(F17+F18)=0,"TROUBLE ABSENT OU INFRA-CLINIQUE",IF(F19+F20+F21>1,"ANOREXIE AVEC CONDUITES DE PURGES","ANOREXIE RESTRICTIVE")))) ->  | H43: Q28 | K43: 0
A44: Incidence | B44: physique | C44: =SUM(C25+C26+C27+C28+C34)/15 ->  | D44: Incidence | E44: physique | F44: =SUM(F25+F26+F27+F28+F34)/15 ->  | H44: Q29 | K44: 0
B45: psychique | C45: =SUM(C29+C30+C31+C32+C33+C35)/18 ->  | E45: psychique | F45: =SUM(F29+F30+F31+F32+F33+F35)/18 ->  | H45: Q30 | K45: 0
B46: Sociale | C46: =SUM(C36:C40)/15 -> 0 | E46: sociale | F46: =SUM(F36:F40)/15 -> 0 | G46: Dépression | H46: Q31 | K46: 0
B47: Souffrance | C47: =C41/10 ->  | E47: souffrance | F47: =F41/10 ->  | H47: Q32 | K47: 0
H48: Q33 | K48: 0
H49: Q34 | K49: 0
H50: Q35 | K50: 0
A51: Diagnostic | C51: =(C43&F43) ->  | H51: Q36 | K51: 0
A52: Incidence | B52: physique | C52: =IF(ISBLANK(A2),"",(IF(A2<4,F44,C44))) ->  | G52: Anxiété | H52: Q37 | K52: 0
B53: psychique | C53: =IF(ISBLANK(A2),"",(IF(A2<4,F45,C45))) ->  | H53: Q38 | K53: 0
B54: sociale | C54: =IF(ISBLANK(A2),"",(IF(A2<4,F46,C46))) -> 0 | H54: Q39 | K54: 0 | AQ54: =SUM(AQ16:AQ53) -> 0
B55: Souffrance | C55: =IF(ISBLANK(A2),"",(IF(A2<4,F47,C47))) ->  | H55: Q40 | K55: 0
H56: Q41 | K56: 0
H57: Q42 | K57: 0
G58: Impulsivité | H58: Q43 | K58: 0
H59: Q44 | K59: 0
H60: Q45 | K60: 0
H61: Q46 | K61: 0
H62: Q47 | K62: 0
H63: Q48 | K63: 0
G64: Hypercontrôle | H64: Q49 | K64: 0
H65: Q50 | K65: 0
H66: Q51 | K66: 0
H67: Q52 | K67: 0
H68: Q53 | K68: 0
H69: Q54 | K69: 0
G70: Manque d'affirmation de soi | H70: Q55 | K70: 0
H71: Q56 | K71: 0
H72: Q57 | K72: 0
H73: Q58 | K73: 0
H74: Q59 | K74: 0
H75: Q60 | K75: 0
G76: Vie sociale et relationnelle | H76: Q61 | K76: 0
H77: Q62 | K77: 0
H78: Q63 | K78: 0
H79: Q64 | K79: 0
H80: Q65 | K80: 0
H81: Q66 | J81: =IF(ISBLANK(I81),"",I81-1) ->  | K81: =IF(ISBLANK(I81),0,1) -> 0
G82: Faible estime de soi | H82: Q67 | K82: 0
H83: Q68 | K83: 0
H84: Q69 | K84: 0
H85: Q70 | K85: 0
H86: Q71 | K86: 0
H87: Q72 | K87: 0
G88: Evitment de la maturité | H88: Q73 | K88: 0
H89: Q74 | K89: 0
H90: Q75 | K90: 0
H91: Q76 | K91: 0
H92: Q77 | K92: 0
H93: Q78 | K93: 0
G94: Manque de motivation | H94: Q79 | K94: 0
H95: Q80 | K95: 0
H96: Q81 | K96: 0
H97: Q82 | K97: 0
H98: Q83 | J98: =IF(I101=TRUE,0,I98-2) -> 0 | K98: 0
H99: Q84 | J99: =IF(I100=TRUE,0,I99-2) -> 0 | K99: 0
I100: =IF(I99<3,TRUE,FALSE) -> TRUE | K100: =SUM(K16:K99) -> 0
I101: =IF(I98<3,TRUE,FALSE) -> TRUE

Sheet Archive1

Sheet Archive2

Sheet Archive3

Sheet Archive4

Sheet Archive5

Sheet listes
A1: Anorexie Mentale Restrictive (F50.0) | C1: NC | H1: 0 | K1: Féminin | M1: Oui
A2: Anorexie Mentale avec purge (F50.0) | C2: 1 | E2: Consultation préalable | H2: 1 | I2: janvier | J2: 1940 | K2: Masculin | M2: Mon poids est à ce seuil
A3: Anorexie atypique (F50.1) | C3: 2 | E3: Entrée en hospitalisation | H3: 2 | I3: février | J3: 1941 | M3: Non | O3: 0 | Q3: 0
A4: Boulimie avec purge (F50.2) | C4: 3 | E4: Sortie d'hospitalisation | H4: 3 | I4: mars | J4: 1942 | K4: =L4/964*K5 -> 107.4688797 | L4: 1036 | O4: 1 | P4: Anorexie mentale restrictive IMC faible (6B80.00) | Q4: 1
A5: Boulimie sans purge (F50.2) | C5: 4 | E5: Pré-test ambulatoire | H5: 4 | I5: avril | J5: 1943 | K5: 100 | L5: 658 | M5: Oui | O5: 2 | P5: Anorexie mentale avec crises/purges IMC faible (6B80.01) | Q5: 2
A6: Hyperphagie Boulimique (F50.4) | C6: 5 et + | E6: Bilan intermédiaire 1 | H6: 5 | I6: mai | J6: 1944 | K6: 56 | M6: Non | O6: 3 | P6: Anorexie mentale restrictive IMC < 14,0 (6B80.10) | Q6: 3
A7: Boulimie atypique (F50.3) | E7: Bilan intermédiaire 2 | H7: 6 | I7: juin | J7: 1945 | K7: =L5/530*K6 -> 69.5245283 | O7: 4 | P7: Anorexie mentale avec crises/purges IMC < 14,0 (6B80.11) | Q7: 4
A8: TCA non spécifié (F50.9) | E8: Bilan intermédiaire 3 | H8: 7 | I8: juillet | J8: 1946 | O8: 5 | P8: Anorexie mentale en rémission IMC > 18,5 (6B80.2) | Q8: 5
E9: Fin de traitement | H9: 8 | I9: août | J9: 1947 | O9: 6 | P9: Anorexie mentale non spécifiée (6B80.Z) | Q9: 6
A10: Moins de 3 mois | E10: Post-test | H10: 9 | I10: septembre | J10: 1948 | O10: 7 | P10: Boulimie (6B81) | Q10: 7
A11: De 3 à 6 mois | B11: Français | D11: propre salaire | E11: autre | F11: célibataire | H11: 10 | I11: octobre | J11: 1949 | O11: 8 | P11: Accès hyperphagiques (6B82) | Q11: 8
A12: De 6 mois à 2 ans | B12: Allemand | D12: soutien des parents | F12: vie maritale | H12: 11 | I12: novembre | J12: 1950 | O12: 9 | P12: Restriction/évitement de l'ingestion d'aliments (6B83) | Q12: 9
A13: Plus de 2 ans | B13: Italien | D13: bourse | F13: marié(e) | H13: 12 | I13: décembre | J13: 1951 | O13: 10 | P13: Pica (6B84) | Q13: 10
B14: Anglais | D14: autre | F14: séparé(e) ou divorcé(e) | H14: 13 | I14: janvier | J14: 1952 | O14: 11 | P14: Mérycisme (6B85) | Q14: 11
A15: Jamais | B15: Espagnol | F15: veuf(ve) | H15: 14 | I15: février | J15: 1953 | O15: 12 | P15: Syndrome d'alimentation nocturne (6B8Y) | Q15: 12
A16: Parfois (moins d'une fois sur deux) | B16: Arabe | H16: 15 | I16: mars | J16: 1954 | O16: 13 | P16: Trouble purgatif (6B8Y) | Q16: 13
A17: Souvent (plus d'une fois sur deux) | B17: Autre | H17: 16 | I17: avril | J17: 1955 | O17: 14 | P17: Autre TCA non spécifié (6B8Z)
A18: A chaque crise | H18: 17 | I18: mai | J18: 1956 | L18: 1 | M18: -
A19: A chaque crise et à certains repas | H19: 18 | I19: juin | J19: 1957 | L19: 2 | M19: Maigreur
B20: seul(e) | D20: mariés | F20: aucun | H20: 19 | I20: juillet | J20: 1958 | L20: 3 | M20: Rondeurs | P20: Normes | Q20: grossir | R20: =4.38/30 -> 0.146
A21: Jamais | B21: avec vos parents | D21: séparés ou divorcés | F21: CAP | H21: 20 | I21: août | J21: 1959 | L21: 4 | M21: Surpoids
A22: Parfois | B22: en couple | D22: vie maritale | F22: BEPC | H22: 21 | I22: septembre | J22: 1960 | L22: 5 | M22: Boulimie
A23: Souvent | B23: en collocation | D23: père décédé | F23: 1ère | H23: 22 | I23: octobre | J23: 1961 | L23: 6 | M23: Anorexie
A24: Quotidiennement | B24: en foyer | D24: mère décédée | F24: 2nde | H24: 23 | I24: novembre | J24: 1962
B25: sans domicile | D25: tous deux décédés | F25: BAC | H25: 24 | I25: décembre | J25: 1963
A26: Je prends 3 repas et 1 collation chaque jour | D26: père inconnu | F26: BAC + 1 | H26: 25 | J26: 1964 | L26: Tout à fait d'accord
A27: Je saute un de ces repas régulièrement | B27: Agriculteurs exploitants | D27: mère inconnue | F27: BAC + 2 | H27: 26 | J27: 1965 | L27: Plutôt d'accord
A28: Je saute deux de ces repas régulièrement | B28: Artisans, commerçants et chefs d'entreprise | D28: tous deux inconnus | F28: BAC + 3 | H28: 27 | J28: 1966 | L28: Plutôt en désaccord
A29: Je saute trois de ces repas régulièrement | B29: Cadres et professions intellectuelles supérieures | F29: BAC + 4 | H29: 28 | J29: 1967 | L29: Tout à fait en désaccord
A30: Je mange indifféremment de tout | B30: Professions Intermédiaires | F30: BAC + 5 | H30: 29 | J30: 1968
A31: J'évite les graisses | B31: Employés | D31: psychothérapie classique | F31: BAC + 6 | G31: en individuel | H31: 30 | J31: 1969 | L31: Non concerné(e)
A32: J'évite les sucres et les féculents | B32: Ouvriers | D32: psychanalyse | F32: > BAC + 6 | G32: en groupe | H32: 31 | J32: 1970 | L32: Ne me correspond pas du tout
A33: J'évite les graisses et les sucres | B33: Etudiants | D33: thérapie rogérienne | G33: autre | J33: 1971 | L33: Me correspond un peu
A34: J'évite tous les aliments riches | B34: Retraités | D34: gestalt | J34: 1972 | L34: Me correspond moyennement
B35: Autres personnes sans activité professionnelle | D35: thérapie de famille | J35: 1973 | L35: Me correspond beaucoup
A36: Non, pas particulièrement | D36: TCC | J36: 1974 | L36: Me correspond tout à fait
A37: Oui, un peu | D37: relaxation | J37: 1975
A38: Oui, considérablement | D38: hypnose | J38: 1976
A39: Totalement | D39: TIP | J39: 1977
D40: autre | J40: 1978
A41: Nul | J41: 1979
A42: Modeste | J42: 1980
A43: Important | B43: Moins de 1 par semaine | E43: Toujours | G43: Absolument faux | J43: 1981
A44: Considérable | B44: De 1 à 3 par semaine | E44: En général | G44: A été vrai dans le passé | J44: 1982
A45: Non concerné | B45: De 4 à 6 par semaine | E45: Souvent | G45: Vrai de temps en temps | J45: 1983
B46: De 1 à 2 par jour | E46: Quelquefois | G46: Moyennement vrai | J46: 1984
B47: Plus de 2 par jour | E47: Rarement | G47: Généralement vrai | J47: 1985
E48: Jamais | G48: Parfaitement vrai | J48: 1986
J49: 1987
J50: 1988
A51: Jamais | J51: 1989
A52: Rarement (moins d'une fois par semaine) | D52: Vrai maintenant et quand j'étais jeune | J52: 1990
A53: Parfois (une à deux fois par semaine) | D53: Vrai seulement maintenant | J53: 1991
A54: Souvent (au moins deux fois par semaine) | D54: Vrai seulement avant mes 16 ans | J54: 1992
A55: Quotidiennement (une fois par jour ou plus) | D55: Jamais vrai | J55: 1993
J56: 1994
A57: Non, pas particulièrement | J57: 1995
A58: Parfois (moins d'une heure par semaine) | J58: 1996
A59: Souvent (1 à 6 heures par semaine) | J59: 1997
A60: Quotidiennement (une heure par jour) | J60: 1998
A61: Fréquemment (plus d'une heure par jour) | J61: 1999
J62: 2000
A64: Nul (ou ne me concerne pas)
A65: Modeste (moins d'intérêt pour la sexualité)
A66: Important (peu d'intérêt pour la sexualité)
A67: Considérable (aucun intérêt pour la sexualité)
A68: Non concerné
A71: Inventaire d'anxiété
A72: Non
A73: Plutôt non
A74: Plutôt oui
A75: Oui
A76: Non
A78: Plutôt vrai
A79: Plutôt faux

Sheet IMC d'équilibre
A1: CODE | B1: ='Courbe In'!A2 ->  | F1: Age en mois | G1: Mini Normal | H1: IMC anorexie | I1: IMC dangereux | J1: Max normal | K1: Hospit | L1: IMC d'équilibre | M1: IMC de sortie | N1: IMC dangereux
A2: Prénom | B2: ='Courbe In'!A4 -> 0 | F2: 12 | G2: ='Courbe IMC'!C51 -> 16.072 | H2: =G2*17/18.5 -> 14.76886486 | I2: =G2*15/18.5 -> 13.03135135 | J2: ='Courbe IMC'!C$48 -> 18.9115 | K2: =G2*16/18.5 -> 13.90010811 | L2: ='Courbe IMC'!C5 -> 16.4 | M2: =L2*16/19 -> 13.81052632 | N2: =L2*14.5/19 -> 12.51578947
F3: 13 | G3: =G2-((G$2-G$14)/12) -> 16.00316667 | H3: =G3*17/18.5 -> 14.70561261 | I3: =G3*15/18.5 -> 12.97554054 | J3: =J2-((J2-J14)/12) -> 18.81091667 | K3: =G3*16/18.5 -> 13.84057658 | L3: =(L2-L14)/12+L14 -> 15.8005 | M3: =(M2-M14)/12+M14 -> 13.30568421 | N3: =(N2-N14)/12+N14 -> 12.05827632
B4: Années | C4: mois | D4: Age en mois | E4: Age exact | F4: 14 | G4: =G3-(($G$2-$G$14)/12) -> 15.93433333 | H4: 14.64236036 | I4: 12.91972973 | J4: =J3-((J$2-J$14)/12) -> 18.71033333 | K4: 13.78104505 | L4: =(L2-L14)*2/12+L14 -> 15.855 | M4: =(M2-M14)*2/12+M14 -> 13.35157895 | N4: =(N2-N14)*2/12+N14 -> 12.09986842
A5: Age | B5: =TRUNC(D5/12) -> 121 | C5: =D5-B5*12 -> 1.896744492 | D5: =TRUNC(Accueil!B3-'Courbe In'!A6)/30.41 -> 1453.896744 | E5: =('Courbe In'!D3-'Courbe In'!A6)/30.41 -> 1453.896744 | F5: 15 | G5: 15.8655 | H5: 14.57910811 | I5: 12.86391892 | J5: 18.60975 | K5: 13.72151351 | L5: =(L2-L14)*3/12+L14 -> 15.9095 | M5: =(M2-M14)*3/12+M14 -> 13.39747368 | N5: =(N2-N14)*3/12+N14 -> 12.14146053
A6: Sexe | B6: F | C6: M | F6: 16 | G6: 15.79666667 | H6: 14.51585586 | I6: 12.80810811 | J6: 18.50916667 | K6: 13.66198198 | L6: =(L2-L14)*4/12+L14 -> 15.964 | M6: =(M2-M14)*4/12+M14 -> 13.44336842 | N6: =(N2-N14)*4/12+N14 -> 12.18305263
A7: IMC d'équilibre | B7: =D12/B8*B8 ->  | C7: =(VLOOKUP(D5,F:N,6)+(VLOOKUP(D5+1,F:N,6)-VLOOKUP(D5,F:N,6))*(E5-D5))*B41+(L254+(E5-264)*5.8/(12*58))*B42*B43+(L254+5.8)*B44 -> 24.8 | F7: 17 | G7: 15.72783333 | H7: 14.4526036 | I7: 12.7522973 | J7: 18.40858333 | K7: 13.60245045 | L7: =(L2-L14)*5/12+L17 -> 15.8589 | M7: =(M2-M14)*5/12+M17 -> 13.35486316 | N7: =(N2-N14)*5/12+N14 -> 12.22464474
A8: Taille en mètres | B8: ='Courbe In'!B7 ->  | C8: ='Courbe In'!B7 ->  | F8: 18 | G8: 15.659 | H8: 14.38935135 | I8: 12.69648649 | J8: 18.308 | K8: 13.54291892 | L8: =(L2-L14)*6/12+L14 -> 16.073 | M8: =(M2-M14)*6/12+M14 -> 13.53515789 | N8: =(N2-N14)*6/12+N14 -> 12.26623684
F9: 19 | G9: 15.59016667 | H9: 14.3260991 | I9: 12.64067568 | J9: 18.20741667 | K9: 13.48338739 | L9: =(L2-L14)*7/12+L14 -> 16.1275 | M9: =(M2-M14)*7/12+M14 -> 13.58105263 | N9: =(N2-N14)*7/12+N14 -> 12.30782895
A10: Poids dangereux | B10: =((VLOOKUP(D5,F:I,4)+(VLOOKUP(D5+1,F:I,4)-VLOOKUP(D5,F:I,4))*(E5-D5))*B41+(19+(E5-264)*2/(12*58))*14.5/19*B42*B43+24.8*B44*14.5/19)*B8*B8 ->  | C10: =((VLOOKUP(D5,F:N,8)+(VLOOKUP(D5+1,F:N,8)-VLOOKUP(D5,F:N,8))*(E5-D5))*B41+(L254+(E5-264)*2/(12*58))*14.5/19*B42*B43+(L254+5.8)*B44*14.5/19)*C8*C8 ->  | D10: =(VLOOKUP(INT(D5),F:I,4))*B8*B8 ->  | F10: 20 | G10: 15.52133333 | H10: 14.26284685 | I10: 12.58486486 | J10: 18.10683333 | K10: 13.42385586 | L10: =(L2-L14)*8/12+L14 -> 16.182 | M10: =(M2-M14)*8/12+M14 -> 13.62694737 | N10: =(N2-N14)*8/12+N14 -> 12.34942105
A11: Poids de sortie | B11: =((VLOOKUP(D5,F:I,3)+(VLOOKUP(D5+1,F:I,3)-VLOOKUP(D5,F:I,3))*(E5-D5))*B41+(19+(E5-264)*2/(12*58))*16/19*B42*B43+24.8*B44*16/19)*B8*B8 ->  | C11: =((VLOOKUP(D5,F:N,7)+(VLOOKUP(D5+1,F:N,7)-VLOOKUP(D5,F:N,7))*(E5-D5))*B41+(L254+(E5-264)*2/(12*58))*16/19*B42*B43+(L254+5.8)*B44*16/19)*C8*C8 ->  | D11: =VLOOKUP(INT(D5),F:I,3)*B8*B8 ->  | F11: 21 | G11: 15.4525 | H11: 14.19959459 | I11: 12.52905405 | J11: 18.00625 | K11: 13.36432432 | L11: =(L2-L14)*9/12+L14 -> 16.2365 | M11: =(M2-M14)*9/12+M14 -> 13.67284211 | N11: =(N2-N14)*9/12+N14 -> 12.39101316
A12: Poids d'équilibre | B12: =((VLOOKUP(D5,F:I,2)+(VLOOKUP(D5+1,F:I,2)-VLOOKUP(D5,F:I,2))*(E5-D5))*B41+(G254+(E5-264)*2/(12*58))*B42*B43+(G254+5.8)*B44)*B8*B8 ->  | C12: =((VLOOKUP(D5,F:N,6)+(VLOOKUP(D5+1,F:N,6)-VLOOKUP(D5,F:N,6))*(E5-D5))*B41+(L254+(E5-264)*2/(12*58))*B42*B43+(L254+5.8)*B44)*C8*C8 ->  | D12: =(VLOOKUP(INT($D$5),$F:$J,2)*$B$8*$B$8) ->  | E12: =(VLOOKUP(INT($D$5),$F:$J,5)*$B$8*$B$8) ->  | F12: 22 | G12: 15.38366667 | H12: 14.13634234 | I12: 12.47324324 | J12: 17.90566667 | K12: 13.30479279 | L12: =(L2-L14)*10/12+L14 -> 16.291 | M12: =(M2-M14)*10/12+M14 -> 13.71873684 | N12: =(N2-N14)*10/12+N14 -> 12.43260526
F13: 23 | G13: 15.31483333 | H13: 14.07309009 | I13: 12.41743243 | J13: 17.80508333 | K13: 13.24526126 | L13: =(L2-L14)*11/12+L14 -> 16.3455 | M13: =(M2-M14)*11/12+M14 -> 13.76463158 | N13: =(N2-N14)*11/12+N14 -> 12.47419737
A14: Date | B14: =NOW() -> 2021-01-17T16:05:21.520 | E14: 2 | F14: 24 | G14: ='Courbe IMC'!D51 -> 15.246 | H14: 14.00983784 | I14: 12.36162162 | J14: ='Courbe IMC'!D$48 -> 17.7045 | K14: 13.18572973 | L14: =G14+0.5 -> 15.746 | M14: =L14*16/19 -> 13.25978947 | N14: =L14*14.5/19 -> 12.01668421
F15: 25 | G15: =G14-(($G$14-$G$26)/12) -> 15.1928 | H15: 13.96095135 | I15: 12.31848649 | J15: =J14-((J$14-J$26)/12) -> 17.67345833 | K15: 13.13971892 | L15: =L14-(L14-L26)/12 -> 15.6928 | M15: =M14-(M14-M26)/12 -> 13.21498947 | N15: =N14-(N14-N26)/12 -> 11.97608421
A16: au bout d'un mois | F16: 26 | G16: =G15-(($G$14-$G$26)/12) -> 15.1396 | H16: 13.91206486 | I16: 12.27535135 | J16: =J15-((J$14-J$26)/12) -> 17.64241667 | K16: 13.09370811 | L16: =L15-(L14-L26)/12 -> 15.6396 | M16: =M15-(M14-M26)/12 -> 13.17018947 | N16: =N15-(N14-N26)/12 -> 11.93548421
A17: Poids dangereux | B17: =((VLOOKUP(D5+1,F:I,4)+(VLOOKUP(D5+2,F:I,4)-VLOOKUP(D5+1,F:I,4))*(E5-D5))*B41+(19+(E5-264)*2/(12*58))*14.5/19*B42*B43+24.8*B44*14.5/19)*B8*B8 ->  | C17: =((VLOOKUP(D5+1,F:N,8)+(VLOOKUP(D5+2,F:N,8)-VLOOKUP(D5+1,F:N,8))*(E5-D5))*B41+(L254+(E5-264)*2/(12*58))*14.5/19*B42*B43+(L254+5.8)*B44*14.5/19)*C8*C8 ->  | F17: 27 | G17: 15.0864 | H17: 13.86317838 | I17: 12.23221622 | J17: 17.611375 | K17: 13.0476973 | L17: =L16-(L14-L26)/12 -> 15.5864 | M17: =M16-(M14-M26)/12 -> 13.12538947 | N17: =N16-(N14-N26)/12 -> 11.89488421
A18: Poids de sortie | B18: =((VLOOKUP(D5+1,F:I,3)+(VLOOKUP(D5+2,F:I,3)-VLOOKUP(D5+1,F:I,3))*(E5-D5))*B41+(19+(E5-264)*2/(12*58))*16/19*B42*B43+24.8*B44*16/19)*B8*B8 ->  | C18: =((VLOOKUP(D5+1,F:N,7)+(VLOOKUP(D5+2,F:N,7)-VLOOKUP(D5+1,F:N,7))*(E5-D5))*B41+(L254+(E5-264)*2/(12*58))*16/19*B42*B43+(L254+5.8)*B44*16/19)*C8*C8 ->  | F18: 28 | G18: 15.0332 | H18: 13.81429189 | I18: 12.18908108 | J18: 17.58033333 | K18: 13.00168649 | L18: =L17-(L14-L26)/12 -> 15.5332 | M18: =M17-(M14-M26)/12 -> 13.08058947 | N18: =N17-(N14-N26)/12 -> 11.85428421
A19: Poids d'équilibre | B19: =((VLOOKUP(D5+1,F:I,2)+(VLOOKUP(D5+2,F:I,2)-VLOOKUP(D5+1,F:I,2))*(E5-D5))*B41+(G254+(E5-264)*2/(12*58))*B42*B43+(G254+5.8)*B44)*B8*B8 ->  | C19: =((VLOOKUP(D5+1,F:N,6)+(VLOOKUP(D5+2,F:N,6)-VLOOKUP(D5+1,F:N,6))*(E5-D5))*B41+(L254+(E5-264)*2/(12*58))*B42*B43+(L254+5.8)*B44)*C8*C8 ->  | F19: 29 | G19: 14.98 | H19: 13.76540541 | I19: 12.14594595 | J19: 17.54929167 | K19: 12.95567568 | L19: =L18-(L14-L26)/12 -> 15.48 | M19: =M18-(M14-M26)/12 -> 13.03578947 | N19: =N18-(N14-N26)/12 -> 11.81368421
F20: 30 | G20: 14.9268 | H20: 13.71651892 | I20: 12.10281081 | J20: 17.51825 | K20: 12.90966486 | L20: =L19-(L14-L26)/12 -> 15.4268 | M20: =M19-(M14-M26)/12 -> 12.99098947 | N20: =N19-(N14-N26)/12 -> 11.77308421
A21: au bout de deux mois | F21: 31 | G21: 14.8736 | H21: 13.66763243 | I21: 12.05967568 | J21: 17.48720833 | K21: 12.86365405 | L21: =L20-(L14-L26)/12 -> 15.3736 | M21: =M20-(M14-M26)/12 -> 12.94618947 | N21: =N20-(N14-N26)/12 -> 11.73248421
A22: Poids dangereux | B22: =((VLOOKUP(D5+2,F:I,4)+(VLOOKUP(D5+3,F:I,4)-VLOOKUP(D5+2,F:I,4))*(E5-D5))*B41+(19+(E5-264)*2/(12*58))*14.5/19*B42*B43+24.8*B44*14.5/19)*B8*B8 ->  | C22: =((VLOOKUP(D5+2,F:N,8)+(VLOOKUP(D5+3,F:N,8)-VLOOKUP(D5+2,F:N,8))*(E5-D5))*B41+(L254+(E5-264)*2/(12*58))*14.5/19*B42*B43+(L254+5.8)*B44*14.5/19)*C8*C8 ->  | F22: 32 | G22: 14.8204 | H22: 13.61874595 | I22: 12.01654054 | J22: 17.45616667 | K22: 12.81764324 | L22: =L21-(L14-L26)/12 -> 15.3204 | M22: =M21-(M14-M26)/12 -> 12.90138947 | N22: =N21-(N14-N26)/12 -> 11.69188421
A23: Poids de sortie | B23: =((VLOOKUP(D5+2,F:I,3)+(VLOOKUP(D5+3,F:I,3)-VLOOKUP(D5+2,F:I,3))*(E5-D5))*B41+(19+(E5-264)*2/(12*58))*16/19*B42*B43+24.8*B44*16/19)*B8*B8 ->  | C23: =((VLOOKUP(D5+2,F:N,7)+(VLOOKUP(D5+3,F:N,7)-VLOOKUP(D5+2,F:N,7))*(E5-D5))*B41+(L254+(E5-264)*2/(12*58))*16/19*B42*B43+(L254+5.8)*B44*16/19)*C8*C8 ->  | F23: 33 | G23: 14.7672 | H23: 13.56985946 | I23: 11.97340541 | J23: 17.425125 | K23: 12.77163243 | L23: =L22-(L14-L26)/12 -> 15.2672 | M23: =M22-(M14-M26)/12 -> 12.85658947 | N23: =N22-(N14-N26)/12 -> 11.65128421
A24: Poids d'équilibre | B24: =((VLOOKUP(D5+2,F:I,2)+(VLOOKUP(D5+3,F:I,2)-VLOOKUP(D5+2,F:I,2))*(E5-D5))*B41+(G254+(E5-264)*2/(12*58))*B42*B43+(G254+5.8)*B44)*B8*B8 ->  | C24: =((VLOOKUP(D5+2,F:N,6)+(VLOOKUP(D5+3,F:N,6)-VLOOKUP(D5+2,F:N,6))*(E5-D5))*B41+(L254+(E5-264)*2/(12*58))*B42*B43+(L254+5.8)*B44)*C8*C8 ->  | F24: 34 | G24: 14.714 | H24: 13.52097297 | I24: 11.93027027 | J24: 17.39408333 | K24: 12.72562162 | L24: =L23-(L14-L26)/12 -> 15.214 | M24: =M23-(M14-M26)/12 -> 12.81178947 | N24: =N23-(N14-N26)/12 -> 11.61068421
F25: 35 | G25: 14.6608 | H25: 13.47208649 | I25: 11.88713514 | J25: 17.36304167 | K25: 12.67961081 | L25: =L24-(L14-L26)/12 -> 15.1608 | M25: =M24-(M14-M26)/12 -> 12.76698947 | N25: =N24-(N14-N26)/12 -> 11.57008421
A26: au bout de trois mois | E26: 3 | F26: 36 | G26: ='Courbe IMC'!E$51 -> 14.6076 | H26: 13.4232 | I26: 11.844 | J26: ='Courbe IMC'!E$48 -> 17.332 | K26: 12.6336 | L26: =G26+0.5 -> 15.1076 | M26: =L26*16/19 -> 12.72218947 | N26: =L26*14.5/19 -> 11.52948421
A27: Poids dangereux | B27: =((VLOOKUP(D5+3,F:I,4)+(VLOOKUP(D5+4,F:I,4)-VLOOKUP(D5+3,F:I,4))*(E5-D5))*B41+(19.025+(E5-264)*2/(12*58))*14.5/19*B42*B43+24.825*B44*14.5/19)*B8*B8 ->  | C27: =((VLOOKUP(D5+3,F:N,8)+(VLOOKUP(D5+4,F:N,8)-VLOOKUP(D5+3,F:N,8))*(E5-D5))*B41+(L254+0.025+(E5-264)*2/(12*58))*14.5/19*B42*B43+(L254+5.825)*B44*14.5/19)*C8*C8 ->  | F27: 37 | G27: =G26-((G$26-G$38)/12) -> 14.582925 | H27: 13.40052568 | I27: 11.82399324 | J27: =J26-((J$26-J$38)/12) -> 17.30905833 | K27: 12.61225946 | L27: =L26-(L26-L38)/12 -> 15.082925 | M27: =M26-(M26-M38)/12 -> 12.70141053 | N27: =N26-(N26-N38)/12 -> 11.51065329
A28: Poids de sortie | B28: =((VLOOKUP(D5+3,F:I,3)+(VLOOKUP(D5+4,F:I,3)-VLOOKUP(D5+3,F:I,3))*(E5-D5))*B41+(19.025+(E5-264)*2/(12*58))*16/19*B42*B43+24.825*B44*16/19)*B8*B8 ->  | C28: =((VLOOKUP(D5+3,F:N,7)+(VLOOKUP(D5+4,F:N,7)-VLOOKUP(D5+3,F:N,7))*(E5-D5))*B41+(L254+0.025+(E5-264)*2/(12*58))*16/19*B42*B43+(L254+5.825)*B44*16/19)*C8*C8 ->  | F28: 38 | G28: =G27-((G$26-G$38)/12) -> 14.55825 | H28: 13.37785135 | I28: 11.80398649 | J28: =J27-((J$26-J$38)/12) -> 17.28611667 | K28: 12.59091892 | L28: =L27-(L26-L38)/12 -> 15.05825 | M28: =M27-(M26-M38)/12 -> 12.68063158 | N28: =N27-(N26-N38)/12 -> 11.49182237
A29: Poids d'équilibre | B29: =((VLOOKUP(D5+3,F:I,2)+(VLOOKUP(D5+4,F:I,2)-VLOOKUP(D5+3,F:I,2))*(E5-D5))*B41+(G254+0.025+(E5-264)*2/(12*58))*B42*B43+(G254+5.825)*B44)*B8*B8 ->  | C29: =((VLOOKUP(D5+3,F:N,6)+(VLOOKUP(D5+4,F:N,6)-VLOOKUP(D5+3,F:N,6))*(E5-D5))*B41+(L254+0.025+(E5-264)*2/(12*58))*B42*B43+(L254+5.825)*B44)*C8*C8 ->  | F29: 39 | G29: 14.533575 | H29: 13.35517703 | I29: 11.78397973 | J29: 17.263175 | K29: 12.56957838 | L29: =L28-(L26-L38)/12 -> 15.033575 | M29: =M28-(M26-M38)/12 -> 12.65985263 | N29: =N28-(N26-N38)/12 -> 11.47299145
F30: 40 | G30: 14.5089 | H30: 13.3325027 | I30: 11.76397297 | J30: 17.24023333 | K30: 12.54823784 | L30: =L29-(L26-L38)/12 -> 15.0089 | M30: =M29-(M26-M38)/12 -> 12.63907368 | N30: =N29-(N26-N38)/12 -> 11.45416053
A31: au bout de quatre mois | F31: 41 | G31: 14.484225 | H31: 13.30982838 | I31: 11.74396622 | J31: 17.21729167 | K31: 12.5268973 | L31: =L30-(L26-L38)/12 -> 14.984225 | M31: =M30-(M26-M38)/12 -> 12.61829474 | N31: =N30-(N26-N38)/12 -> 11.43532961
A32: Poids dangereux | B32: =((VLOOKUP(D5+4,F:I,4)+(VLOOKUP(D5+5,F:I,4)-VLOOKUP(D5+4,F:I,4))*(E5-D5))*B41+(19.025+(E5-264)*2/(12*58))*14.5/19*B42*B43+24.825*B44*14.5/19)*B8*B8 ->  | C32: =((VLOOKUP(D5+4,F:N,8)+(VLOOKUP(D5+5,F:N,8)-VLOOKUP(D5+4,F:N,8))*(E5-D5))*B41+(L254+0.025+(E5-264)*2/(12*58))*14.5/19*B42*B43+(L254+5.825)*B44*14.5/19)*C8*C8 ->  | F32: 42 | G32: 14.45955 | H32: 13.28715405 | I32: 11.72395946 | J32: 17.19435 | K32: 12.50555676 | L32: =L31-(L26-L38)/12 -> 14.95955 | M32: =M31-(M26-M38)/12 -> 12.59751579 | N32: =N31-(N26-N38)/12 -> 11.41649868
A33: Poids de sortie | B33: =((VLOOKUP(D5+4,F:I,3)+(VLOOKUP(D5+5,F:I,3)-VLOOKUP(D5+4,F:I,3))*(E5-D5))*B41+(19.025+(E5-264)*2/(12*58))*16/19*B42*B43+24.825*B44*16/19)*B8*B8 ->  | C33: =((VLOOKUP(D5+4,F:N,7)+(VLOOKUP(D5+5,F:N,7)-VLOOKUP(D5+4,F:N,7))*(E5-D5))*B41+(L254+0.025+(E5-264)*2/(12*58))*16/19*B42*B43+(L254+5.825)*B44*16/19)*C8*C8 ->  | F33: 43 | G33: 14.434875 | H33: 13.26447973 | I33: 11.7039527 | J33: 17.17140833 | K33: 12.48421622 | L33: =L32-(L26-L38)/12 -> 14.934875 | M33: =M32-(M26-M38)/12 -> 12.57673684 | N33: =N32-(N26-N38)/12 -> 11.39766776
A34: Poids d'équilibre | B34: =((VLOOKUP(D5+4,F:I,2)+(VLOOKUP(D5+5,F:I,2)-VLOOKUP(D5+4,F:I,2))*(E5-D5))*B41+(G254+0.025+(E5-264)*2/(12*58))*B42*B43+(G254+5.825)*B44)*B8*B8 ->  | C34: =((VLOOKUP(D5+4,F:N,6)+(VLOOKUP(D5+5,F:N,6)-VLOOKUP(D5+4,F:N,6))*(E5-D5))*B41+(L254+0.025+(E5-264)*2/(12*58))*B42*B43+(L254+5.825)*B44)*C8*C8 ->  | F34: 44 | G34: 14.4102 | H34: 13.24180541 | I34: 11.68394595 | J34: 17.14846667 | K34: 12.46287568 | L34: =L33-(L26-L38)/12 -> 14.9102 | M34: =M33-(M26-M38)/12 -> 12.55595789 | N34: =N33-(N26-N38)/12 -> 11.37883684
F35: 45 | G35: 14.385525 | H35: 13.21913108 | I35: 11.66393919 | J35: 17.125525 | K35: 12.44153514 | L35: =L34-(L26-L38)/12 -> 14.885525 | M35: =M34-(M26-M38)/12 -> 12.53517895 | N35: =N34-(N26-N38)/12 -> 11.36000592
A36: au bout de cinq mois | F36: 46 | G36: 14.36085 | H36: 13.19645676 | I36: 11.64393243 | J36: 17.10258333 | K36: 12.42019459 | L36: =L35-(L26-L38)/12 -> 14.86085 | M36: =M35-(M26-M38)/12 -> 12.5144 | N36: =N35-(N26-N38)/12 -> 11.341175
A37: Poids dangereux | B37: =((VLOOKUP(D5+5,F:I,4)+(VLOOKUP(D5+6,F:I,4)-VLOOKUP(D5+5,F:I,4))*(E5-D5))*B41+(19.025+(D5-264)*2/(12*58))*14.5/19*B42*B43+24.825*B44*14.5/19)*B8*B8 ->  | C37: =((VLOOKUP(D5+5,F:N,8)+(VLOOKUP(D5+6,F:N,8)-VLOOKUP(D5+5,F:N,8))*(E5-D5))*B41+(L254+0.025+(E5-264)*2/(12*58))*14.5/19*B42*B43+(L254+5.825)*B44*14.5/19)*C8*C8 ->  | F37: 47 | G37: 14.336175 | H37: 13.17378243 | I37: 11.62392568 | J37: 17.07964167 | K37: 12.39885405 | L37: =L36-(L26-L38)/12 -> 14.836175 | M37: =M36-(M26-M38)/12 -> 12.49362105 | N37: =N36-(N26-N38)/12 -> 11.32234408
A38: Poids de sortie | B38: =((VLOOKUP(D5+5,F:I,3)+(VLOOKUP(D5+6,F:I,3)-VLOOKUP(D5+5,F:I,3))*(E5-D5))*B41+(19.025+(E5-264)*2/(12*58))*16/19*B42*B43+24.825*B44*16/19)*B8*B8 ->  | C38: =((VLOOKUP(D5+5,F:N,7)+(VLOOKUP(D5+6,F:N,7)-VLOOKUP(D5+5,F:N,7))*(E5-D5))*B41+(L254+0.025+(E5-264)*2/(12*58))*16/19*B42*B43+(L254+5.825)*B44*16/19)*C8*C8 ->  | E38: 4 | F38: 48 | G38: ='Courbe IMC'!F$51 -> 14.3115 | H38: 13.15110811 | I38: 11.60391892 | J38: ='Courbe IMC'!F$48 -> 17.0567 | K38: 12.37751351 | L38: =G38+0.5 -> 14.8115 | M38: =L38*16/19 -> 12.47284211 | N38: =L38*14.5/19 -> 11.30351316
A39: Poids d'équilibre | B39: =((VLOOKUP(D5+5,F:I,2)+(VLOOKUP(D5+6,F:I,2)-VLOOKUP(D5+5,F:I,2))*(E5-D5))*B41+(G254+0.025+(E5-264)*2/(12*58))*B42*B43+(G254+5.825)*B44)*B8*B8 ->  | C39: =((VLOOKUP(D5+5,F:N,6)+(VLOOKUP(D5+6,F:N,6)-VLOOKUP(D5+5,F:N,6))*(E5-D5))*B41+(L254+0.025+(E5-264)*2/(12*58))*B42*B43+(L254+5.825)*B44)*C8*C8 ->  | F39: 49 | G39: =G38-((G$38-G$50)/12) -> 14.29505 | H39: 13.13599189 | I39: 11.59058108 | J39: =J38-((J$38-J$50)/12) -> 17.04390208 | K39: 12.36328649 | L39: =L38-(L38-L50)/12 -> 14.79505 | M39: =M38-(M38-M50)/12 -> 12.45898947 | N39: =N38-(N38-N50)/12 -> 11.29095921
F40: 50 | G40: =G39-((G$38-G$50)/12) -> 14.2786 | H40: 13.12087568 | I40: 11.57724324 | J40: =J39-((J$38-J$50)/12) -> 17.03110417 | K40: 12.34905946 | L40: =L39-(L38-L50)/12 -> 14.7786 | M40: =M39-(M38-M50)/12 -> 12.44513684 | N40: =N39-(N38-N50)/12 -> 11.27840526
A41: Correction sup(age<22) | B41: =IF(D5/12<22,1,0) -> 0 | F41: 51 | G41: 14.26215 | H41: 13.10575946 | I41: 11.56390541 | J41: 17.01830625 | K41: 12.33483243 | L41: =L40-(L38-L50)/12 -> 14.76215 | M41: =M40-(M38-M50)/12 -> 12.43128421 | N41: =N40-(N38-N50)/12 -> 11.26585132
A42: Correction sup(22<age) | B42: =IF(D5/12>=22,1,0) -> 1 | F42: 52 | G42: 14.2457 | H42: 13.09064324 | I42: 11.55056757 | J42: 17.00550833 | K42: 12.32060541 | L42: =L41-(L38-L50)/12 -> 14.7457 | M42: =M41-(M38-M50)/12 -> 12.41743158 | N42: =N41-(N38-N50)/12 -> 11.25329737
A43: Correction sup(age<80) | B43: =IF(D5/12<=80,1,0) -> 0 | F43: 53 | G43: 14.22925 | H43: 13.07552703 | I43: 11.53722973 | J43: 16.99271042 | K43: 12.30637838 | L43: =L42-(L38-L50)/12 -> 14.72925 | M43: =M42-(M38-M50)/12 -> 12.40357895 | N43: =N42-(N38-N50)/12 -> 11.24074342
A44: Correction sup(age>80) | B44: =IF(D5/12>80,1,0) -> 1 | F44: 54 | G44: 14.2128 | H44: 13.06041081 | I44: 11.52389189 | J44: 16.9799125 | K44: 12.29215135 | L44: =L43-(L38-L50)/12 -> 14.7128 | M44: =M43-(M38-M50)/12 -> 12.38972632 | N44: =N43-(N38-N50)/12 -> 11.22818947
F45: 55 | G45: 14.19635 | H45: 13.04529459 | I45: 11.51055405 | J45: 16.96711458 | K45: 12.27792432 | L45: =L44-(L38-L50)/12 -> 14.69635 | M45: =M44-(M38-M50)/12 -> 12.37587368 | N45: =N44-(N38-N50)/12 -> 11.21563553
F46: 56 | G46: 14.1799 | H46: 13.03017838 | I46: 11.49721622 | J46: 16.95431667 | K46: 12.2636973 | L46: =L45-(L38-L50)/12 -> 14.6799 | M46: =M45-(M38-M50)/12 -> 12.36202105 | N46: =N45-(N38-N50)/12 -> 11.20308158
F47: 57 | G47: 14.16345 | H47: 13.01506216 | I47: 11.48387838 | J47: 16.94151875 | K47: 12.24947027 | L47: =L46-(L38-L50)/12 -> 14.66345 | M47: =M46-(M38-M50)/12 -> 12.34816842 | N47: =N46-(N38-N50)/12 -> 11.19052763
F48: 58 | G48: 14.147 | H48: 12.99994595 | I48: 11.47054054 | J48: 16.92872083 | K48: 12.23524324 | L48: =L47-(L38-L50)/12 -> 14.647 | M48: =M47-(M38-M50)/12 -> 12.33431579 | N48: =N47-(N38-N50)/12 -> 11.17797368
F49: 59 | G49: 14.13055 | H49: 12.98482973 | I49: 11.4572027 | J49: 16.91592292 | K49: 12.22101622 | L49: =L48-(L38-L50)/12 -> 14.63055 | M49: =M48-(M38-M50)/12 -> 12.32046316 | N49: =N48-(N38-N50)/12 -> 11.16541974
E50: 5 | F50: 60 | G50: ='Courbe IMC'!G$51 -> 14.1141 | H50: 12.96971351 | I50: 11.44386486 | J50: ='Courbe IMC'!G$48 -> 16.903125 | K50: 12.20678919 | L50: =G50+0.5 -> 14.6141 | M50: =L50*16/19 -> 12.30661053 | N50: =L50*14.5/19 -> 11.15286579
F51: 61 | G51: =G50-((G$50-G$62)/12) -> 14.0984725 | H51: 12.95535311 | I51: 11.43119392 | J51: =J50-((J$50-J$62)/12) -> 16.92387292 | K51: 12.19327351 | L51: =L50-(L50-L62)/12 -> 14.5984725 | M51: =M50-(M50-M62)/12 -> 12.29345053 | N51: =N50-(N50-N62)/12 -> 11.14093954
F52: 62 | G52: =G51-((G$50-G$62)/12) -> 14.082845 | H52: 12.9409927 | I52: 11.41852297 | J52: =J51-((J$50-J$62)/12) -> 16.94462083 | K52: 12.17975784 | L52: =L51-(L50-L62)/12 -> 14.582845 | M52: =M51-(M50-M62)/12 -> 12.28029053 | N52: =N51-(N50-N62)/12 -> 11.12901329
F53: 63 | G53: 14.0672175 | H53: 12.9266323 | I53: 11.40585203 | J53: 16.96536875 | K53: 12.16624216 | L53: =L52-(L50-L62)/12 -> 14.5672175 | M53: =M52-(M50-M62)/12 -> 12.26713053 | N53: =N52-(N50-N62)/12 -> 11.11708704
F54: 64 | G54: 14.05159 | H54: 12.91227189 | I54: 11.39318108 | J54: 16.98611667 | K54: 12.15272649 | L54: =L53-(L50-L62)/12 -> 14.55159 | M54: =M53-(M50-M62)/12 -> 12.25397053 | N54: =N53-(N50-N62)/12 -> 11.10516079
F55: 65 | G55: 14.0359625 | H55: 12.89791149 | I55: 11.38051014 | J55: 17.00686458 | K55: 12.13921081 | L55: =L54-(L50-L62)/12 -> 14.5359625 | M55: =M54-(M50-M62)/12 -> 12.24081053 | N55: =N54-(N50-N62)/12 -> 11.09323454
F56: 66 | G56: 14.020335 | H56: 12.88355108 | I56: 11.36783919 | J56: 17.0276125 | K56: 12.12569514 | L56: =L55-(L50-L62)/12 -> 14.520335 | M56: =M55-(M50-M62)/12 -> 12.22765053 | N56: =N55-(N50-N62)/12 -> 11.08130829
F57: 67 | G57: 14.0047075 | H57: 12.86919068 | I57: 11.35516824 | J57: 17.04836042 | K57: 12.11217946 | L57: =L56-(L50-L62)/12 -> 14.5047075 | M57: =M56-(M50-M62)/12 -> 12.21449053 | N57: =N56-(N50-N62)/12 -> 11.06938204
F58: 68 | G58: 13.98908 | H58: 12.85483027 | I58: 11.3424973 | J58: 17.06910833 | K58: 12.09866378 | L58: =L57-(L50-L62)/12 -> 14.48908 | M58: =M57-(M50-M62)/12 -> 12.20133053 | N58: =N57-(N50-N62)/12 -> 11.05745579
F59: 69 | G59: 13.9734525 | H59: 12.84046986 | I59: 11.32982635 | J59: 17.08985625 | K59: 12.08514811 | L59: =L58-(L50-L62)/12 -> 14.4734525 | M59: =M58-(M50-M62)/12 -> 12.18817053 | N59: =N58-(N50-N62)/12 -> 11.04552954
F60: 70 | G60: 13.957825 | H60: 12.82610946 | I60: 11.31715541 | J60: 17.11060417 | K60: 12.07163243 | L60: =L59-(L50-L62)/12 -> 14.457825 | M60: =M59-(M50-M62)/12 -> 12.17501053 | N60: =N59-(N50-N62)/12 -> 11.03360329
F61: 71 | G61: 13.9421975 | H61: 12.81174905 | I61: 11.30448446 | J61: 17.13135208 | K61: 12.05811676 | L61: =L60-(L50-L62)/12 -> 14.4421975 | M61: =M60-(M50-M62)/12 -> 12.16185053 | N61: =N60-(N50-N62)/12 -> 11.02167704
E62: 6 | F62: 72 | G62: ='Courbe IMC'!H$51 -> 13.92657 | H62: 12.79738865 | I62: 11.29181351 | J62: ='Courbe IMC'!H$48 -> 17.1521 | K62: 12.04460108 | L62: =G62+0.5 -> 14.42657 | M62: =L62*16/19 -> 12.14869053 | N62: =L62*14.5/19 -> 11.00975079
F63: 73 | G63: =G62-((G$62-G$74)/12) -> 13.9339725 | H63: 12.80419095 | I63: 11.29781554 | J63: =J62-((J$62-J$74)/12) -> 17.19249167 | K63: 12.05100324 | L63: =L62-(L62-L74)/12 -> 14.4339725 | M63: =M62-(M62-M74)/12 -> 12.15492421 | N63: =N62-(N62-N74)/12 -> 11.01540007
F64: 74 | G64: =G63-((G$62-G$74)/12) -> 13.941375 | H64: 12.81099324 | I64: 11.30381757 | J64: =J63-((J$62-J$74)/12) -> 17.23288333 | K64: 12.05740541 | L64: =L63-(L62-L74)/12 -> 14.441375 | M64: =M63-(M62-M74)/12 -> 12.16115789 | N64: =N63-(N62-N74)/12 -> 11.02104934
F65: 75 | G65: 13.9487775 | H65: 12.81779554 | I65: 11.30981959 | J65: 17.273275 | K65: 12.06380757 | L65: =L64-(L62-L74)/12 -> 14.4487775 | M65: =M64-(M62-M74)/12 -> 12.16739158 | N65: =N64-(N62-N74)/12 -> 11.02669862
F66: 76 | G66: 13.95618 | H66: 12.82459784 | I66: 11.31582162 | J66: 17.31366667 | K66: 12.07020973 | L66: =L65-(L62-L74)/12 -> 14.45618 | M66: =M65-(M62-M74)/12 -> 12.17362526 | N66: =N65-(N62-N74)/12 -> 11.03234789
F67: 77 | G67: 13.9635825 | H67: =G67*17/18.5 -> 12.83140014 | I67: =G67*15/18.5 -> 11.32182365 | J67: 17.35405833 | K67: =G67*16/18.5 -> 12.07661189 | L67: =L66-(L62-L74)/12 -> 14.4635825 | M67: =M66-(M62-M74)/12 -> 12.17985895 | N67: =N66-(N62-N74)/12 -> 11.03799717
F68: 78 | G68: 13.970985 | H68: 12.83820243 | I68: 11.32782568 | J68: 17.39445 | K68: 12.08301405 | L68: =L67-(L62-L74)/12 -> 14.470985 | M68: =M67-(M62-M74)/12 -> 12.18609263 | N68: =N67-(N62-N74)/12 -> 11.04364645
F69: 79 | G69: 13.9783875 | H69: 12.84500473 | I69: 11.3338277 | J69: 17.43484167 | K69: 12.08941622 | L69: =L68-(L62-L74)/12 -> 14.4783875 | M69: =M68-(M62-M74)/12 -> 12.19232632 | N69: =N68-(N62-N74)/12 -> 11.04929572
F70: 80 | G70: 13.98579 | H70: 12.85180703 | I70: 11.33982973 | J70: 17.47523333 | K70: 12.09581838 | L70: =L69-(L62-L74)/12 -> 14.48579 | M70: =M69-(M62-M74)/12 -> 12.19856 | N70: =N69-(N62-N74)/12 -> 11.054945
F71: 81 | G71: 13.9931925 | H71: 12.85860932 | I71: 11.34583176 | J71: 17.515625 | K71: 12.10222054 | L71: =L70-(L62-L74)/12 -> 14.4931925 | M71: =M70-(M62-M74)/12 -> 12.20479368 | N71: =N70-(N62-N74)/12 -> 11.06059428
F72: 82 | G72: 14.000595 | H72: 12.86541162 | I72: 11.35183378 | J72: 17.55601667 | K72: 12.1086227 | L72: =L71-(L62-L74)/12 -> 14.500595 | M72: =M71-(M62-M74)/12 -> 12.21102737 | N72: =N71-(N62-N74)/12 -> 11.06624355
F73: 83 | G73: 14.0079975 | H73: 12.87221392 | I73: 11.35783581 | J73: 17.59640833 | K73: 12.11502486 | L73: =L72-(L62-L74)/12 -> 14.5079975 | M73: =M72-(M62-M74)/12 -> 12.21726105 | N73: =N72-(N62-N74)/12 -> 11.07189283
E74: 7 | F74: 84 | G74: ='Courbe IMC'!I$51 -> 14.0154 | H74: 12.87901622 | I74: 11.36383784 | J74: ='Courbe IMC'!I$48 -> 17.6368 | K74: 12.12142703 | L74: =G74+0.5 -> 14.5154 | M74: =L74*16/19 -> 12.22349474 | N74: =L74*14.5/19 -> 11.07754211
F75: 85 | G75: =G74-((G$74-G$86)/12) -> 14.0195125 | H75: 12.88279527 | I75: 11.3671723 | J75: =J74-((J$74-J$86)/12) -> 17.68580417 | K75: 12.12498378 | L75: =L74+(L86-L74)/12 -> 14.5195125 | M75: =M74+(M86-M74)/12 -> 12.22695789 | N75: =N74+(N86-N74)/12 -> 11.08068059
F76: 86 | G76: =G75-((G$74-G$86)/12) -> 14.023625 | H76: 12.88657432 | I76: 11.37050676 | J76: =J75-((J$74-J$86)/12) -> 17.73480833 | K76: 12.12854054 | L76: =L75+(L86-L74)/12 -> 14.523625 | M76: =M75+(M86-M74)/12 -> 12.23042105 | N76: =N75+(N86-N74)/12 -> 11.08381908
F77: 87 | G77: 14.0277375 | H77: 12.89035338 | I77: 11.37384122 | J77: 17.7838125 | K77: 12.1320973 | L77: =L76+(L86-L74)/12 -> 14.5277375 | M77: =M76+(M86-M74)/12 -> 12.23388421 | N77: =N76+(N86-N74)/12 -> 11.08695757
F78: 88 | G78: 14.03185 | H78: 12.89413243 | I78: 11.37717568 | J78: 17.83281667 | K78: 12.13565405 | L78: =L77+(L86-L74)/12 -> 14.53185 | M78: =M77+(M86-M74)/12 -> 12.23734737 | N78: =N77+(N86-N74)/12 -> 11.09009605
F79: 89 | G79: 14.0359625 | H79: 12.89791149 | I79: 11.38051014 | J79: 17.88182083 | K79: 12.13921081 | L79: =L78+(L86-L74)/12 -> 14.5359625 | M79: =M78+(M86-M74)/12 -> 12.24081053 | N79: =N78+(N86-N74)/12 -> 11.09323454
F80: 90 | G80: 14.040075 | H80: 12.90169054 | I80: 11.38384459 | J80: 17.930825 | K80: 12.14276757 | L80: =L79+(L86-L74)/12 -> 14.540075 | M80: =M79+(M86-M74)/12 -> 12.24427368 | N80: =N79+(N86-N74)/12 -> 11.09637303
F81: 91 | G81: 14.0441875 | H81: 12.90546959 | I81: 11.38717905 | J81: 17.97982917 | K81: 12.14632432 | L81: =L80+(L86-L74)/12 -> 14.5441875 | M81: =M80+(M86-M74)/12 -> 12.24773684 | N81: =N80+(N86-N74)/12 -> 11.09951151
F82: 92 | G82: 14.0483 | H82: 12.90924865 | I82: 11.39051351 | J82: 18.02883333 | K82: 12.14988108 | L82: =L81+(L86-L74)/12 -> 14.5483 | M82: =M81+(M86-M74)/12 -> 12.2512 | N82: =N81+(N86-N74)/12 -> 11.10265
F83: 93 | G83: 14.0524125 | H83: 12.9130277 | I83: 11.39384797 | J83: 18.0778375 | K83: 12.15343784 | L83: =L82+(L86-L74)/12 -> 14.5524125 | M83: =M82+(M86-M74)/12 -> 12.25466316 | N83: =N82+(N86-N74)/12 -> 11.10578849
F84: 94 | G84: 14.056525 | H84: 12.91680676 | I84: 11.39718243 | J84: 18.12684167 | K84: 12.15699459 | L84: =L83+(L86-L74)/12 -> 14.556525 | M84: =M83+(M86-M74)/12 -> 12.25812632 | N84: =N83+(N86-N74)/12 -> 11.10892697
F85: 95 | G85: 14.0606375 | H85: 12.92058581 | I85: 11.40051689 | J85: 18.17584583 | K85: 12.16055135 | L85: =L84+(L86-L74)/12 -> 14.5606375 | M85: =M84+(M86-M74)/12 -> 12.26158947 | N85: =N84+(N86-N74)/12 -> 11.11206546
E86: 8 | F86: 96 | G86: ='Courbe IMC'!J$51 -> 14.06475 | H86: 12.92436486 | I86: 11.40385135 | J86: ='Courbe IMC'!J$48 -> 18.22485 | K86: 12.16410811 | L86: =G86+0.5 -> 14.56475 | M86: =L86*16/19 -> 12.26505263 | N86: =L86*14.5/19 -> 11.11520395
F87: 97 | G87: =G86-((G$86-G$98)/12) -> 14.0951825 | H87: 12.95232986 | I87: 11.42852635 | J87: =J86-((J$86-J$98)/12) -> 18.28012083 | K87: 12.19042811 | L87: =L86+(L98-L86)/12 -> 14.5951825 | M87: =M86+(M98-M86)/12 -> 12.29068 | N87: =N86+(N98-N86)/12 -> 11.13842875
F88: 98 | G88: =G87-((G$86-G$98)/12) -> 14.125615 | H88: 12.98029486 | I88: 11.45320135 | J88: =J87-((J$86-J$98)/12) -> 18.33539167 | K88: 12.21674811 | L88: =L87+(L98-L86)/12 -> 14.625615 | M88: =M87+(M98-M86)/12 -> 12.31630737 | N88: =N87+(N98-N86)/12 -> 11.16165355
F89: 99 | G89: 14.1560475 | H89: 13.00825986 | I89: 11.47787635 | J89: 18.3906625 | K89: 12.24306811 | L89: =L88+(L98-L86)/12 -> 14.6560475 | M89: =M88+(M98-M86)/12 -> 12.34193474 | N89: =N88+(N98-N86)/12 -> 11.18487836
F90: 100 | G90: 14.18648 | H90: 13.03622486 | I90: 11.50255135 | J90: 18.44593333 | K90: 12.26938811 | L90: =L89+(L98-L86)/12 -> 14.68648 | M90: =M89+(M98-M86)/12 -> 12.36756211 | N90: =N89+(N98-N86)/12 -> 11.20810316
F91: 101 | G91: 14.2169125 | H91: 13.06418986 | I91: 11.52722635 | J91: 18.50120417 | K91: 12.29570811 | L91: =L90+(L98-L86)/12 -> 14.7169125 | M91: =M90+(M98-M86)/12 -> 12.39318947 | N91: =N90+(N98-N86)/12 -> 11.23132796
F92: 102 | G92: 14.247345 | H92: 13.09215486 | I92: 11.55190135 | J92: 18.556475 | K92: 12.32202811 | L92: =L91+(L98-L86)/12 -> 14.747345 | M92: =M91+(M98-M86)/12 -> 12.41881684 | N92: =N91+(N98-N86)/12 -> 11.25455276
F93: 103 | G93: 14.2777775 | H93: 13.12011986 | I93: 11.57657635 | J93: 18.61174583 | K93: 12.34834811 | L93: =L92+(L98-L86)/12 -> 14.7777775 | M93: =M92+(M98-M86)/12 -> 12.44444421 | N93: =N92+(N98-N86)/12 -> 11.27777757
F94: 104 | G94: 14.30821 | H94: 13.14808486 | I94: 11.60125135 | J94: 18.66701667 | K94: 12.37466811 | L94: =L93+(L98-L86)/12 -> 14.80821 | M94: =M93+(M98-M86)/12 -> 12.47007158 | N94: =N93+(N98-N86)/12 -> 11.30100237
F95: 105 | G95: 14.3386425 | H95: 13.17604986 | I95: 11.62592635 | J95: 18.7222875 | K95: 12.40098811 | L95: =L94+(L98-L86)/12 -> 14.8386425 | M95: =M94+(M98-M86)/12 -> 12.49569895 | N95: =N94+(N98-N86)/12 -> 11.32422717
F96: 106 | G96: 14.369075 | H96: 13.20401486 | I96: 11.65060135 | J96: 18.77755833 | K96: 12.42730811 | L96: =L95+(L98-L86)/12 -> 14.869075 | M96: =M95+(M98-M86)/12 -> 12.52132632 | N96: =N95+(N98-N86)/12 -> 11.34745197
F97: 107 | G97: 14.3995075 | H97: 13.23197986 | I97: 11.67527635 | J97: 18.83282917 | K97: 12.45362811 | L97: =L96+(L98-L86)/12 -> 14.8995075 | M97: =M96+(M98-M86)/12 -> 12.54695368 | N97: =N96+(N98-N86)/12 -> 11.37067678
E98: 9 | F98: 108 | G98: ='Courbe IMC'!K$51 -> 14.42994 | H98: 13.25994486 | I98: 11.69995135 | J98: ='Courbe IMC'!K$48 -> 18.8881 | K98: 12.47994811 | L98: =G98+0.5 -> 14.92994 | M98: =L98*16/19 -> 12.57258105 | N98: =L98*14.5/19 -> 11.39390158
F99: 109 | G99: =G98-((G$98-G$110)/12) -> 14.461195 | H99: 13.28866568 | I99: 11.72529324 | J99: =J98-((J$98-J$110)/12) -> 18.97459167 | K99: 12.50697946 | L99: =L98+(L110-L98)/12 -> 14.961195 | M99: =M98+(M110-M98)/12 -> 12.59890105 | N99: =N98+(N110-N98)/12 -> 11.41775408
F100: 110 | G100: =G99-((G$98-G$110)/12) -> 14.49245 | H100: 13.31738649 | I100: 11.75063514 | J100: =J99-((J$98-J$110)/12) -> 19.06108333 | K100: 12.53401081 | L100: =L99+(L110-L98)/12 -> 14.99245 | M100: =M99+(M110-M98)/12 -> 12.62522105 | N100: =N99+(N110-N98)/12 -> 11.44160658
F101: 111 | G101: 14.523705 | H101: 13.3461073 | I101: 11.77597703 | J101: 19.147575 | K101: 12.56104216 | L101: =L100+(L110-L98)/12 -> 15.023705 | M101: =M100+(M110-M98)/12 -> 12.65154105 | N101: =N100+(N110-N98)/12 -> 11.46545908
F102: 112 | G102: 14.55496 | H102: 13.37482811 | I102: 11.80131892 | J102: 19.23406667 | K102: 12.58807351 | L102: =L101+(L110-L98)/12 -> 15.05496 | M102: =M101+(M110-M98)/12 -> 12.67786105 | N102: =N101+(N110-N98)/12 -> 11.48931158
F103: 113 | G103: 14.586215 | H103: 13.40354892 | I103: 11.82666081 | J103: 19.32055833 | K103: 12.61510486 | L103: =L102+(L110-L98)/12 -> 15.086215 | M103: =M102+(M110-M98)/12 -> 12.70418105 | N103: =N102+(N110-N98)/12 -> 11.51316408
F104: 114 | G104: 14.61747 | H104: 13.43226973 | I104: 11.8520027 | J104: 19.40705 | K104: 12.64213622 | L104: =L103+(L110-L98)/12 -> 15.11747 | M104: =M103+(M110-M98)/12 -> 12.73050105 | N104: =N103+(N110-N98)/12 -> 11.53701658
F105: 115 | G105: 14.648725 | H105: 13.46099054 | I105: 11.87734459 | J105: 19.49354167 | K105: 12.66916757 | L105: =L104+(L110-L98)/12 -> 15.148725 | M105: =M104+(M110-M98)/12 -> 12.75682105 | N105: =N104+(N110-N98)/12 -> 11.56086908
F106: 116 | G106: 14.67998 | H106: 13.48971135 | I106: 11.90268649 | J106: 19.58003333 | K106: 12.69619892 | L106: =L105+(L110-L98)/12 -> 15.17998 | M106: =M105+(M110-M98)/12 -> 12.78314105 | N106: =N105+(N110-N98)/12 -> 11.58472158
F107: 117 | G107: 14.711235 | H107: 13.51843216 | I107: 11.92802838 | J107: 19.666525 | K107: 12.72323027 | L107: =L106+(L110-L98)/12 -> 15.211235 | M107: =M106+(M110-M98)/12 -> 12.80946105 | N107: =N106+(N110-N98)/12 -> 11.60857408
F108: 118 | G108: 14.74249 | H108: 13.54715297 | I108: 11.95337027 | J108: 19.75301667 | K108: 12.75026162 | L108: =L107+(L110-L98)/12 -> 15.24249 | M108: =M107+(M110-M98)/12 -> 12.83578105 | N108: =N107+(N110-N98)/12 -> 11.63242658
F109: 119 | G109: 14.773745 | H109: 13.57587378 | I109: 11.97871216 | J109: 19.83950833 | K109: 12.77729297 | L109: =L108+(L110-L98)/12 -> 15.273745 | M109: =M108+(M110-M98)/12 -> 12.86210105 | N109: =N108+(N110-N98)/12 -> 11.65627908
E110: 10 | F110: 120 | G110: ='Courbe IMC'!L$51 -> 14.805 | H110: 13.60459459 | I110: 12.00405405 | J110: ='Courbe IMC'!L$48 -> 19.926 | K110: 12.80432432 | L110: =G110+0.5 -> 15.305 | M110: =L110*16/19 -> 12.88842105 | N110: =L110*14.5/19 -> 11.68013158
F111: 121 | G111: =G110-((G$110-G$122)/12) -> 14.8502375 | H111: 13.64616419 | I111: 12.04073311 | J111: =J110-((J$110-J$122)/12) -> 20.01087917 | K111: 12.84344865 | L111: =L110+(L122-L110)/12 -> 15.3502375 | M111: =M110+(M122-M110)/12 -> 12.92651579 | N111: =N110+(N122-N110)/12 -> 11.71465493
F112: 122 | G112: =G111-((G$110-G$122)/12) -> 14.895475 | H112: 13.68773378 | I112: 12.07741216 | J112: =J111-((J$110-J$122)/12) -> 20.09575833 | K112: 12.88257297 | L112: =L111+(L122-L110)/12 -> 15.395475 | M112: =M111+(M122-M110)/12 -> 12.96461053 | N112: =N111+(N122-N110)/12 -> 11.74917829
F113: 123 | G113: 14.9407125 | H113: 13.72930338 | I113: 12.11409122 | J113: 20.1806375 | K113: 12.9216973 | L113: =L112+(L122-L110)/12 -> 15.4407125 | M113: =M112+(M122-M110)/12 -> 13.00270526 | N113: =N112+(N122-N110)/12 -> 11.78370164
F114: 124 | G114: 14.98595 | H114: 13.77087297 | I114: 12.15077027 | J114: 20.26551667 | K114: 12.96082162 | L114: =L113+(L122-L110)/12 -> 15.48595 | M114: =M113+(M122-M110)/12 -> 13.0408 | N114: =N113+(N122-N110)/12 -> 11.818225
F115: 125 | G115: 15.0311875 | H115: 13.81244257 | I115: 12.18744932 | J115: 20.35039583 | K115: 12.99994595 | L115: =L114+(L122-L110)/12 -> 15.5311875 | M115: =M114+(M122-M110)/12 -> 13.07889474 | N115: =N114+(N122-N110)/12 -> 11.85274836
F116: 126 | G116: 15.076425 | H116: 13.85401216 | I116: 12.22412838 | J116: 20.435275 | K116: 13.03907027 | L116: =L115+(L122-L110)/12 -> 15.576425 | M116: =M115+(M122-M110)/12 -> 13.11698947 | N116: =N115+(N122-N110)/12 -> 11.88727171
F117: 127 | G117: 15.1216625 | H117: 13.89558176 | I117: 12.26080743 | J117: 20.52015417 | K117: 13.07819459 | L117: =L116+(L122-L110)/12 -> 15.6216625 | M117: =M116+(M122-M110)/12 -> 13.15508421 | N117: =N116+(N122-N110)/12 -> 11.92179507
F118: 128 | G118: 15.1669 | H118: 13.93715135 | I118: 12.29748649 | J118: 20.60503333 | K118: 13.11731892 | L118: =L117+(L122-L110)/12 -> 15.6669 | M118: =M117+(M122-M110)/12 -> 13.19317895 | N118: =N117+(N122-N110)/12 -> 11.95631842
F119: 129 | G119: 15.2121375 | H119: 13.97872095 | I119: 12.33416554 | J119: 20.6899125 | K119: 13.15644324 | L119: =L118+(L122-L110)/12 -> 15.7121375 | M119: =M118+(M122-M110)/12 -> 13.23127368 | N119: =N118+(N122-N110)/12 -> 11.99084178
F120: 130 | G120: 15.257375 | H120: 14.02029054 | I120: 12.37084459 | J120: 20.77479167 | K120: 13.19556757 | L120: =L119+(L122-L110)/12 -> 15.757375 | M120: =M119+(M122-M110)/12 -> 13.26936842 | N120: =N119+(N122-N110)/12 -> 12.02536513
F121: 131 | G121: 15.3026125 | H121: 14.06186014 | I121: 12.40752365 | J121: 20.85967083 | K121: 13.23469189 | L121: =L120+(L122-L110)/12 -> 15.8026125 | M121: =M120+(M122-M110)/12 -> 13.30746316 | N121: =N120+(N122-N110)/12 -> 12.05988849
E122: 11 | F122: 132 | G122: ='Courbe IMC'!M$51 -> 15.34785 | H122: 14.10342973 | I122: 12.4442027 | J122: ='Courbe IMC'!M$48 -> 20.94455 | K122: 13.27381622 | L122: =G122+0.5 -> 15.84785 | M122: =L122*16/19 -> 13.34555789 | N122: =L122*14.5/19 -> 12.09441184
F123: 133 | G123: =G122-((G$122-G$134)/12) -> 15.421875 | H123: 14.1714527 | I123: 12.50422297 | J123: =J122-((J$122-J$134)/12) -> 21.03575833 | K123: 13.33783784 | L123: =L122+(L134-L122)/12 -> 15.921875 | M123: =M122+(M134-M122)/12 -> 13.40789474 | N123: =N122+(N134-N122)/12 -> 12.15090461
F124: 134 | G124: =G123-((G$122-G$134)/12) -> 15.4959 | H124: 14.23947568 | I124: 12.56424324 | J124: =J123-((J$122-J$134)/12) -> 21.12696667 | K124: 13.40185946 | L124: =L123+(L134-L122)/12 -> 15.9959 | M124: =M123+(M134-M122)/12 -> 13.47023158 | N124: =N123+(N134-N122)/12 -> 12.20739737
F125: 135 | G125: 15.569925 | H125: 14.30749865 | I125: 12.62426351 | J125: 21.218175 | K125: 13.46588108 | L125: =L124+(L134-L122)/12 -> 16.069925 | M125: =M124+(M134-M122)/12 -> 13.53256842 | N125: =N124+(N134-N122)/12 -> 12.26389013
F126: 136 | G126: 15.64395 | H126: 14.37552162 | I126: 12.68428378 | J126: 21.30938333 | K126: 13.5299027 | L126: =L125+(L134-L122)/12 -> 16.14395 | M126: =M125+(M134-M122)/12 -> 13.59490526 | N126: =N125+(N134-N122)/12 -> 12.32038289
F127: 137 | G127: 15.717975 | H127: 14.44354459 | I127: 12.74430405 | J127: 21.40059167 | K127: 13.59392432 | L127: =L126+(L134-L122)/12 -> 16.217975 | M127: =M126+(M134-M122)/12 -> 13.65724211 | N127: =N126+(N134-N122)/12 -> 12.37687566
F128: 138 | G128: 15.792 | H128: 14.51156757 | I128: 12.80432432 | J128: 21.4918 | K128: 13.65794595 | L128: =L127+(L134-L122)/12 -> 16.292 | M128: =M127+(M134-M122)/12 -> 13.71957895 | N128: =N127+(N134-N122)/12 -> 12.43336842
F129: 139 | G129: 15.866025 | H129: 14.57959054 | I129: 12.86434459 | J129: 21.58300833 | K129: 13.72196757 | L129: =L128+(L134-L122)/12 -> 16.366025 | M129: =M128+(M134-M122)/12 -> 13.78191579 | N129: =N128+(N134-N122)/12 -> 12.48986118
F130: 140 | G130: 15.94005 | H130: 14.64761351 | I130: 12.92436486 | J130: 21.67421667 | K130: 13.78598919 | L130: =L129+(L134-L122)/12 -> 16.44005 | M130: =M129+(M134-M122)/12 -> 13.84425263 | N130: =N129+(N134-N122)/12 -> 12.54635395
F131: 141 | G131: 16.014075 | H131: =G131*17/18.5 -> 14.71563649 | I131: =G131*15/18.5 -> 12.98438514 | J131: 21.765425 | K131: =G131*16/18.5 -> 13.85001081 | L131: =L130+(L134-L122)/12 -> 16.514075 | M131: =M130+(M134-M122)/12 -> 13.90658947 | N131: =N130+(N134-N122)/12 -> 12.60284671
F132: 142 | G132: 16.0881 | H132: 14.78365946 | I132: 13.04440541 | J132: 21.85663333 | K132: 13.91403243 | L132: =L131+(L134-L122)/12 -> 16.5881 | M132: =M131+(M134-M122)/12 -> 13.96892632 | N132: =N131+(N134-N122)/12 -> 12.65933947
F133: 143 | G133: 16.162125 | H133: 14.85168243 | I133: 13.10442568 | J133: 21.94784167 | K133: 13.97805405 | L133: =L132+(L134-L122)/12 -> 16.662125 | M133: =M132+(M134-M122)/12 -> 14.03126316 | N133: =N132+(N134-N122)/12 -> 12.71583224
E134: 12 | F134: 144 | G134: ='Courbe IMC'!N$51 -> 16.23615 | H134: 14.91970541 | I134: 13.16444595 | J134: ='Courbe IMC'!N$48 -> 22.03905 | K134: 14.04207568 | L134: =G134+0.5 -> 16.73615 | M134: =L134*16/19 -> 14.0936 | N134: =L134*14.5/19 -> 12.772325
F135: 145 | G135: =G134-((G$134-G$146)/12) -> 16.2813875 | H135: 14.961275 | I135: 13.201125 | J135: =J134-((J$134-J$146)/12) -> 22.11011875 | K135: 14.0812 | L135: =L134+(L146-L134)/12 -> 16.7813875 | M135: =M134+(M146-M134)/12 -> 14.13169474 | N135: =N134+(N146-N134)/12 -> 12.80684836
F136: 146 | G136: =G135-((G$134-G$146)/12) -> 16.326625 | H136: 15.00284459 | I136: 13.23780405 | J136: =J135-((J$134-J$146)/12) -> 22.1811875 | K136: 14.12032432 | L136: =L135+(L146-L134)/12 -> 16.826625 | M136: =M135+(M146-M134)/12 -> 14.16978947 | N136: =N135+(N146-N134)/12 -> 12.84137171
F137: 147 | G137: 16.3718625 | H137: 15.04441419 | I137: 13.27448311 | J137: 22.25225625 | K137: 14.15944865 | L137: =L136+(L146-L134)/12 -> 16.8718625 | M137: =M136+(M146-M134)/12 -> 14.20788421 | N137: =N136+(N146-N134)/12 -> 12.87589507
F138: 148 | G138: 16.4171 | H138: 15.08598378 | I138: 13.31116216 | J138: 22.323325 | K138: 14.19857297 | L138: =L137+(L146-L134)/12 -> 16.9171 | M138: =M137+(M146-M134)/12 -> 14.24597895 | N138: =N137+(N146-N134)/12 -> 12.91041842
F139: 149 | G139: 16.4623375 | H139: 15.12755338 | I139: 13.34784122 | J139: 22.39439375 | K139: 14.2376973 | L139: =L138+(L146-L134)/12 -> 16.9623375 | M139: =M138+(M146-M134)/12 -> 14.28407368 | N139: =N138+(N146-N134)/12 -> 12.94494178
F140: 150 | G140: 16.507575 | H140: 15.16912297 | I140: 13.38452027 | J140: 22.4654625 | K140: 14.27682162 | L140: =L139+(L146-L134)/12 -> 17.007575 | M140: =M139+(M146-M134)/12 -> 14.32216842 | N140: =N139+(N146-N134)/12 -> 12.97946513
F141: 151 | G141: 16.5528125 | H141: 15.21069257 | I141: 13.42119932 | J141: 22.53653125 | K141: 14.31594595 | L141: =L140+(L146-L134)/12 -> 17.0528125 | M141: =M140+(M146-M134)/12 -> 14.36026316 | N141: =N140+(N146-N134)/12 -> 13.01398849
F142: 152 | G142: 16.59805 | H142: 15.25226216 | I142: 13.45787838 | J142: 22.6076 | K142: 14.35507027 | L142: =L141+(L146-L134)/12 -> 17.09805 | M142: =M141+(M146-M134)/12 -> 14.39835789 | N142: =N141+(N146-N134)/12 -> 13.04851184
F143: 153 | G143: 16.6432875 | H143: 15.29383176 | I143: 13.49455743 | J143: 22.67866875 | K143: 14.39419459 | L143: =L142+(L146-L134)/12 -> 17.1432875 | M143: =M142+(M146-M134)/12 -> 14.43645263 | N143: =N142+(N146-N134)/12 -> 13.0830352
F144: 154 | G144: 16.688525 | H144: 15.33540135 | I144: 13.53123649 | J144: 22.7497375 | K144: 14.43331892 | L144: =L143+(L146-L134)/12 -> 17.188525 | M144: =M143+(M146-M134)/12 -> 14.47454737 | N144: =N143+(N146-N134)/12 -> 13.11755855
F145: 155 | G145: 16.7337625 | H145: 15.37697095 | I145: 13.56791554 | J145: 22.82080625 | K145: 14.47244324 | L145: =L144+(L146-L134)/12 -> 17.2337625 | M145: =M144+(M146-M134)/12 -> 14.51264211 | N145: =N144+(N146-N134)/12 -> 13.15208191
E146: 13 | F146: 156 | G146: ='Courbe IMC'!O$51 -> 16.779 | H146: 15.41854054 | I146: 13.60459459 | J146: ='Courbe IMC'!O$48 -> 22.891875 | K146: 14.51156757 | L146: =G146+0.5 -> 17.279 | M146: =L146*16/19 -> 14.55073684 | N146: =L146*14.5/19 -> 13.18660526
F147: 157 | G147: =G146-((G$146-G$158)/12) -> 16.836575 | H147: 15.4714473 | I147: 13.65127703 | J147: =J146-((J$146-J$158)/12) -> 22.95239375 | K147: 14.56136216 | L147: =L146+(L158-L146)/12 -> 17.336575 | M147: =M146+(M158-M146)/12 -> 14.59922105 | N147: =N146+(N158-N146)/12 -> 13.23054408
F148: 158 | G148: =G147-((G$146-G$158)/12) -> 16.89415 | H148: 15.52435405 | I148: 13.69795946 | J148: =J147-((J$146-J$158)/12) -> 23.0129125 | K148: 14.61115676 | L148: =L147+(L158-L146)/12 -> 17.39415 | M148: =M147+(M158-M146)/12 -> 14.64770526 | N148: =N147+(N158-N146)/12 -> 13.27448289
F149: 159 | G149: 16.951725 | H149: 15.57726081 | I149: 13.74464189 | J149: 23.07343125 | K149: 14.66095135 | L149: =L148+(L158-L146)/12 -> 17.451725 | M149: =M148+(M158-M146)/12 -> 14.69618947 | N149: =N148+(N158-N146)/12 -> 13.31842171
F150: 160 | G150: 17.0093 | H150: 15.63016757 | I150: 13.79132432 | J150: 23.13395 | K150: 14.71074595 | L150: =L149+(L158-L146)/12 -> 17.5093 | M150: =M149+(M158-M146)/12 -> 14.74467368 | N150: =N149+(N158-N146)/12 -> 13.36236053
F151: 161 | G151: 17.066875 | H151: 15.68307432 | I151: 13.83800676 | J151: 23.19446875 | K151: 14.76054054 | L151: =L150+(L158-L146)/12 -> 17.566875 | M151: =M150+(M158-M146)/12 -> 14.79315789 | N151: =N150+(N158-N146)/12 -> 13.40629934
F152: 162 | G152: 17.12445 | H152: 15.73598108 | I152: 13.88468919 | J152: 23.2549875 | K152: 14.81033514 | L152: =L151+(L158-L146)/12 -> 17.62445 | M152: =M151+(M158-M146)/12 -> 14.84164211 | N152: =N151+(N158-N146)/12 -> 13.45023816
F153: 163 | G153: 17.182025 | H153: 15.78888784 | I153: 13.93137162 | J153: 23.31550625 | K153: 14.86012973 | L153: =L152+(L158-L146)/12 -> 17.682025 | M153: =M152+(M158-M146)/12 -> 14.89012632 | N153: =N152+(N158-N146)/12 -> 13.49417697
F154: 164 | G154: 17.2396 | H154: 15.84179459 | I154: 13.97805405 | J154: 23.376025 | K154: 14.90992432 | L154: =L153+(L158-L146)/12 -> 17.7396 | M154: =M153+(M158-M146)/12 -> 14.93861053 | N154: =N153+(N158-N146)/12 -> 13.53811579
F155: 165 | G155: 17.297175 | H155: 15.89470135 | I155: 14.02473649 | J155: 23.43654375 | K155: 14.95971892 | L155: =L154+(L158-L146)/12 -> 17.797175 | M155: =M154+(M158-M146)/12 -> 14.98709474 | N155: =N154+(N158-N146)/12 -> 13.58205461
F156: 166 | G156: 17.35475 | H156: 15.94760811 | I156: 14.07141892 | J156: 23.4970625 | K156: 15.00951351 | L156: =L155+(L158-L146)/12 -> 17.85475 | M156: =M155+(M158-M146)/12 -> 15.03557895 | N156: =N155+(N158-N146)/12 -> 13.62599342
F157: 167 | G157: 17.412325 | H157: 16.00051486 | I157: 14.11810135 | J157: 23.55758125 | K157: 15.05930811 | L157: =L156+(L158-L146)/12 -> 17.912325 | M157: =M156+(M158-M146)/12 -> 15.08406316 | N157: =N156+(N158-N146)/12 -> 13.66993224
E158: 14 | F158: 168 | G158: ='Courbe IMC'!P$51 -> 17.4699 | H158: 16.05342162 | I158: 14.16478378 | J158: ='Courbe IMC'!P$48 -> 23.6181 | K158: 15.1091027 | L158: =G158+0.5 -> 17.9699 | M158: =L158*16/19 -> 15.13254737 | N158: =L158*14.5/19 -> 13.71387105
F159: 169 | G159: =G158-((G$158-G$170)/12) -> 17.51925 | H159: 16.09877027 | I159: 14.2047973 | J159: =J158-((J$158-J$170)/12) -> 23.66255625 | K159: 15.15178378 | L159: =L158+(L170-L158)/12 -> 18.01925 | M159: =M158+(M170-M158)/12 -> 15.17410526 | N159: =N158+(N170-N158)/12 -> 13.75153289
F160: 170 | G160: =G159-((G$158-G$170)/12) -> 17.5686 | H160: 16.14411892 | I160: 14.24481081 | J160: =J159-((J$158-J$170)/12) -> 23.7070125 | K160: 15.19446486 | L160: =L159+(L170-L158)/12 -> 18.0686 | M160: =M159+(M170-M158)/12 -> 15.21566316 | N160: =N159+(N170-N158)/12 -> 13.78919474
F161: 171 | G161: 17.61795 | H161: 16.18946757 | I161: 14.28482432 | J161: 23.75146875 | K161: 15.23714595 | L161: =L160+(L170-L158)/12 -> 18.11795 | M161: =M160+(M170-M158)/12 -> 15.25722105 | N161: =N160+(N170-N158)/12 -> 13.82685658
F162: 172 | G162: 17.6673 | H162: 16.23481622 | I162: 14.32483784 | J162: 23.795925 | K162: 15.27982703 | L162: =L161+(L170-L158)/12 -> 18.1673 | M162: =M161+(M170-M158)/12 -> 15.29877895 | N162: =N161+(N170-N158)/12 -> 13.86451842
F163: 173 | G163: 17.71665 | H163: 16.28016486 | I163: 14.36485135 | J163: 23.84038125 | K163: 15.32250811 | L163: =L162+(L170-L158)/12 -> 18.21665 | M163: =M162+(M170-M158)/12 -> 15.34033684 | N163: =N162+(N170-N158)/12 -> 13.90218026
F164: 174 | G164: 17.766 | H164: 16.32551351 | I164: 14.40486486 | J164: 23.8848375 | K164: 15.36518919 | L164: =L163+(L170-L158)/12 -> 18.266 | M164: =M163+(M170-M158)/12 -> 15.38189474 | N164: =N163+(N170-N158)/12 -> 13.93984211
F165: 175 | G165: 17.81535 | H165: 16.37086216 | I165: 14.44487838 | J165: 23.92929375 | K165: 15.40787027 | L165: =L164+(L170-L158)/12 -> 18.31535 | M165: =M164+(M170-M158)/12 -> 15.42345263 | N165: =N164+(N170-N158)/12 -> 13.97750395
F166: 176 | G166: 17.8647 | H166: 16.41621081 | I166: 14.48489189 | J166: 23.97375 | K166: 15.45055135 | L166: =L165+(L170-L158)/12 -> 18.3647 | M166: =M165+(M170-M158)/12 -> 15.46501053 | N166: =N165+(N170-N158)/12 -> 14.01516579
F167: 177 | G167: 17.91405 | H167: 16.46155946 | I167: 14.52490541 | J167: 24.01820625 | K167: 15.49323243 | L167: =L166+(L170-L158)/12 -> 18.41405 | M167: =M166+(M170-M158)/12 -> 15.50656842 | N167: =N166+(N170-N158)/12 -> 14.05282763
F168: 178 | G168: 17.9634 | H168: 16.50690811 | I168: 14.56491892 | J168: 24.0626625 | K168: 15.53591351 | L168: =L167+(L170-L158)/12 -> 18.4634 | M168: =M167+(M170-M158)/12 -> 15.54812632 | N168: =N167+(N170-N158)/12 -> 14.09048947
F169: 179 | G169: 18.01275 | H169: 16.55225676 | I169: 14.60493243 | J169: =J168-((J$158-J$170)/12) -> 24.10711875 | K169: 15.57859459 | L169: =L168+(L170-L158)/12 -> 18.51275 | M169: =M168+(M170-M158)/12 -> 15.58968421 | N169: =N168+(N170-N158)/12 -> 14.12815132
E170: 15 | F170: 180 | G170: ='Courbe IMC'!Q$51 -> 18.0621 | H170: 16.59760541 | I170: 14.64494595 | J170: ='Courbe IMC'!Q$48 -> 24.151575 | K170: 15.62127568 | L170: =G170+0.5 -> 18.5621 | M170: =L170*16/19 -> 15.63124211 | N170: =L170*14.5/19 -> 14.16581316
F171: 181 | G171: =G170-((G$170-G$182)/12) -> 18.086775 | H171: 16.62027973 | I171: 14.6649527 | J171: =J170-((J$170-J$182)/12) -> 24.17763125 | K171: 15.64261622 | L171: =L170+(L182-L170)/12 -> 18.586775 | M171: =M170+(M182-M170)/12 -> 15.65202105 | N171: =N170+(N182-N170)/12 -> 14.18464408
F172: 182 | G172: =G171-((G$170-G$182)/12) -> 18.11145 | H172: 16.64295405 | I172: 14.68495946 | J172: =J171-((J$170-J$182)/12) -> 24.2036875 | K172: 15.66395676 | L172: =L171+(L182-L170)/12 -> 18.61145 | M172: =M171+(M182-M170)/12 -> 15.6728 | N172: =N171+(N182-N170)/12 -> 14.203475
F173: 183 | G173: 18.136125 | H173: 16.66562838 | I173: 14.70496622 | J173: 24.22974375 | K173: 15.6852973 | L173: =L172+(L182-L170)/12 -> 18.636125 | M173: =M172+(M182-M170)/12 -> 15.69357895 | N173: =N172+(N182-N170)/12 -> 14.22230592
F174: 184 | G174: 18.1608 | H174: 16.6883027 | I174: 14.72497297 | J174: 24.2558 | K174: 15.70663784 | L174: =L173+(L182-L170)/12 -> 18.6608 | M174: =M173+(M182-M170)/12 -> 15.71435789 | N174: =N173+(N182-N170)/12 -> 14.24113684
F175: 185 | G175: 18.185475 | H175: 16.71097703 | I175: 14.74497973 | J175: 24.28185625 | K175: 15.72797838 | L175: =L174+(L182-L170)/12 -> 18.685475 | M175: =M174+(M182-M170)/12 -> 15.73513684 | N175: =N174+(N182-N170)/12 -> 14.25996776
F176: 186 | G176: 18.21015 | H176: 16.73365135 | I176: 14.76498649 | J176: 24.3079125 | K176: 15.74931892 | L176: =L175+(L182-L170)/12 -> 18.71015 | M176: =M175+(M182-M170)/12 -> 15.75591579 | N176: =N175+(N182-N170)/12 -> 14.27879868
F177: 187 | G177: 18.234825 | H177: 16.75632568 | I177: 14.78499324 | J177: 24.33396875 | K177: 15.77065946 | L177: =L176+(L182-L170)/12 -> 18.734825 | M177: =M176+(M182-M170)/12 -> 15.77669474 | N177: =N176+(N182-N170)/12 -> 14.29762961
F178: 188 | G178: 18.2595 | H178: 16.779 | I178: 14.805 | J178: 24.360025 | K178: 15.792 | L178: =L177+(L182-L170)/12 -> 18.7595 | M178: =M177+(M182-M170)/12 -> 15.79747368 | N178: =N177+(N182-N170)/12 -> 14.31646053
F179: 189 | G179: 18.284175 | H179: 16.80167432 | I179: 14.82500676 | J179: 24.38608125 | K179: 15.81334054 | L179: =L178+(L182-L170)/12 -> 18.784175 | M179: =M178+(M182-M170)/12 -> 15.81825263 | N179: =N178+(N182-N170)/12 -> 14.33529145
F180: 190 | G180: 18.30885 | H180: 16.82434865 | I180: 14.84501351 | J180: 24.4121375 | K180: 15.83468108 | L180: =L179+(L182-L170)/12 -> 18.80885 | M180: =M179+(M182-M170)/12 -> 15.83903158 | N180: =N179+(N182-N170)/12 -> 14.35412237
F181: 191 | G181: 18.333525 | H181: 16.84702297 | I181: 14.86502027 | J181: 24.43819375 | K181: 15.85602162 | L181: =L180+(L182-L170)/12 -> 18.833525 | M181: =M180+(M182-M170)/12 -> 15.85981053 | N181: =N180+(N182-N170)/12 -> 14.37295329
E182: 16 | F182: 192 | G182: ='Courbe IMC'!R$51 -> 18.3582 | H182: 16.8696973 | I182: 14.88502703 | J182: ='Courbe IMC'!R$48 -> 24.46425 | K182: 15.87736216 | L182: =G182+0.5 -> 18.8582 | M182: =L182*16/19 -> 15.88058947 | N182: =L182*14.5/19 -> 14.39178421
F183: 193 | G183: =G182-((G$182-G$194)/12) -> 18.366425 | H183: 16.87725541 | I183: 14.89169595 | J183: =J182-((J$182-J$194)/12) -> 24.48665417 | K183: 15.88447568 | L183: =L182+(L194-L182)/12 -> 18.866425 | M183: =M182+(M194-M182)/12 -> 15.88751579 | N183: =N182+(N194-N182)/12 -> 14.39806118
F184: 194 | G184: =G183-((G$182-G$194)/12) -> 18.37465 | H184: 16.88481351 | I184: 14.89836486 | J184: =J183-((J$182-J$194)/12) -> 24.50905833 | K184: 15.89158919 | L184: =L183+(L194-L182)/12 -> 18.87465 | M184: =M183+(M194-M182)/12 -> 15.89444211 | N184: =N183+(N194-N182)/12 -> 14.40433816
F185: 195 | G185: 18.382875 | H185: 16.89237162 | I185: 14.90503378 | J185: 24.5314625 | K185: 15.8987027 | L185: =L184+(L194-L182)/12 -> 18.882875 | M185: =M184+(M194-M182)/12 -> 15.90136842 | N185: =N184+(N194-N182)/12 -> 14.41061513
F186: 196 | G186: 18.3911 | H186: 16.89992973 | I186: 14.9117027 | J186: 24.55386667 | K186: 15.90581622 | L186: =L185+(L194-L182)/12 -> 18.8911 | M186: =M185+(M194-M182)/12 -> 15.90829474 | N186: =N185+(N194-N182)/12 -> 14.41689211
F187: 197 | G187: 18.399325 | H187: 16.90748784 | I187: 14.91837162 | J187: 24.57627083 | K187: 15.91292973 | L187: =L186+(L194-L182)/12 -> 18.899325 | M187: =M186+(M194-M182)/12 -> 15.91522105 | N187: =N186+(N194-N182)/12 -> 14.42316908
F188: 198 | G188: 18.40755 | H188: 16.91504595 | I188: 14.92504054 | J188: 24.598675 | K188: 15.92004324 | L188: =L187+(L194-L182)/12 -> 18.90755 | M188: =M187+(M194-M182)/12 -> 15.92214737 | N188: =N187+(N194-N182)/12 -> 14.42944605
F189: 199 | G189: 18.415775 | H189: 16.92260405 | I189: 14.93170946 | J189: 24.62107917 | K189: 15.92715676 | L189: =L188+(L194-L182)/12 -> 18.915775 | M189: =M188+(M194-M182)/12 -> 15.92907368 | N189: =N188+(N194-N182)/12 -> 14.43572303
F190: 200 | G190: 18.424 | H190: 16.93016216 | I190: 14.93837838 | J190: 24.64348333 | K190: 15.93427027 | L190: =L189+(L194-L182)/12 -> 18.924 | M190: =M189+(M194-M182)/12 -> 15.936 | N190: =N189+(N194-N182)/12 -> 14.442
F191: 201 | G191: 18.432225 | H191: 16.93772027 | I191: 14.9450473 | J191: 24.6658875 | K191: 15.94138378 | L191: =L190+(L194-L182)/12 -> 18.932225 | M191: =M190+(M194-M182)/12 -> 15.94292632 | N191: =N190+(N194-N182)/12 -> 14.44827697
F192: 202 | G192: 18.44045 | H192: 16.94527838 | I192: 14.95171622 | J192: 24.68829167 | K192: 15.9484973 | L192: =L191+(L194-L182)/12 -> 18.94045 | M192: =M191+(M194-M182)/12 -> 15.94985263 | N192: =N191+(N194-N182)/12 -> 14.45455395
F193: 203 | G193: 18.448675 | H193: 16.95283649 | I193: 14.95838514 | J193: 24.71069583 | K193: 15.95561081 | L193: =L192+(L194-L182)/12 -> 18.948675 | M193: =M192+(M194-M182)/12 -> 15.95677895 | N193: =N192+(N194-N182)/12 -> 14.46083092
E194: 17 | F194: 204 | G194: ='Courbe IMC'!S$51 -> 18.4569 | H194: 16.96039459 | I194: 14.96505405 | J194: ='Courbe IMC'!S$48 -> 24.7331 | K194: 15.96272432 | L194: =G194+0.5 -> 18.9569 | M194: =L194*16/19 -> 15.96370526 | N194: =L194*14.5/19 -> 14.46710789
F195: 205 | G195: =G194-((G$194-G$206)/12) -> 18.46049167 | H195: =G195*17/18.5 -> 16.96369505 | I195: =G195*15/18.5 -> 14.96796622 | J195: =J194-((J$194-J$206)/12) -> 24.75534167 | K195: =G195*16/18.5 -> 15.96583063 | L195: =L194+(L206-L194)/12 -> 18.96049167 | M195: =M194+(M206-M194)/12 -> 15.96672982 | N195: =N194+(N206-N194)/12 -> 14.4698489
F196: 206 | G196: =G195-((G$194-G$206)/12) -> 18.46408333 | H196: 16.9669955 | I196: 14.97087838 | J196: =J195-((J$194-J$206)/12) -> 24.77758333 | K196: 15.96893694 | L196: =L195+(L206-L194)/12 -> 18.96408333 | M196: =M195+(M206-M194)/12 -> 15.96975439 | N196: =N195+(N206-N194)/12 -> 14.47258991
F197: 207 | G197: 18.467675 | H197: 16.97029595 | I197: 14.97379054 | J197: 24.799825 | K197: 15.97204324 | L197: =L196+(L206-L194)/12 -> 18.967675 | M197: =M196+(M206-M194)/12 -> 15.97277895 | N197: =N196+(N206-N194)/12 -> 14.47533092
F198: 208 | G198: 18.47126667 | H198: 16.9735964 | I198: 14.9767027 | J198: 24.82206667 | K198: 15.97514955 | L198: =L197+(L206-L194)/12 -> 18.97126667 | M198: =M197+(M206-M194)/12 -> 15.97580351 | N198: =N197+(N206-N194)/12 -> 14.47807193
F199: 209 | G199: 18.47485833 | H199: 16.97689685 | I199: 14.97961486 | J199: 24.84430833 | K199: 15.97825586 | L199: =L198+(L206-L194)/12 -> 18.97485833 | M199: =M198+(M206-M194)/12 -> 15.97882807 | N199: =N198+(N206-N194)/12 -> 14.48081294
F200: 210 | G200: 18.47845 | H200: 16.9801973 | I200: 14.98252703 | J200: 24.86655 | K200: 15.98136216 | L200: =L199+(L206-L194)/12 -> 18.97845 | M200: =M199+(M206-M194)/12 -> 15.98185263 | N200: =N199+(N206-N194)/12 -> 14.48355395
... 60 more rows

Sheet crises
A1: =IF(ISBLANK(Accueil!B9),"",Accueil!B9) -> 
B3: Crise(s) | C3: Purge(s)
A4: S 1
A5: S 2
A6: S 3
A7: S 4
A8: S 5
A9: S 6
A10: S 7
A11: S 8
A12: S 9
A13: S 10
A14: S 11
A15: S 12
A16: S 13
A17: S 14
A18: S 15
A19: S 16
A20: S 17
A21: S 18
A22: S 19
A23: S 20
A24: S 21
A25: S 22
A26: S 23
A27: S 24
A28: S 25
A29: S 26
A30: S 27
A31: S 28
A32: S 29
A33: S 30
A34: S 31
A35: S 32
A36: S 33
A37: S 34
A38: S 35
A39: S 36
A40: S 37
A41: S 38
A42: S 39
A43: S 40

Sheet Genogramme
V3: Antécédents
B4: =IF(ISBLANK(socio!C28),"",socio!C28) ->  | D4: =IF(ISBLANK(socio!G28),"",socio!G28) ->  | F4: =IF(ISBLANK(socio!C34),"",socio!C34) ->  | H4: =IF(ISBLANK(socio!G34),"",socio!G34) ->  | J4: Grands Parents | U4: GMM | V4: 1
B5: =IF(ISBLANK(socio!D28),"",socio!D28) ->  | D5: =IF(ISBLANK(socio!H28),"",socio!H28) ->  | F5: =IF(ISBLANK(socio!D34),"",socio!D34) ->  | H5: =IF(ISBLANK(socio!H34),"",socio!H34) -> 
B6: =IF(ISBLANK(V4),"",VLOOKUP(V4,listes!$L$18:$M23,2)) -> - | D6: =IF(ISBLANK(V6),"",VLOOKUP(V6,listes!$L$18:$M23,2)) -> - | F6: =IF(ISBLANK(V8),"",VLOOKUP(V8,listes!$L$18:$M23,2)) -> - | H6: =IF(ISBLANK(V10),"",VLOOKUP(V10,listes!$L$18:$M23,2)) -> - | U6: GPM | V6: 1
U8: GMP | V8: 1
K9: =IF(ISBLANK(R4),"",R4) -> 
K10: =IF(ISBLANK(S4),"",W4&" "&S4) ->  | U10: GPP | V10: 1
U12: P | V12: 1
C13: =IF(ISBLANK(socio!C40),"",socio!C40) ->  | G13: =IF(ISBLANK(socio!G40),"",socio!G40) ->  | J13: Parents
C14: =IF(ISBLANK(socio!D40),"",socio!D40) ->  | G14: =IF(ISBLANK(socio!H40),"",socio!H40) ->  | U14: M | V14: 1
C15: =IF(ISBLANK(V14),"",VLOOKUP(V14,listes!$L$18:$M32,2)) -> - | G15: =IF(ISBLANK(V12),"",VLOOKUP(V12,listes!$L$18:$M32,2)) -> -
T16: =socio!$E$8 -> 0 | U16: F1 | V16: F2 | W16: F3 | X16: F4 | Y16: F5 | Z16: F6
U17: =IF(ISBLANK(socio!$C$46),"",socio!$C$46) ->  | V17: =IF(ISBLANK(socio!$C$49),"",socio!$C$49) ->  | W17: =IF(ISBLANK(socio!$C$52),"",socio!$C$52) ->  | X17: =IF(ISBLANK(socio!$C$55),"",socio!$C$55) ->  | Y17: =IF(ISBLANK(socio!$C$58),"",socio!$C$58) ->  | Z17: =IF(ISBLANK(socio!$C$61),"",socio!$C$61) -> 
U18: =IF(ISBLANK(socio!$D$46),"",socio!$D$46) ->  | V18: =IF(ISBLANK(socio!$D$49),"",socio!$D$49) ->  | W18: =IF(ISBLANK(socio!$D$52),"",socio!$D$52) ->  | X18: =IF(ISBLANK(socio!$D$55),"",socio!$D$55) ->  | Y18: =IF(ISBLANK(socio!$D$58),"",socio!$D$58) ->  | Z18: =IF(ISBLANK(socio!$D$61),"",socio!$D$61) -> 
U19: =IF(ISBLANK(U25),"",VLOOKUP(U25,listes!$L$18:$M23,2)) -> - | V19: =IF(ISBLANK(V25),"",VLOOKUP(V25,listes!$L$18:$M23,2)) -> - | W19: =IF(ISBLANK(W25),"",VLOOKUP(W25,listes!$L$18:$M23,2)) -> - | X19: =IF(ISBLANK(X25),"",VLOOKUP(X25,listes!$L$18:$M23,2)) -> - | Y19: =IF(ISBLANK(Y25),"",VLOOKUP(Y25,listes!$L$18:$M23,2)) -> - | Z19: =IF(ISBLANK(Z25),"",VLOOKUP(Z25,listes!$L$18:$M23,2)) -> -
T20: =socio!F8 -> 0 | U20: S1 | V20: S2 | W20: S3 | X20: S4 | Y20: S5 | Z20: S6
U21: =IF(ISBLANK(socio!$G$46),"",socio!$G$46) ->  | V21: =IF(ISBLANK(socio!$G$49),"",socio!$G$49) ->  | W21: =IF(ISBLANK(socio!$G$52),"",socio!$G$52) ->  | X21: =IF(ISBLANK(socio!$G$55),"",socio!$G$55) ->  | Y21: =IF(ISBLANK(socio!$G$58),"",socio!$G$58) ->  | Z21: =IF(ISBLANK(socio!$G$61),"",socio!$G$61) -> 
B22: =U17 ->  | J22: Frère(s) | U22: =IF(ISBLANK(socio!$H$46),"",socio!$H$46) ->  | V22: =IF(ISBLANK(socio!$H$49),"",socio!$H$49) ->  | W22: =IF(ISBLANK(socio!$H$52),"",socio!$H$52) ->  | X22: =IF(ISBLANK(socio!$H$55),"",socio!$H$55) ->  | Y22: =IF(ISBLANK(socio!$H$58),"",socio!$H$58) ->  | Z22: =IF(ISBLANK(socio!$H$61),"",socio!$H$61) -> 
B23: =U18 ->  | U23: =IF(ISBLANK(U29),"",VLOOKUP(U29,listes!$L$18:$M23,2)) -> - | V23: =IF(ISBLANK(V29),"",VLOOKUP(V29,listes!$L$18:$M23,2)) -> - | W23: =IF(ISBLANK(W29),"",VLOOKUP(W29,listes!$L$18:$M23,2)) -> - | X23: =IF(ISBLANK(X29),"",VLOOKUP(X29,listes!$L$18:$M23,2)) -> - | Y23: =IF(ISBLANK(Y29),"",VLOOKUP(Y29,listes!$L$18:$M23,2)) -> - | Z23: =IF(ISBLANK(Z29),"",VLOOKUP(Z29,listes!$L$18:$M23,2)) -> -
U25: 1 | V25: 1 | W25: 1 | X25: 1 | Y25: 1 | Z25: 1
J29: Sœur(s) | U29: 1 | V29: 1 | W29: 1 | X29: 1 | Y29: 1 | Z29: 1

Sheet SilhouettesF
A1: Test des silhouettes
A3: Après avoir regardé ces silhouettes, répondez aux questions ci-dessous en déplaçant les 3 curseurs vers les positions correspondant le mieux à votre appréciation.
A21: Quelle silhouette vous semble la plus proche de la vôtre ?
A22: Quelle serait la silhouette idéale pour vous, celle que vous aimeriez avoir ?
A23: Quelle est, d'après vous, la silhouette correspondant le mieux à celle des personnes de votre âge ?

Sheet SilhouettesH
A1: Test des silhouettes
A3: Après avoir regardé ces silhouettes, répondez aux questions ci-dessous en déplaçant les 3 curseurs vers les positions correspondant le mieux à votre appréciation.
A21: Quelle silhouette vous semble la plus proche de la vôtre ?
A22: Quelle serait la silhouette idéale pour vous, celle que vous aimeriez avoir ?
A23: Quelle est, d'après vous, la silhouette correspondant le mieux à celle des personnes de votre âge ?

Sheet SilhFilles
A1: Test des silhouettes
A3: Après avoir regardé ces silhouettes, répondez aux questions ci-dessous en déplaçant les 3 curseurs vers les positions correspondant le mieux à votre appréciation.
A21: Quelle silhouette vous semble la plus proche de la vôtre ?
A22: Quelle serait la silhouette idéale pour vous, celle que vous aimeriez avoir ?
A23: Quelle est, d'après vous, la silhouette correspondant le mieux à celle des personnes de votre âge ?

Sheet SilhGarcons
A1: Test des silhouettes
A3: Après avoir regardé ces silhouettes, répondez aux questions ci-dessous en déplaçant les 3 curseurs vers les positions correspondant le mieux à votre appréciation.
A21: Quelle silhouette vous semble la plus proche de la vôtre ?
A22: Quelle serait la silhouette idéale pour vous, celle que vous aimeriez avoir ?
A23: Quelle est, d'après vous, la silhouette correspondant le mieux à celle des personnes de votre âge ?

Sheet Feuil1
B1: =IF(ISBLANK(Accueil!B8),"sujet",(Accueil!B8)) ->  | C1: Min Norme | D1: Surpoids | E1: Anorexie | F1: Obésité | G1: Hospitalisation | H1: Danger
A2: =Accueil!B3 -> 2021-01-17 | B2: =Accueil!E3 -> 0 | C2: =HLOOKUP(A2,'Courbe In'!$AA$2:$CD$3,2) ->  | D2: =HLOOKUP(A2,'Courbe In'!$AA$2:$CD$7,5) ->  | E2: =HLOOKUP(A2,'Courbe In'!$AA$2:$CD$7,4) ->  | F2: =HLOOKUP(A2,'Courbe In'!$AA$2:$CD$7,6) ->  | G2: =HLOOKUP(A2,'Courbe In'!$AA$2:$CD$8,7) ->  | H2: =HLOOKUP(A2,'Courbe In'!$AA$2:$CD$9,8) -> 
A3: =A2+1 -> 2021-01-18 | C3: =HLOOKUP(A3,'Courbe In'!$AA$2:$CD$3,2) ->  | D3: =HLOOKUP(A3,'Courbe In'!$AA$2:$CD$7,5) ->  | E3: =HLOOKUP(A3,'Courbe In'!$AA$2:$CD$7,4) ->  | F3: =HLOOKUP(A3,'Courbe In'!$AA$2:$CD$7,6) ->  | G3: =HLOOKUP(A3,'Courbe In'!$AA$2:$CD$8,7) ->  | H3: =HLOOKUP(A3,'Courbe In'!$AA$2:$CD$9,8) -> 
A4: =A3+1 -> 2021-01-19 | C4: =HLOOKUP(A4,'Courbe In'!$AA$2:$CD$3,2) ->  | D4: =HLOOKUP(A4,'Courbe In'!$AA$2:$CD$7,5) ->  | E4: =HLOOKUP(A4,'Courbe In'!$AA$2:$CD$7,4) ->  | F4: =HLOOKUP(A4,'Courbe In'!$AA$2:$CD$7,6) ->  | G4: =HLOOKUP(A4,'Courbe In'!$AA$2:$CD$8,7) ->  | H4: =HLOOKUP(A4,'Courbe In'!$AA$2:$CD$9,8) -> 
A5: 2021-01-20 | C5: =HLOOKUP(A5,'Courbe In'!$AA$2:$CD$3,2) ->  | D5: =HLOOKUP(A5,'Courbe In'!$AA$2:$CD$7,5) ->  | E5: =HLOOKUP(A5,'Courbe In'!$AA$2:$CD$7,4) ->  | F5: =HLOOKUP(A5,'Courbe In'!$AA$2:$CD$7,6) ->  | G5: =HLOOKUP(A5,'Courbe In'!$AA$2:$CD$8,7) ->  | H5: =HLOOKUP(A5,'Courbe In'!$AA$2:$CD$9,8) -> 
A6: 2021-01-21 | C6: =HLOOKUP(A6,'Courbe In'!$AA$2:$CD$3,2) ->  | D6: =HLOOKUP(A6,'Courbe In'!$AA$2:$CD$7,5) ->  | E6: =HLOOKUP(A6,'Courbe In'!$AA$2:$CD$7,4) ->  | F6: =HLOOKUP(A6,'Courbe In'!$AA$2:$CD$7,6) ->  | G6: =HLOOKUP(A6,'Courbe In'!$AA$2:$CD$8,7) ->  | H6: =HLOOKUP(A6,'Courbe In'!$AA$2:$CD$9,8) -> 
A7: 2021-01-22 | C7: =HLOOKUP(A7,'Courbe In'!$AA$2:$CD$3,2) ->  | D7: =HLOOKUP(A7,'Courbe In'!$AA$2:$CD$7,5) ->  | E7: =HLOOKUP(A7,'Courbe In'!$AA$2:$CD$7,4) ->  | F7: =HLOOKUP(A7,'Courbe In'!$AA$2:$CD$7,6) ->  | G7: =HLOOKUP(A7,'Courbe In'!$AA$2:$CD$8,7) ->  | H7: =HLOOKUP(A7,'Courbe In'!$AA$2:$CD$9,8) -> 
A8: 2021-01-23 | C8: =HLOOKUP(A8,'Courbe In'!$AA$2:$CD$3,2) ->  | D8: =HLOOKUP(A8,'Courbe In'!$AA$2:$CD$7,5) ->  | E8: =HLOOKUP(A8,'Courbe In'!$AA$2:$CD$7,4) ->  | F8: =HLOOKUP(A8,'Courbe In'!$AA$2:$CD$7,6) ->  | G8: =HLOOKUP(A8,'Courbe In'!$AA$2:$CD$8,7) ->  | H8: =HLOOKUP(A8,'Courbe In'!$AA$2:$CD$9,8) -> 
A9: 2021-01-24 | C9: =HLOOKUP(A9,'Courbe In'!$AA$2:$CD$3,2) ->  | D9: =HLOOKUP(A9,'Courbe In'!$AA$2:$CD$7,5) ->  | E9: =HLOOKUP(A9,'Courbe In'!$AA$2:$CD$7,4) ->  | F9: =HLOOKUP(A9,'Courbe In'!$AA$2:$CD$7,6) ->  | G9: =HLOOKUP(A9,'Courbe In'!$AA$2:$CD$8,7) ->  | H9: =HLOOKUP(A9,'Courbe In'!$AA$2:$CD$9,8) -> 
A10: 2021-01-25 | C10: =HLOOKUP(A10,'Courbe In'!$AA$2:$CD$3,2) ->  | D10: =HLOOKUP(A10,'Courbe In'!$AA$2:$CD$7,5) ->  | E10: =HLOOKUP(A10,'Courbe In'!$AA$2:$CD$7,4) ->  | F10: =HLOOKUP(A10,'Courbe In'!$AA$2:$CD$7,6) ->  | G10: =HLOOKUP(A10,'Courbe In'!$AA$2:$CD$8,7) ->  | H10: =HLOOKUP(A10,'Courbe In'!$AA$2:$CD$9,8) -> 
A11: 2021-01-26 | C11: =HLOOKUP(A11,'Courbe In'!$AA$2:$CD$3,2) ->  | D11: =HLOOKUP(A11,'Courbe In'!$AA$2:$CD$7,5) ->  | E11: =HLOOKUP(A11,'Courbe In'!$AA$2:$CD$7,4) ->  | F11: =HLOOKUP(A11,'Courbe In'!$AA$2:$CD$7,6) ->  | G11: =HLOOKUP(A11,'Courbe In'!$AA$2:$CD$8,7) ->  | H11: =HLOOKUP(A11,'Courbe In'!$AA$2:$CD$9,8) -> 
A12: 2021-01-27 | C12: =HLOOKUP(A12,'Courbe In'!$AA$2:$CD$3,2) ->  | D12: =HLOOKUP(A12,'Courbe In'!$AA$2:$CD$7,5) ->  | E12: =HLOOKUP(A12,'Courbe In'!$AA$2:$CD$7,4) ->  | F12: =HLOOKUP(A12,'Courbe In'!$AA$2:$CD$7,6) ->  | G12: =HLOOKUP(A12,'Courbe In'!$AA$2:$CD$8,7) ->  | H12: =HLOOKUP(A12,'Courbe In'!$AA$2:$CD$9,8) -> 
A13: 2021-01-28 | C13: =HLOOKUP(A13,'Courbe In'!$AA$2:$CD$3,2) ->  | D13: =HLOOKUP(A13,'Courbe In'!$AA$2:$CD$7,5) ->  | E13: =HLOOKUP(A13,'Courbe In'!$AA$2:$CD$7,4) ->  | F13: =HLOOKUP(A13,'Courbe In'!$AA$2:$CD$7,6) ->  | G13: =HLOOKUP(A13,'Courbe In'!$AA$2:$CD$8,7) ->  | H13: =HLOOKUP(A13,'Courbe In'!$AA$2:$CD$9,8) -> 
A14: 2021-01-29 | C14: =HLOOKUP(A14,'Courbe In'!$AA$2:$CD$3,2) ->  | D14: =HLOOKUP(A14,'Courbe In'!$AA$2:$CD$7,5) ->  | E14: =HLOOKUP(A14,'Courbe In'!$AA$2:$CD$7,4) ->  | F14: =HLOOKUP(A14,'Courbe In'!$AA$2:$CD$7,6) ->  | G14: =HLOOKUP(A14,'Courbe In'!$AA$2:$CD$8,7) ->  | H14: =HLOOKUP(A14,'Courbe In'!$AA$2:$CD$9,8) -> 
A15: 2021-01-30 | C15: =HLOOKUP(A15,'Courbe In'!$AA$2:$CD$3,2) ->  | D15: =HLOOKUP(A15,'Courbe In'!$AA$2:$CD$7,5) ->  | E15: =HLOOKUP(A15,'Courbe In'!$AA$2:$CD$7,4) ->  | F15: =HLOOKUP(A15,'Courbe In'!$AA$2:$CD$7,6) ->  | G15: =HLOOKUP(A15,'Courbe In'!$AA$2:$CD$8,7) ->  | H15: =HLOOKUP(A15,'Courbe In'!$AA$2:$CD$9,8) -> 
A16: 2021-01-31 | C16: =HLOOKUP(A16,'Courbe In'!$AA$2:$CD$3,2) ->  | D16: =HLOOKUP(A16,'Courbe In'!$AA$2:$CD$7,5) ->  | E16: =HLOOKUP(A16,'Courbe In'!$AA$2:$CD$7,4) ->  | F16: =HLOOKUP(A16,'Courbe In'!$AA$2:$CD$7,6) ->  | G16: =HLOOKUP(A16,'Courbe In'!$AA$2:$CD$8,7) ->  | H16: =HLOOKUP(A16,'Courbe In'!$AA$2:$CD$9,8) -> 
A17: 2021-02-01 | C17: =HLOOKUP(A17,'Courbe In'!$AA$2:$CD$3,2) ->  | D17: =HLOOKUP(A17,'Courbe In'!$AA$2:$CD$7,5) ->  | E17: =HLOOKUP(A17,'Courbe In'!$AA$2:$CD$7,4) ->  | F17: =HLOOKUP(A17,'Courbe In'!$AA$2:$CD$7,6) ->  | G17: =HLOOKUP(A17,'Courbe In'!$AA$2:$CD$8,7) ->  | H17: =HLOOKUP(A17,'Courbe In'!$AA$2:$CD$9,8) -> 
A18: 2021-02-02 | C18: =HLOOKUP(A18,'Courbe In'!$AA$2:$CD$3,2) ->  | D18: =HLOOKUP(A18,'Courbe In'!$AA$2:$CD$7,5) ->  | E18: =HLOOKUP(A18,'Courbe In'!$AA$2:$CD$7,4) ->  | F18: =HLOOKUP(A18,'Courbe In'!$AA$2:$CD$7,6) ->  | G18: =HLOOKUP(A18,'Courbe In'!$AA$2:$CD$8,7) ->  | H18: =HLOOKUP(A18,'Courbe In'!$AA$2:$CD$9,8) -> 
A19: 2021-02-03 | C19: =HLOOKUP(A19,'Courbe In'!$AA$2:$CD$3,2) ->  | D19: =HLOOKUP(A19,'Courbe In'!$AA$2:$CD$7,5) ->  | E19: =HLOOKUP(A19,'Courbe In'!$AA$2:$CD$7,4) ->  | F19: =HLOOKUP(A19,'Courbe In'!$AA$2:$CD$7,6) ->  | G19: =HLOOKUP(A19,'Courbe In'!$AA$2:$CD$8,7) ->  | H19: =HLOOKUP(A19,'Courbe In'!$AA$2:$CD$9,8) -> 
A20: 2021-02-04 | C20: =HLOOKUP(A20,'Courbe In'!$AA$2:$CD$3,2) ->  | D20: =HLOOKUP(A20,'Courbe In'!$AA$2:$CD$7,5) ->  | E20: =HLOOKUP(A20,'Courbe In'!$AA$2:$CD$7,4) ->  | F20: =HLOOKUP(A20,'Courbe In'!$AA$2:$CD$7,6) ->  | G20: =HLOOKUP(A20,'Courbe In'!$AA$2:$CD$8,7) ->  | H20: =HLOOKUP(A20,'Courbe In'!$AA$2:$CD$9,8) -> 
A21: 2021-02-05 | C21: =HLOOKUP(A21,'Courbe In'!$AA$2:$CD$3,2) ->  | D21: =HLOOKUP(A21,'Courbe In'!$AA$2:$CD$7,5) ->  | E21: =HLOOKUP(A21,'Courbe In'!$AA$2:$CD$7,4) ->  | F21: =HLOOKUP(A21,'Courbe In'!$AA$2:$CD$7,6) ->  | G21: =HLOOKUP(A21,'Courbe In'!$AA$2:$CD$8,7) ->  | H21: =HLOOKUP(A21,'Courbe In'!$AA$2:$CD$9,8) -> 
A22: 2021-02-06 | C22: =HLOOKUP(A22,'Courbe In'!$AA$2:$CD$3,2) ->  | D22: =HLOOKUP(A22,'Courbe In'!$AA$2:$CD$7,5) ->  | E22: =HLOOKUP(A22,'Courbe In'!$AA$2:$CD$7,4) ->  | F22: =HLOOKUP(A22,'Courbe In'!$AA$2:$CD$7,6) ->  | G22: =HLOOKUP(A22,'Courbe In'!$AA$2:$CD$8,7) ->  | H22: =HLOOKUP(A22,'Courbe In'!$AA$2:$CD$9,8) -> 
A23: 2021-02-07 | C23: =HLOOKUP(A23,'Courbe In'!$AA$2:$CD$3,2) ->  | D23: =HLOOKUP(A23,'Courbe In'!$AA$2:$CD$7,5) ->  | E23: =HLOOKUP(A23,'Courbe In'!$AA$2:$CD$7,4) ->  | F23: =HLOOKUP(A23,'Courbe In'!$AA$2:$CD$7,6) ->  | G23: =HLOOKUP(A23,'Courbe In'!$AA$2:$CD$8,7) ->  | H23: =HLOOKUP(A23,'Courbe In'!$AA$2:$CD$9,8) -> 
A24: 2021-02-08 | C24: =HLOOKUP(A24,'Courbe In'!$AA$2:$CD$3,2) ->  | D24: =HLOOKUP(A24,'Courbe In'!$AA$2:$CD$7,5) ->  | E24: =HLOOKUP(A24,'Courbe In'!$AA$2:$CD$7,4) ->  | F24: =HLOOKUP(A24,'Courbe In'!$AA$2:$CD$7,6) ->  | G24: =HLOOKUP(A24,'Courbe In'!$AA$2:$CD$8,7) ->  | H24: =HLOOKUP(A24,'Courbe In'!$AA$2:$CD$9,8) -> 
A25: 2021-02-09 | C25: =HLOOKUP(A25,'Courbe In'!$AA$2:$CD$3,2) ->  | D25: =HLOOKUP(A25,'Courbe In'!$AA$2:$CD$7,5) ->  | E25: =HLOOKUP(A25,'Courbe In'!$AA$2:$CD$7,4) ->  | F25: =HLOOKUP(A25,'Courbe In'!$AA$2:$CD$7,6) ->  | G25: =HLOOKUP(A25,'Courbe In'!$AA$2:$CD$8,7) ->  | H25: =HLOOKUP(A25,'Courbe In'!$AA$2:$CD$9,8) -> 
A26: 2021-02-10 | C26: =HLOOKUP(A26,'Courbe In'!$AA$2:$CD$3,2) ->  | D26: =HLOOKUP(A26,'Courbe In'!$AA$2:$CD$7,5) ->  | E26: =HLOOKUP(A26,'Courbe In'!$AA$2:$CD$7,4) ->  | F26: =HLOOKUP(A26,'Courbe In'!$AA$2:$CD$7,6) ->  | G26: =HLOOKUP(A26,'Courbe In'!$AA$2:$CD$8,7) ->  | H26: =HLOOKUP(A26,'Courbe In'!$AA$2:$CD$9,8) -> 
A27: 2021-02-11 | C27: =HLOOKUP(A27,'Courbe In'!$AA$2:$CD$3,2) ->  | D27: =HLOOKUP(A27,'Courbe In'!$AA$2:$CD$7,5) ->  | E27: =HLOOKUP(A27,'Courbe In'!$AA$2:$CD$7,4) ->  | F27: =HLOOKUP(A27,'Courbe In'!$AA$2:$CD$7,6) ->  | G27: =HLOOKUP(A27,'Courbe In'!$AA$2:$CD$8,7) ->  | H27: =HLOOKUP(A27,'Courbe In'!$AA$2:$CD$9,8) -> 
A28: 2021-02-12 | C28: =HLOOKUP(A28,'Courbe In'!$AA$2:$CD$3,2) ->  | D28: =HLOOKUP(A28,'Courbe In'!$AA$2:$CD$7,5) ->  | E28: =HLOOKUP(A28,'Courbe In'!$AA$2:$CD$7,4) ->  | F28: =HLOOKUP(A28,'Courbe In'!$AA$2:$CD$7,6) ->  | G28: =HLOOKUP(A28,'Courbe In'!$AA$2:$CD$8,7) ->  | H28: =HLOOKUP(A28,'Courbe In'!$AA$2:$CD$9,8) -> 
A29: 2021-02-13 | C29: =HLOOKUP(A29,'Courbe In'!$AA$2:$CD$3,2) ->  | D29: =HLOOKUP(A29,'Courbe In'!$AA$2:$CD$7,5) ->  | E29: =HLOOKUP(A29,'Courbe In'!$AA$2:$CD$7,4) ->  | F29: =HLOOKUP(A29,'Courbe In'!$AA$2:$CD$7,6) ->  | G29: =HLOOKUP(A29,'Courbe In'!$AA$2:$CD$8,7) ->  | H29: =HLOOKUP(A29,'Courbe In'!$AA$2:$CD$9,8) -> 
A30: 2021-02-14 | C30: =HLOOKUP(A30,'Courbe In'!$AA$2:$CD$3,2) ->  | D30: =HLOOKUP(A30,'Courbe In'!$AA$2:$CD$7,5) ->  | E30: =HLOOKUP(A30,'Courbe In'!$AA$2:$CD$7,4) ->  | F30: =HLOOKUP(A30,'Courbe In'!$AA$2:$CD$7,6) ->  | G30: =HLOOKUP(A30,'Courbe In'!$AA$2:$CD$8,7) ->  | H30: =HLOOKUP(A30,'Courbe In'!$AA$2:$CD$9,8) -> 
A31: 2021-02-15 | C31: =HLOOKUP(A31,'Courbe In'!$AA$2:$CD$3,2) ->  | D31: =HLOOKUP(A31,'Courbe In'!$AA$2:$CD$7,5) ->  | E31: =HLOOKUP(A31,'Courbe In'!$AA$2:$CD$7,4) ->  | F31: =HLOOKUP(A31,'Courbe In'!$AA$2:$CD$7,6) ->  | G31: =HLOOKUP(A31,'Courbe In'!$AA$2:$CD$8,7) ->  | H31: =HLOOKUP(A31,'Courbe In'!$AA$2:$CD$9,8) -> 
A32: 2021-02-16 | C32: =HLOOKUP(A32,'Courbe In'!$AA$2:$CD$3,2) ->  | D32: =HLOOKUP(A32,'Courbe In'!$AA$2:$CD$7,5) ->  | E32: =HLOOKUP(A32,'Courbe In'!$AA$2:$CD$7,4) ->  | F32: =HLOOKUP(A32,'Courbe In'!$AA$2:$CD$7,6) ->  | G32: =HLOOKUP(A32,'Courbe In'!$AA$2:$CD$8,7) ->  | H32: =HLOOKUP(A32,'Courbe In'!$AA$2:$CD$9,8) -> 
A33: 2021-02-17 | C33: =HLOOKUP(A33,'Courbe In'!$AA$2:$CD$3,2) ->  | D33: =HLOOKUP(A33,'Courbe In'!$AA$2:$CD$7,5) ->  | E33: =HLOOKUP(A33,'Courbe In'!$AA$2:$CD$7,4) ->  | F33: =HLOOKUP(A33,'Courbe In'!$AA$2:$CD$7,6) ->  | G33: =HLOOKUP(A33,'Courbe In'!$AA$2:$CD$8,7) ->  | H33: =HLOOKUP(A33,'Courbe In'!$AA$2:$CD$9,8) -> 
A34: 2021-02-18 | C34: =HLOOKUP(A34,'Courbe In'!$AA$2:$CD$3,2) ->  | D34: =HLOOKUP(A34,'Courbe In'!$AA$2:$CD$7,5) ->  | E34: =HLOOKUP(A34,'Courbe In'!$AA$2:$CD$7,4) ->  | F34: =HLOOKUP(A34,'Courbe In'!$AA$2:$CD$7,6) ->  | G34: =HLOOKUP(A34,'Courbe In'!$AA$2:$CD$8,7) ->  | H34: =HLOOKUP(A34,'Courbe In'!$AA$2:$CD$9,8) -> 
A35: 2021-02-19 | C35: =HLOOKUP(A35,'Courbe In'!$AA$2:$CD$3,2) ->  | D35: =HLOOKUP(A35,'Courbe In'!$AA$2:$CD$7,5) ->  | E35: =HLOOKUP(A35,'Courbe In'!$AA$2:$CD$7,4) ->  | F35: =HLOOKUP(A35,'Courbe In'!$AA$2:$CD$7,6) ->  | G35: =HLOOKUP(A35,'Courbe In'!$AA$2:$CD$8,7) ->  | H35: =HLOOKUP(A35,'Courbe In'!$AA$2:$CD$9,8) -> 
A36: 2021-02-20 | C36: =HLOOKUP(A36,'Courbe In'!$AA$2:$CD$3,2) ->  | D36: =HLOOKUP(A36,'Courbe In'!$AA$2:$CD$7,5) ->  | E36: =HLOOKUP(A36,'Courbe In'!$AA$2:$CD$7,4) ->  | F36: =HLOOKUP(A36,'Courbe In'!$AA$2:$CD$7,6) ->  | G36: =HLOOKUP(A36,'Courbe In'!$AA$2:$CD$8,7) ->  | H36: =HLOOKUP(A36,'Courbe In'!$AA$2:$CD$9,8) -> 
A37: 2021-02-21 | C37: =HLOOKUP(A37,'Courbe In'!$AA$2:$CD$3,2) ->  | D37: =HLOOKUP(A37,'Courbe In'!$AA$2:$CD$7,5) ->  | E37: =HLOOKUP(A37,'Courbe In'!$AA$2:$CD$7,4) ->  | F37: =HLOOKUP(A37,'Courbe In'!$AA$2:$CD$7,6) ->  | G37: =HLOOKUP(A37,'Courbe In'!$AA$2:$CD$8,7) ->  | H37: =HLOOKUP(A37,'Courbe In'!$AA$2:$CD$9,8) -> 
A38: 2021-02-22 | C38: =HLOOKUP(A38,'Courbe In'!$AA$2:$CD$3,2) ->  | D38: =HLOOKUP(A38,'Courbe In'!$AA$2:$CD$7,5) ->  | E38: =HLOOKUP(A38,'Courbe In'!$AA$2:$CD$7,4) ->  | F38: =HLOOKUP(A38,'Courbe In'!$AA$2:$CD$7,6) ->  | G38: =HLOOKUP(A38,'Courbe In'!$AA$2:$CD$8,7) ->  | H38: =HLOOKUP(A38,'Courbe In'!$AA$2:$CD$9,8) -> 
A39: 2021-02-23 | C39: =HLOOKUP(A39,'Courbe In'!$AA$2:$CD$3,2) ->  | D39: =HLOOKUP(A39,'Courbe In'!$AA$2:$CD$7,5) ->  | E39: =HLOOKUP(A39,'Courbe In'!$AA$2:$CD$7,4) ->  | F39: =HLOOKUP(A39,'Courbe In'!$AA$2:$CD$7,6) ->  | G39: =HLOOKUP(A39,'Courbe In'!$AA$2:$CD$8,7) ->  | H39: =HLOOKUP(A39,'Courbe In'!$AA$2:$CD$9,8) -> 
A40: 2021-02-24 | C40: =HLOOKUP(A40,'Courbe In'!$AA$2:$CD$3,2) ->  | D40: =HLOOKUP(A40,'Courbe In'!$AA$2:$CD$7,5) ->  | E40: =HLOOKUP(A40,'Courbe In'!$AA$2:$CD$7,4) ->  | F40: =HLOOKUP(A40,'Courbe In'!$AA$2:$CD$7,6) ->  | G40: =HLOOKUP(A40,'Courbe In'!$AA$2:$CD$8,7) ->  | H40: =HLOOKUP(A40,'Courbe In'!$AA$2:$CD$9,8) -> 
A41: 2021-02-25 | C41: =HLOOKUP(A41,'Courbe In'!$AA$2:$CD$3,2) ->  | D41: =HLOOKUP(A41,'Courbe In'!$AA$2:$CD$7,5) ->  | E41: =HLOOKUP(A41,'Courbe In'!$AA$2:$CD$7,4) ->  | F41: =HLOOKUP(A41,'Courbe In'!$AA$2:$CD$7,6) ->  | G41: =HLOOKUP(A41,'Courbe In'!$AA$2:$CD$8,7) ->  | H41: =HLOOKUP(A41,'Courbe In'!$AA$2:$CD$9,8) -> 
A42: 2021-02-26 | C42: =HLOOKUP(A42,'Courbe In'!$AA$2:$CD$3,2) ->  | D42: =HLOOKUP(A42,'Courbe In'!$AA$2:$CD$7,5) ->  | E42: =HLOOKUP(A42,'Courbe In'!$AA$2:$CD$7,4) ->  | F42: =HLOOKUP(A42,'Courbe In'!$AA$2:$CD$7,6) ->  | G42: =HLOOKUP(A42,'Courbe In'!$AA$2:$CD$8,7) ->  | H42: =HLOOKUP(A42,'Courbe In'!$AA$2:$CD$9,8) -> 
A43: 2021-02-27 | C43: =HLOOKUP(A43,'Courbe In'!$AA$2:$CD$3,2) ->  | D43: =HLOOKUP(A43,'Courbe In'!$AA$2:$CD$7,5) ->  | E43: =HLOOKUP(A43,'Courbe In'!$AA$2:$CD$7,4) ->  | F43: =HLOOKUP(A43,'Courbe In'!$AA$2:$CD$7,6) ->  | G43: =HLOOKUP(A43,'Courbe In'!$AA$2:$CD$8,7) ->  | H43: =HLOOKUP(A43,'Courbe In'!$AA$2:$CD$9,8) -> 
A44: 2021-02-28 | C44: =HLOOKUP(A44,'Courbe In'!$AA$2:$CD$3,2) ->  | D44: =HLOOKUP(A44,'Courbe In'!$AA$2:$CD$7,5) ->  | E44: =HLOOKUP(A44,'Courbe In'!$AA$2:$CD$7,4) ->  | F44: =HLOOKUP(A44,'Courbe In'!$AA$2:$CD$7,6) ->  | G44: =HLOOKUP(A44,'Courbe In'!$AA$2:$CD$8,7) ->  | H44: =HLOOKUP(A44,'Courbe In'!$AA$2:$CD$9,8) -> 
A45: 2021-03-01 | C45: =HLOOKUP(A45,'Courbe In'!$AA$2:$CD$3,2) ->  | D45: =HLOOKUP(A45,'Courbe In'!$AA$2:$CD$7,5) ->  | E45: =HLOOKUP(A45,'Courbe In'!$AA$2:$CD$7,4) ->  | F45: =HLOOKUP(A45,'Courbe In'!$AA$2:$CD$7,6) ->  | G45: =HLOOKUP(A45,'Courbe In'!$AA$2:$CD$8,7) ->  | H45: =HLOOKUP(A45,'Courbe In'!$AA$2:$CD$9,8) -> 
A46: 2021-03-02 | C46: =HLOOKUP(A46,'Courbe In'!$AA$2:$CD$3,2) ->  | D46: =HLOOKUP(A46,'Courbe In'!$AA$2:$CD$7,5) ->  | E46: =HLOOKUP(A46,'Courbe In'!$AA$2:$CD$7,4) ->  | F46: =HLOOKUP(A46,'Courbe In'!$AA$2:$CD$7,6) ->  | G46: =HLOOKUP(A46,'Courbe In'!$AA$2:$CD$8,7) ->  | H46: =HLOOKUP(A46,'Courbe In'!$AA$2:$CD$9,8) -> 
A47: 2021-03-03 | C47: =HLOOKUP(A47,'Courbe In'!$AA$2:$CD$3,2) ->  | D47: =HLOOKUP(A47,'Courbe In'!$AA$2:$CD$7,5) ->  | E47: =HLOOKUP(A47,'Courbe In'!$AA$2:$CD$7,4) ->  | F47: =HLOOKUP(A47,'Courbe In'!$AA$2:$CD$7,6) ->  | G47: =HLOOKUP(A47,'Courbe In'!$AA$2:$CD$8,7) ->  | H47: =HLOOKUP(A47,'Courbe In'!$AA$2:$CD$9,8) -> 
A48: 2021-03-04 | C48: =HLOOKUP(A48,'Courbe In'!$AA$2:$CD$3,2) ->  | D48: =HLOOKUP(A48,'Courbe In'!$AA$2:$CD$7,5) ->  | E48: =HLOOKUP(A48,'Courbe In'!$AA$2:$CD$7,4) ->  | F48: =HLOOKUP(A48,'Courbe In'!$AA$2:$CD$7,6) ->  | G48: =HLOOKUP(A48,'Courbe In'!$AA$2:$CD$8,7) ->  | H48: =HLOOKUP(A48,'Courbe In'!$AA$2:$CD$9,8) -> 
A49: 2021-03-05 | C49: =HLOOKUP(A49,'Courbe In'!$AA$2:$CD$3,2) ->  | D49: =HLOOKUP(A49,'Courbe In'!$AA$2:$CD$7,5) ->  | E49: =HLOOKUP(A49,'Courbe In'!$AA$2:$CD$7,4) ->  | F49: =HLOOKUP(A49,'Courbe In'!$AA$2:$CD$7,6) ->  | G49: =HLOOKUP(A49,'Courbe In'!$AA$2:$CD$8,7) ->  | H49: =HLOOKUP(A49,'Courbe In'!$AA$2:$CD$9,8) -> 
A50: 2021-03-06 | C50: =HLOOKUP(A50,'Courbe In'!$AA$2:$CD$3,2) ->  | D50: =HLOOKUP(A50,'Courbe In'!$AA$2:$CD$7,5) ->  | E50: =HLOOKUP(A50,'Courbe In'!$AA$2:$CD$7,4) ->  | F50: =HLOOKUP(A50,'Courbe In'!$AA$2:$CD$7,6) ->  | G50: =HLOOKUP(A50,'Courbe In'!$AA$2:$CD$8,7) ->  | H50: =HLOOKUP(A50,'Courbe In'!$AA$2:$CD$9,8) -> 
A51: 2021-03-07 | C51: =HLOOKUP(A51,'Courbe In'!$AA$2:$CD$3,2) ->  | D51: =HLOOKUP(A51,'Courbe In'!$AA$2:$CD$7,5) ->  | E51: =HLOOKUP(A51,'Courbe In'!$AA$2:$CD$7,4) ->  | F51: =HLOOKUP(A51,'Courbe In'!$AA$2:$CD$7,6) ->  | G51: =HLOOKUP(A51,'Courbe In'!$AA$2:$CD$8,7) ->  | H51: =HLOOKUP(A51,'Courbe In'!$AA$2:$CD$9,8) -> 
A52: 2021-03-08 | C52: =HLOOKUP(A52,'Courbe In'!$AA$2:$CD$3,2) ->  | D52: =HLOOKUP(A52,'Courbe In'!$AA$2:$CD$7,5) ->  | E52: =HLOOKUP(A52,'Courbe In'!$AA$2:$CD$7,4) ->  | F52: =HLOOKUP(A52,'Courbe In'!$AA$2:$CD$7,6) ->  | G52: =HLOOKUP(A52,'Courbe In'!$AA$2:$CD$8,7) ->  | H52: =HLOOKUP(A52,'Courbe In'!$AA$2:$CD$9,8) -> 
A53: 2021-03-09 | C53: =HLOOKUP(A53,'Courbe In'!$AA$2:$CD$3,2) ->  | D53: =HLOOKUP(A53,'Courbe In'!$AA$2:$CD$7,5) ->  | E53: =HLOOKUP(A53,'Courbe In'!$AA$2:$CD$7,4) ->  | F53: =HLOOKUP(A53,'Courbe In'!$AA$2:$CD$7,6) ->  | G53: =HLOOKUP(A53,'Courbe In'!$AA$2:$CD$8,7) ->  | H53: =HLOOKUP(A53,'Courbe In'!$AA$2:$CD$9,8) -> 
A54: 2021-03-10 | C54: =HLOOKUP(A54,'Courbe In'!$AA$2:$CD$3,2) ->  | D54: =HLOOKUP(A54,'Courbe In'!$AA$2:$CD$7,5) ->  | E54: =HLOOKUP(A54,'Courbe In'!$AA$2:$CD$7,4) ->  | F54: =HLOOKUP(A54,'Courbe In'!$AA$2:$CD$7,6) ->  | G54: =HLOOKUP(A54,'Courbe In'!$AA$2:$CD$8,7) ->  | H54: =HLOOKUP(A54,'Courbe In'!$AA$2:$CD$9,8) -> 
A55: 2021-03-11 | C55: =HLOOKUP(A55,'Courbe In'!$AA$2:$CD$3,2) ->  | D55: =HLOOKUP(A55,'Courbe In'!$AA$2:$CD$7,5) ->  | E55: =HLOOKUP(A55,'Courbe In'!$AA$2:$CD$7,4) ->  | F55: =HLOOKUP(A55,'Courbe In'!$AA$2:$CD$7,6) ->  | G55: =HLOOKUP(A55,'Courbe In'!$AA$2:$CD$8,7) ->  | H55: =HLOOKUP(A55,'Courbe In'!$AA$2:$CD$9,8) -> 
A56: 2021-03-12 | C56: =HLOOKUP(A56,'Courbe In'!$AA$2:$CD$3,2) ->  | D56: =HLOOKUP(A56,'Courbe In'!$AA$2:$CD$7,5) ->  | E56: =HLOOKUP(A56,'Courbe In'!$AA$2:$CD$7,4) ->  | F56: =HLOOKUP(A56,'Courbe In'!$AA$2:$CD$7,6) ->  | G56: =HLOOKUP(A56,'Courbe In'!$AA$2:$CD$8,7) ->  | H56: =HLOOKUP(A56,'Courbe In'!$AA$2:$CD$9,8) -> 
A57: 2021-03-13 | C57: =HLOOKUP(A57,'Courbe In'!$AA$2:$CD$3,2) ->  | D57: =HLOOKUP(A57,'Courbe In'!$AA$2:$CD$7,5) ->  | E57: =HLOOKUP(A57,'Courbe In'!$AA$2:$CD$7,4) ->  | F57: =HLOOKUP(A57,'Courbe In'!$AA$2:$CD$7,6) ->  | G57: =HLOOKUP(A57,'Courbe In'!$AA$2:$CD$8,7) ->  | H57: =HLOOKUP(A57,'Courbe In'!$AA$2:$CD$9,8) -> 
A58: 2021-03-14 | C58: =HLOOKUP(A58,'Courbe In'!$AA$2:$CD$3,2) ->  | D58: =HLOOKUP(A58,'Courbe In'!$AA$2:$CD$7,5) ->  | E58: =HLOOKUP(A58,'Courbe In'!$AA$2:$CD$7,4) ->  | F58: =HLOOKUP(A58,'Courbe In'!$AA$2:$CD$7,6) ->  | G58: =HLOOKUP(A58,'Courbe In'!$AA$2:$CD$8,7) ->  | H58: =HLOOKUP(A58,'Courbe In'!$AA$2:$CD$9,8) -> 
A59: 2021-03-15 | C59: =HLOOKUP(A59,'Courbe In'!$AA$2:$CD$3,2) ->  | D59: =HLOOKUP(A59,'Courbe In'!$AA$2:$CD$7,5) ->  | E59: =HLOOKUP(A59,'Courbe In'!$AA$2:$CD$7,4) ->  | F59: =HLOOKUP(A59,'Courbe In'!$AA$2:$CD$7,6) ->  | G59: =HLOOKUP(A59,'Courbe In'!$AA$2:$CD$8,7) ->  | H59: =HLOOKUP(A59,'Courbe In'!$AA$2:$CD$9,8) -> 
A60: 2021-03-16 | C60: =HLOOKUP(A60,'Courbe In'!$AA$2:$CD$3,2) ->  | D60: =HLOOKUP(A60,'Courbe In'!$AA$2:$CD$7,5) ->  | E60: =HLOOKUP(A60,'Courbe In'!$AA$2:$CD$7,4) ->  | F60: =HLOOKUP(A60,'Courbe In'!$AA$2:$CD$7,6) ->  | G60: =HLOOKUP(A60,'Courbe In'!$AA$2:$CD$8,7) ->  | H60: =HLOOKUP(A60,'Courbe In'!$AA$2:$CD$9,8) -> 
A61: 2021-03-17 | C61: =HLOOKUP(A61,'Courbe In'!$AA$2:$CD$3,2) ->  | D61: =HLOOKUP(A61,'Courbe In'!$AA$2:$CD$7,5) ->  | E61: =HLOOKUP(A61,'Courbe In'!$AA$2:$CD$7,4) ->  | F61: =HLOOKUP(A61,'Courbe In'!$AA$2:$CD$7,6) ->  | G61: =HLOOKUP(A61,'Courbe In'!$AA$2:$CD$8,7) ->  | H61: =HLOOKUP(A61,'Courbe In'!$AA$2:$CD$9,8) -> 
A62: 2021-03-18 | C62: =HLOOKUP(A62,'Courbe In'!$AA$2:$CD$3,2) ->  | D62: =HLOOKUP(A62,'Courbe In'!$AA$2:$CD$7,5) ->  | E62: =HLOOKUP(A62,'Courbe In'!$AA$2:$CD$7,4) ->  | F62: =HLOOKUP(A62,'Courbe In'!$AA$2:$CD$7,6) ->  | G62: =HLOOKUP(A62,'Courbe In'!$AA$2:$CD$8,7) ->  | H62: =HLOOKUP(A62,'Courbe In'!$AA$2:$CD$9,8) -> 
A63: 2021-03-19 | C63: =HLOOKUP(A63,'Courbe In'!$AA$2:$CD$3,2) ->  | D63: =HLOOKUP(A63,'Courbe In'!$AA$2:$CD$7,5) ->  | E63: =HLOOKUP(A63,'Courbe In'!$AA$2:$CD$7,4) ->  | F63: =HLOOKUP(A63,'Courbe In'!$AA$2:$CD$7,6) ->  | G63: =HLOOKUP(A63,'Courbe In'!$AA$2:$CD$8,7) ->  | H63: =HLOOKUP(A63,'Courbe In'!$AA$2:$CD$9,8) -> 
A64: 2021-03-20 | C64: =HLOOKUP(A64,'Courbe In'!$AA$2:$CD$3,2) ->  | D64: =HLOOKUP(A64,'Courbe In'!$AA$2:$CD$7,5) ->  | E64: =HLOOKUP(A64,'Courbe In'!$AA$2:$CD$7,4) ->  | F64: =HLOOKUP(A64,'Courbe In'!$AA$2:$CD$7,6) ->  | G64: =HLOOKUP(A64,'Courbe In'!$AA$2:$CD$8,7) ->  | H64: =HLOOKUP(A64,'Courbe In'!$AA$2:$CD$9,8) -> 
A65: 2021-03-21 | C65: =HLOOKUP(A65,'Courbe In'!$AA$2:$CD$3,2) ->  | D65: =HLOOKUP(A65,'Courbe In'!$AA$2:$CD$7,5) ->  | E65: =HLOOKUP(A65,'Courbe In'!$AA$2:$CD$7,4) ->  | F65: =HLOOKUP(A65,'Courbe In'!$AA$2:$CD$7,6) ->  | G65: =HLOOKUP(A65,'Courbe In'!$AA$2:$CD$8,7) ->  | H65: =HLOOKUP(A65,'Courbe In'!$AA$2:$CD$9,8) -> 
A66: 2021-03-22 | C66: =HLOOKUP(A66,'Courbe In'!$AA$2:$CD$3,2) ->  | D66: =HLOOKUP(A66,'Courbe In'!$AA$2:$CD$7,5) ->  | E66: =HLOOKUP(A66,'Courbe In'!$AA$2:$CD$7,4) ->  | F66: =HLOOKUP(A66,'Courbe In'!$AA$2:$CD$7,6) ->  | G66: =HLOOKUP(A66,'Courbe In'!$AA$2:$CD$8,7) ->  | H66: =HLOOKUP(A66,'Courbe In'!$AA$2:$CD$9,8) -> 
A67: 2021-03-23 | C67: =HLOOKUP(A67,'Courbe In'!$AA$2:$CD$3,2) ->  | D67: =HLOOKUP(A67,'Courbe In'!$AA$2:$CD$7,5) ->  | E67: =HLOOKUP(A67,'Courbe In'!$AA$2:$CD$7,4) ->  | F67: =HLOOKUP(A67,'Courbe In'!$AA$2:$CD$7,6) ->  | G67: =HLOOKUP(A67,'Courbe In'!$AA$2:$CD$8,7) ->  | H67: =HLOOKUP(A67,'Courbe In'!$AA$2:$CD$9,8) -> 
A68: =A67+1 -> 2021-03-24 | C68: =HLOOKUP(A68,'Courbe In'!$AA$2:$CD$3,2) ->  | D68: =HLOOKUP(A68,'Courbe In'!$AA$2:$CD$7,5) ->  | E68: =HLOOKUP(A68,'Courbe In'!$AA$2:$CD$7,4) ->  | F68: =HLOOKUP(A68,'Courbe In'!$AA$2:$CD$7,6) ->  | G68: =HLOOKUP(A68,'Courbe In'!$AA$2:$CD$8,7) ->  | H68: =HLOOKUP(A68,'Courbe In'!$AA$2:$CD$9,8) -> 
A69: 2021-03-25 | C69: =HLOOKUP(A69,'Courbe In'!$AA$2:$CD$3,2) ->  | D69: =HLOOKUP(A69,'Courbe In'!$AA$2:$CD$7,5) ->  | E69: =HLOOKUP(A69,'Courbe In'!$AA$2:$CD$7,4) ->  | F69: =HLOOKUP(A69,'Courbe In'!$AA$2:$CD$7,6) ->  | G69: =HLOOKUP(A69,'Courbe In'!$AA$2:$CD$8,7) ->  | H69: =HLOOKUP(A69,'Courbe In'!$AA$2:$CD$9,8) -> 
A70: 2021-03-26 | C70: =HLOOKUP(A70,'Courbe In'!$AA$2:$CD$3,2) ->  | D70: =HLOOKUP(A70,'Courbe In'!$AA$2:$CD$7,5) ->  | E70: =HLOOKUP(A70,'Courbe In'!$AA$2:$CD$7,4) ->  | F70: =HLOOKUP(A70,'Courbe In'!$AA$2:$CD$7,6) ->  | G70: =HLOOKUP(A70,'Courbe In'!$AA$2:$CD$8,7) ->  | H70: =HLOOKUP(A70,'Courbe In'!$AA$2:$CD$9,8) -> 
A71: 2021-03-27 | C71: =HLOOKUP(A71,'Courbe In'!$AA$2:$CD$3,2) ->  | D71: =HLOOKUP(A71,'Courbe In'!$AA$2:$CD$7,5) ->  | E71: =HLOOKUP(A71,'Courbe In'!$AA$2:$CD$7,4) ->  | F71: =HLOOKUP(A71,'Courbe In'!$AA$2:$CD$7,6) ->  | G71: =HLOOKUP(A71,'Courbe In'!$AA$2:$CD$8,7) ->  | H71: =HLOOKUP(A71,'Courbe In'!$AA$2:$CD$9,8) -> 
A72: 2021-03-28 | C72: =HLOOKUP(A72,'Courbe In'!$AA$2:$CD$3,2) ->  | D72: =HLOOKUP(A72,'Courbe In'!$AA$2:$CD$7,5) ->  | E72: =HLOOKUP(A72,'Courbe In'!$AA$2:$CD$7,4) ->  | F72: =HLOOKUP(A72,'Courbe In'!$AA$2:$CD$7,6) ->  | G72: =HLOOKUP(A72,'Courbe In'!$AA$2:$CD$8,7) ->  | H72: =HLOOKUP(A72,'Courbe In'!$AA$2:$CD$9,8) -> 
A73: 2021-03-29 | C73: =HLOOKUP(A73,'Courbe In'!$AA$2:$CD$3,2) ->  | D73: =HLOOKUP(A73,'Courbe In'!$AA$2:$CD$7,5) ->  | E73: =HLOOKUP(A73,'Courbe In'!$AA$2:$CD$7,4) ->  | F73: =HLOOKUP(A73,'Courbe In'!$AA$2:$CD$7,6) ->  | G73: =HLOOKUP(A73,'Courbe In'!$AA$2:$CD$8,7) ->  | H73: =HLOOKUP(A73,'Courbe In'!$AA$2:$CD$9,8) -> 
A74: 2021-03-30 | C74: =HLOOKUP(A74,'Courbe In'!$AA$2:$CD$3,2) ->  | D74: =HLOOKUP(A74,'Courbe In'!$AA$2:$CD$7,5) ->  | E74: =HLOOKUP(A74,'Courbe In'!$AA$2:$CD$7,4) ->  | F74: =HLOOKUP(A74,'Courbe In'!$AA$2:$CD$7,6) ->  | G74: =HLOOKUP(A74,'Courbe In'!$AA$2:$CD$8,7) ->  | H74: =HLOOKUP(A74,'Courbe In'!$AA$2:$CD$9,8) -> 
A75: 2021-03-31 | C75: =HLOOKUP(A75,'Courbe In'!$AA$2:$CD$3,2) ->  | D75: =HLOOKUP(A75,'Courbe In'!$AA$2:$CD$7,5) ->  | E75: =HLOOKUP(A75,'Courbe In'!$AA$2:$CD$7,4) ->  | F75: =HLOOKUP(A75,'Courbe In'!$AA$2:$CD$7,6) ->  | G75: =HLOOKUP(A75,'Courbe In'!$AA$2:$CD$8,7) ->  | H75: =HLOOKUP(A75,'Courbe In'!$AA$2:$CD$9,8) -> 
A76: 2021-04-01 | C76: =HLOOKUP(A76,'Courbe In'!$AA$2:$CD$3,2) ->  | D76: =HLOOKUP(A76,'Courbe In'!$AA$2:$CD$7,5) ->  | E76: =HLOOKUP(A76,'Courbe In'!$AA$2:$CD$7,4) ->  | F76: =HLOOKUP(A76,'Courbe In'!$AA$2:$CD$7,6) ->  | G76: =HLOOKUP(A76,'Courbe In'!$AA$2:$CD$8,7) ->  | H76: =HLOOKUP(A76,'Courbe In'!$AA$2:$CD$9,8) -> 
A77: 2021-04-02 | C77: =HLOOKUP(A77,'Courbe In'!$AA$2:$CD$3,2) ->  | D77: =HLOOKUP(A77,'Courbe In'!$AA$2:$CD$7,5) ->  | E77: =HLOOKUP(A77,'Courbe In'!$AA$2:$CD$7,4) ->  | F77: =HLOOKUP(A77,'Courbe In'!$AA$2:$CD$7,6) ->  | G77: =HLOOKUP(A77,'Courbe In'!$AA$2:$CD$8,7) ->  | H77: =HLOOKUP(A77,'Courbe In'!$AA$2:$CD$9,8) -> 
A78: 2021-04-03 | C78: =HLOOKUP(A78,'Courbe In'!$AA$2:$CD$3,2) ->  | D78: =HLOOKUP(A78,'Courbe In'!$AA$2:$CD$7,5) ->  | E78: =HLOOKUP(A78,'Courbe In'!$AA$2:$CD$7,4) ->  | F78: =HLOOKUP(A78,'Courbe In'!$AA$2:$CD$7,6) ->  | G78: =HLOOKUP(A78,'Courbe In'!$AA$2:$CD$8,7) ->  | H78: =HLOOKUP(A78,'Courbe In'!$AA$2:$CD$9,8) -> 
A79: 2021-04-04 | C79: =HLOOKUP(A79,'Courbe In'!$AA$2:$CD$3,2) ->  | D79: =HLOOKUP(A79,'Courbe In'!$AA$2:$CD$7,5) ->  | E79: =HLOOKUP(A79,'Courbe In'!$AA$2:$CD$7,4) ->  | F79: =HLOOKUP(A79,'Courbe In'!$AA$2:$CD$7,6) ->  | G79: =HLOOKUP(A79,'Courbe In'!$AA$2:$CD$8,7) ->  | H79: =HLOOKUP(A79,'Courbe In'!$AA$2:$CD$9,8) -> 
A80: 2021-04-05 | C80: =HLOOKUP(A80,'Courbe In'!$AA$2:$CD$3,2) ->  | D80: =HLOOKUP(A80,'Courbe In'!$AA$2:$CD$7,5) ->  | E80: =HLOOKUP(A80,'Courbe In'!$AA$2:$CD$7,4) ->  | F80: =HLOOKUP(A80,'Courbe In'!$AA$2:$CD$7,6) ->  | G80: =HLOOKUP(A80,'Courbe In'!$AA$2:$CD$8,7) ->  | H80: =HLOOKUP(A80,'Courbe In'!$AA$2:$CD$9,8) -> 
A81: 2021-04-06 | C81: =HLOOKUP(A81,'Courbe In'!$AA$2:$CD$3,2) ->  | D81: =HLOOKUP(A81,'Courbe In'!$AA$2:$CD$7,5) ->  | E81: =HLOOKUP(A81,'Courbe In'!$AA$2:$CD$7,4) ->  | F81: =HLOOKUP(A81,'Courbe In'!$AA$2:$CD$7,6) ->  | G81: =HLOOKUP(A81,'Courbe In'!$AA$2:$CD$8,7) ->  | H81: =HLOOKUP(A81,'Courbe In'!$AA$2:$CD$9,8) -> 
A82: 2021-04-07 | C82: =HLOOKUP(A82,'Courbe In'!$AA$2:$CD$3,2) ->  | D82: =HLOOKUP(A82,'Courbe In'!$AA$2:$CD$7,5) ->  | E82: =HLOOKUP(A82,'Courbe In'!$AA$2:$CD$7,4) ->  | F82: =HLOOKUP(A82,'Courbe In'!$AA$2:$CD$7,6) ->  | G82: =HLOOKUP(A82,'Courbe In'!$AA$2:$CD$8,7) ->  | H82: =HLOOKUP(A82,'Courbe In'!$AA$2:$CD$9,8) -> 
A83: 2021-04-08 | C83: =HLOOKUP(A83,'Courbe In'!$AA$2:$CD$3,2) ->  | D83: =HLOOKUP(A83,'Courbe In'!$AA$2:$CD$7,5) ->  | E83: =HLOOKUP(A83,'Courbe In'!$AA$2:$CD$7,4) ->  | F83: =HLOOKUP(A83,'Courbe In'!$AA$2:$CD$7,6) ->  | G83: =HLOOKUP(A83,'Courbe In'!$AA$2:$CD$8,7) ->  | H83: =HLOOKUP(A83,'Courbe In'!$AA$2:$CD$9,8) -> 
A84: 2021-04-09 | C84: =HLOOKUP(A84,'Courbe In'!$AA$2:$CD$3,2) ->  | D84: =HLOOKUP(A84,'Courbe In'!$AA$2:$CD$7,5) ->  | E84: =HLOOKUP(A84,'Courbe In'!$AA$2:$CD$7,4) ->  | F84: =HLOOKUP(A84,'Courbe In'!$AA$2:$CD$7,6) ->  | G84: =HLOOKUP(A84,'Courbe In'!$AA$2:$CD$8,7) ->  | H84: =HLOOKUP(A84,'Courbe In'!$AA$2:$CD$9,8) -> 
A85: 2021-04-10 | C85: =HLOOKUP(A85,'Courbe In'!$AA$2:$CD$3,2) ->  | D85: =HLOOKUP(A85,'Courbe In'!$AA$2:$CD$7,5) ->  | E85: =HLOOKUP(A85,'Courbe In'!$AA$2:$CD$7,4) ->  | F85: =HLOOKUP(A85,'Courbe In'!$AA$2:$CD$7,6) ->  | G85: =HLOOKUP(A85,'Courbe In'!$AA$2:$CD$8,7) ->  | H85: =HLOOKUP(A85,'Courbe In'!$AA$2:$CD$9,8) -> 
A86: 2021-04-11 | C86: =HLOOKUP(A86,'Courbe In'!$AA$2:$CD$3,2) ->  | D86: =HLOOKUP(A86,'Courbe In'!$AA$2:$CD$7,5) ->  | E86: =HLOOKUP(A86,'Courbe In'!$AA$2:$CD$7,4) ->  | F86: =HLOOKUP(A86,'Courbe In'!$AA$2:$CD$7,6) ->  | G86: =HLOOKUP(A86,'Courbe In'!$AA$2:$CD$8,7) ->  | H86: =HLOOKUP(A86,'Courbe In'!$AA$2:$CD$9,8) -> 
A87: 2021-04-12 | C87: =HLOOKUP(A87,'Courbe In'!$AA$2:$CD$3,2) ->  | D87: =HLOOKUP(A87,'Courbe In'!$AA$2:$CD$7,5) ->  | E87: =HLOOKUP(A87,'Courbe In'!$AA$2:$CD$7,4) ->  | F87: =HLOOKUP(A87,'Courbe In'!$AA$2:$CD$7,6) ->  | G87: =HLOOKUP(A87,'Courbe In'!$AA$2:$CD$8,7) ->  | H87: =HLOOKUP(A87,'Courbe In'!$AA$2:$CD$9,8) -> 
A88: 2021-04-13 | C88: =HLOOKUP(A88,'Courbe In'!$AA$2:$CD$3,2) ->  | D88: =HLOOKUP(A88,'Courbe In'!$AA$2:$CD$7,5) ->  | E88: =HLOOKUP(A88,'Courbe In'!$AA$2:$CD$7,4) ->  | F88: =HLOOKUP(A88,'Courbe In'!$AA$2:$CD$7,6) ->  | G88: =HLOOKUP(A88,'Courbe In'!$AA$2:$CD$8,7) ->  | H88: =HLOOKUP(A88,'Courbe In'!$AA$2:$CD$9,8) -> 
A89: 2021-04-14 | C89: =HLOOKUP(A89,'Courbe In'!$AA$2:$CD$3,2) ->  | D89: =HLOOKUP(A89,'Courbe In'!$AA$2:$CD$7,5) ->  | E89: =HLOOKUP(A89,'Courbe In'!$AA$2:$CD$7,4) ->  | F89: =HLOOKUP(A89,'Courbe In'!$AA$2:$CD$7,6) ->  | G89: =HLOOKUP(A89,'Courbe In'!$AA$2:$CD$8,7) ->  | H89: =HLOOKUP(A89,'Courbe In'!$AA$2:$CD$9,8) -> 
A90: 2021-04-15 | C90: =HLOOKUP(A90,'Courbe In'!$AA$2:$CD$3,2) ->  | D90: =HLOOKUP(A90,'Courbe In'!$AA$2:$CD$7,5) ->  | E90: =HLOOKUP(A90,'Courbe In'!$AA$2:$CD$7,4) ->  | F90: =HLOOKUP(A90,'Courbe In'!$AA$2:$CD$7,6) ->  | G90: =HLOOKUP(A90,'Courbe In'!$AA$2:$CD$8,7) ->  | H90: =HLOOKUP(A90,'Courbe In'!$AA$2:$CD$9,8) -> 
A91: 2021-04-16 | C91: =HLOOKUP(A91,'Courbe In'!$AA$2:$CD$3,2) ->  | D91: =HLOOKUP(A91,'Courbe In'!$AA$2:$CD$7,5) ->  | E91: =HLOOKUP(A91,'Courbe In'!$AA$2:$CD$7,4) ->  | F91: =HLOOKUP(A91,'Courbe In'!$AA$2:$CD$7,6) ->  | G91: =HLOOKUP(A91,'Courbe In'!$AA$2:$CD$8,7) ->  | H91: =HLOOKUP(A91,'Courbe In'!$AA$2:$CD$9,8) -> 
A92: 2021-04-17 | C92: =HLOOKUP(A92,'Courbe In'!$AA$2:$CD$3,2) ->  | D92: =HLOOKUP(A92,'Courbe In'!$AA$2:$CD$7,5) ->  | E92: =HLOOKUP(A92,'Courbe In'!$AA$2:$CD$7,4) ->  | F92: =HLOOKUP(A92,'Courbe In'!$AA$2:$CD$7,6) ->  | G92: =HLOOKUP(A92,'Courbe In'!$AA$2:$CD$8,7) ->  | H92: =HLOOKUP(A92,'Courbe In'!$AA$2:$CD$9,8) -> 
A93: 2021-04-18 | C93: =HLOOKUP(A93,'Courbe In'!$AA$2:$CD$3,2) ->  | D93: =HLOOKUP(A93,'Courbe In'!$AA$2:$CD$7,5) ->  | E93: =HLOOKUP(A93,'Courbe In'!$AA$2:$CD$7,4) ->  | F93: =HLOOKUP(A93,'Courbe In'!$AA$2:$CD$7,6) ->  | G93: =HLOOKUP(A93,'Courbe In'!$AA$2:$CD$8,7) ->  | H93: =HLOOKUP(A93,'Courbe In'!$AA$2:$CD$9,8) -> 
A94: 2021-04-19 | C94: =HLOOKUP(A94,'Courbe In'!$AA$2:$CD$3,2) ->  | D94: =HLOOKUP(A94,'Courbe In'!$AA$2:$CD$7,5) ->  | E94: =HLOOKUP(A94,'Courbe In'!$AA$2:$CD$7,4) ->  | F94: =HLOOKUP(A94,'Courbe In'!$AA$2:$CD$7,6) ->  | G94: =HLOOKUP(A94,'Courbe In'!$AA$2:$CD$8,7) ->  | H94: =HLOOKUP(A94,'Courbe In'!$AA$2:$CD$9,8) -> 
A95: 2021-04-20 | C95: =HLOOKUP(A95,'Courbe In'!$AA$2:$CD$3,2) ->  | D95: =HLOOKUP(A95,'Courbe In'!$AA$2:$CD$7,5) ->  | E95: =HLOOKUP(A95,'Courbe In'!$AA$2:$CD$7,4) ->  | F95: =HLOOKUP(A95,'Courbe In'!$AA$2:$CD$7,6) ->  | G95: =HLOOKUP(A95,'Courbe In'!$AA$2:$CD$8,7) ->  | H95: =HLOOKUP(A95,'Courbe In'!$AA$2:$CD$9,8) -> 
A96: 2021-04-21 | C96: =HLOOKUP(A96,'Courbe In'!$AA$2:$CD$3,2) ->  | D96: =HLOOKUP(A96,'Courbe In'!$AA$2:$CD$7,5) ->  | E96: =HLOOKUP(A96,'Courbe In'!$AA$2:$CD$7,4) ->  | F96: =HLOOKUP(A96,'Courbe In'!$AA$2:$CD$7,6) ->  | G96: =HLOOKUP(A96,'Courbe In'!$AA$2:$CD$8,7) ->  | H96: =HLOOKUP(A96,'Courbe In'!$AA$2:$CD$9,8) -> 
A97: 2021-04-22 | C97: =HLOOKUP(A97,'Courbe In'!$AA$2:$CD$3,2) ->  | D97: =HLOOKUP(A97,'Courbe In'!$AA$2:$CD$7,5) ->  | E97: =HLOOKUP(A97,'Courbe In'!$AA$2:$CD$7,4) ->  | F97: =HLOOKUP(A97,'Courbe In'!$AA$2:$CD$7,6) ->  | G97: =HLOOKUP(A97,'Courbe In'!$AA$2:$CD$8,7) ->  | H97: =HLOOKUP(A97,'Courbe In'!$AA$2:$CD$9,8) -> 
A98: 2021-04-23 | C98: =HLOOKUP(A98,'Courbe In'!$AA$2:$CD$3,2) ->  | D98: =HLOOKUP(A98,'Courbe In'!$AA$2:$CD$7,5) ->  | E98: =HLOOKUP(A98,'Courbe In'!$AA$2:$CD$7,4) ->  | F98: =HLOOKUP(A98,'Courbe In'!$AA$2:$CD$7,6) ->  | G98: =HLOOKUP(A98,'Courbe In'!$AA$2:$CD$8,7) ->  | H98: =HLOOKUP(A98,'Courbe In'!$AA$2:$CD$9,8) -> 
A99: 2021-04-24 | C99: =HLOOKUP(A99,'Courbe In'!$AA$2:$CD$3,2) ->  | D99: =HLOOKUP(A99,'Courbe In'!$AA$2:$CD$7,5) ->  | E99: =HLOOKUP(A99,'Courbe In'!$AA$2:$CD$7,4) ->  | F99: =HLOOKUP(A99,'Courbe In'!$AA$2:$CD$7,6) ->  | G99: =HLOOKUP(A99,'Courbe In'!$AA$2:$CD$8,7) ->  | H99: =HLOOKUP(A99,'Courbe In'!$AA$2:$CD$9,8) -> 
A100: 2021-04-25 | C100: =HLOOKUP(A100,'Courbe In'!$AA$2:$CD$3,2) ->  | D100: =HLOOKUP(A100,'Courbe In'!$AA$2:$CD$7,5) ->  | E100: =HLOOKUP(A100,'Courbe In'!$AA$2:$CD$7,4) ->  | F100: =HLOOKUP(A100,'Courbe In'!$AA$2:$CD$7,6) ->  | G100: =HLOOKUP(A100,'Courbe In'!$AA$2:$CD$8,7) ->  | H100: =HLOOKUP(A100,'Courbe In'!$AA$2:$CD$9,8) -> 
A101: 2021-04-26 | C101: =HLOOKUP(A101,'Courbe In'!$AA$2:$CD$3,2) ->  | D101: =HLOOKUP(A101,'Courbe In'!$AA$2:$CD$7,5) ->  | E101: =HLOOKUP(A101,'Courbe In'!$AA$2:$CD$7,4) ->  | F101: =HLOOKUP(A101,'Courbe In'!$AA$2:$CD$7,6) ->  | G101: =HLOOKUP(A101,'Courbe In'!$AA$2:$CD$8,7) ->  | H101: =HLOOKUP(A101,'Courbe In'!$AA$2:$CD$9,8) -> 
A102: 2021-04-27 | C102: =HLOOKUP(A102,'Courbe In'!$AA$2:$CD$3,2) ->  | D102: =HLOOKUP(A102,'Courbe In'!$AA$2:$CD$7,5) ->  | E102: =HLOOKUP(A102,'Courbe In'!$AA$2:$CD$7,4) ->  | F102: =HLOOKUP(A102,'Courbe In'!$AA$2:$CD$7,6) ->  | G102: =HLOOKUP(A102,'Courbe In'!$AA$2:$CD$8,7) ->  | H102: =HLOOKUP(A102,'Courbe In'!$AA$2:$CD$9,8) -> 
A103: 2021-04-28 | C103: =HLOOKUP(A103,'Courbe In'!$AA$2:$CD$3,2) ->  | D103: =HLOOKUP(A103,'Courbe In'!$AA$2:$CD$7,5) ->  | E103: =HLOOKUP(A103,'Courbe In'!$AA$2:$CD$7,4) ->  | F103: =HLOOKUP(A103,'Courbe In'!$AA$2:$CD$7,6) ->  | G103: =HLOOKUP(A103,'Courbe In'!$AA$2:$CD$8,7) ->  | H103: =HLOOKUP(A103,'Courbe In'!$AA$2:$CD$9,8) -> 
A104: 2021-04-29 | C104: =HLOOKUP(A104,'Courbe In'!$AA$2:$CD$3,2) ->  | D104: =HLOOKUP(A104,'Courbe In'!$AA$2:$CD$7,5) ->  | E104: =HLOOKUP(A104,'Courbe In'!$AA$2:$CD$7,4) ->  | F104: =HLOOKUP(A104,'Courbe In'!$AA$2:$CD$7,6) ->  | G104: =HLOOKUP(A104,'Courbe In'!$AA$2:$CD$8,7) ->  | H104: =HLOOKUP(A104,'Courbe In'!$AA$2:$CD$9,8) -> 
A105: 2021-04-30 | C105: =HLOOKUP(A105,'Courbe In'!$AA$2:$CD$3,2) ->  | D105: =HLOOKUP(A105,'Courbe In'!$AA$2:$CD$7,5) ->  | E105: =HLOOKUP(A105,'Courbe In'!$AA$2:$CD$7,4) ->  | F105: =HLOOKUP(A105,'Courbe In'!$AA$2:$CD$7,6) ->  | G105: =HLOOKUP(A105,'Courbe In'!$AA$2:$CD$8,7) ->  | H105: =HLOOKUP(A105,'Courbe In'!$AA$2:$CD$9,8) -> 
A106: 2021-05-01 | C106: =HLOOKUP(A106,'Courbe In'!$AA$2:$CD$3,2) ->  | D106: =HLOOKUP(A106,'Courbe In'!$AA$2:$CD$7,5) ->  | E106: =HLOOKUP(A106,'Courbe In'!$AA$2:$CD$7,4) ->  | F106: =HLOOKUP(A106,'Courbe In'!$AA$2:$CD$7,6) ->  | G106: =HLOOKUP(A106,'Courbe In'!$AA$2:$CD$8,7) ->  | H106: =HLOOKUP(A106,'Courbe In'!$AA$2:$CD$9,8) -> 
A107: 2021-05-02 | C107: =HLOOKUP(A107,'Courbe In'!$AA$2:$CD$3,2) ->  | D107: =HLOOKUP(A107,'Courbe In'!$AA$2:$CD$7,5) ->  | E107: =HLOOKUP(A107,'Courbe In'!$AA$2:$CD$7,4) ->  | F107: =HLOOKUP(A107,'Courbe In'!$AA$2:$CD$7,6) ->  | G107: =HLOOKUP(A107,'Courbe In'!$AA$2:$CD$8,7) ->  | H107: =HLOOKUP(A107,'Courbe In'!$AA$2:$CD$9,8) -> 
A108: 2021-05-03 | C108: =HLOOKUP(A108,'Courbe In'!$AA$2:$CD$3,2) ->  | D108: =HLOOKUP(A108,'Courbe In'!$AA$2:$CD$7,5) ->  | E108: =HLOOKUP(A108,'Courbe In'!$AA$2:$CD$7,4) ->  | F108: =HLOOKUP(A108,'Courbe In'!$AA$2:$CD$7,6) ->  | G108: =HLOOKUP(A108,'Courbe In'!$AA$2:$CD$8,7) ->  | H108: =HLOOKUP(A108,'Courbe In'!$AA$2:$CD$9,8) -> 
A109: 2021-05-04 | C109: =HLOOKUP(A109,'Courbe In'!$AA$2:$CD$3,2) ->  | D109: =HLOOKUP(A109,'Courbe In'!$AA$2:$CD$7,5) ->  | E109: =HLOOKUP(A109,'Courbe In'!$AA$2:$CD$7,4) ->  | F109: =HLOOKUP(A109,'Courbe In'!$AA$2:$CD$7,6) ->  | G109: =HLOOKUP(A109,'Courbe In'!$AA$2:$CD$8,7) ->  | H109: =HLOOKUP(A109,'Courbe In'!$AA$2:$CD$9,8) -> 
A110: 2021-05-05 | C110: =HLOOKUP(A110,'Courbe In'!$AA$2:$CD$3,2) ->  | D110: =HLOOKUP(A110,'Courbe In'!$AA$2:$CD$7,5) ->  | E110: =HLOOKUP(A110,'Courbe In'!$AA$2:$CD$7,4) ->  | F110: =HLOOKUP(A110,'Courbe In'!$AA$2:$CD$7,6) ->  | G110: =HLOOKUP(A110,'Courbe In'!$AA$2:$CD$8,7) ->  | H110: =HLOOKUP(A110,'Courbe In'!$AA$2:$CD$9,8) -> 
A111: 2021-05-06 | C111: =HLOOKUP(A111,'Courbe In'!$AA$2:$CD$3,2) ->  | D111: =HLOOKUP(A111,'Courbe In'!$AA$2:$CD$7,5) ->  | E111: =HLOOKUP(A111,'Courbe In'!$AA$2:$CD$7,4) ->  | F111: =HLOOKUP(A111,'Courbe In'!$AA$2:$CD$7,6) ->  | G111: =HLOOKUP(A111,'Courbe In'!$AA$2:$CD$8,7) ->  | H111: =HLOOKUP(A111,'Courbe In'!$AA$2:$CD$9,8) -> 
A112: 2021-05-07 | C112: =HLOOKUP(A112,'Courbe In'!$AA$2:$CD$3,2) ->  | D112: =HLOOKUP(A112,'Courbe In'!$AA$2:$CD$7,5) ->  | E112: =HLOOKUP(A112,'Courbe In'!$AA$2:$CD$7,4) ->  | F112: =HLOOKUP(A112,'Courbe In'!$AA$2:$CD$7,6) ->  | G112: =HLOOKUP(A112,'Courbe In'!$AA$2:$CD$8,7) ->  | H112: =HLOOKUP(A112,'Courbe In'!$AA$2:$CD$9,8) -> 
A113: 2021-05-08 | C113: =HLOOKUP(A113,'Courbe In'!$AA$2:$CD$3,2) ->  | D113: =HLOOKUP(A113,'Courbe In'!$AA$2:$CD$7,5) ->  | E113: =HLOOKUP(A113,'Courbe In'!$AA$2:$CD$7,4) ->  | F113: =HLOOKUP(A113,'Courbe In'!$AA$2:$CD$7,6) ->  | G113: =HLOOKUP(A113,'Courbe In'!$AA$2:$CD$8,7) ->  | H113: =HLOOKUP(A113,'Courbe In'!$AA$2:$CD$9,8) -> 
A114: 2021-05-09 | C114: =HLOOKUP(A114,'Courbe In'!$AA$2:$CD$3,2) ->  | D114: =HLOOKUP(A114,'Courbe In'!$AA$2:$CD$7,5) ->  | E114: =HLOOKUP(A114,'Courbe In'!$AA$2:$CD$7,4) ->  | F114: =HLOOKUP(A114,'Courbe In'!$AA$2:$CD$7,6) ->  | G114: =HLOOKUP(A114,'Courbe In'!$AA$2:$CD$8,7) ->  | H114: =HLOOKUP(A114,'Courbe In'!$AA$2:$CD$9,8) -> 
A115: 2021-05-10 | C115: =HLOOKUP(A115,'Courbe In'!$AA$2:$CD$3,2) ->  | D115: =HLOOKUP(A115,'Courbe In'!$AA$2:$CD$7,5) ->  | E115: =HLOOKUP(A115,'Courbe In'!$AA$2:$CD$7,4) ->  | F115: =HLOOKUP(A115,'Courbe In'!$AA$2:$CD$7,6) ->  | G115: =HLOOKUP(A115,'Courbe In'!$AA$2:$CD$8,7) ->  | H115: =HLOOKUP(A115,'Courbe In'!$AA$2:$CD$9,8) -> 
A116: 2021-05-11 | C116: =HLOOKUP(A116,'Courbe In'!$AA$2:$CD$3,2) ->  | D116: =HLOOKUP(A116,'Courbe In'!$AA$2:$CD$7,5) ->  | E116: =HLOOKUP(A116,'Courbe In'!$AA$2:$CD$7,4) ->  | F116: =HLOOKUP(A116,'Courbe In'!$AA$2:$CD$7,6) ->  | G116: =HLOOKUP(A116,'Courbe In'!$AA$2:$CD$8,7) ->  | H116: =HLOOKUP(A116,'Courbe In'!$AA$2:$CD$9,8) -> 
A117: 2021-05-12 | C117: =HLOOKUP(A117,'Courbe In'!$AA$2:$CD$3,2) ->  | D117: =HLOOKUP(A117,'Courbe In'!$AA$2:$CD$7,5) ->  | E117: =HLOOKUP(A117,'Courbe In'!$AA$2:$CD$7,4) ->  | F117: =HLOOKUP(A117,'Courbe In'!$AA$2:$CD$7,6) ->  | G117: =HLOOKUP(A117,'Courbe In'!$AA$2:$CD$8,7) ->  | H117: =HLOOKUP(A117,'Courbe In'!$AA$2:$CD$9,8) -> 
A118: 2021-05-13 | C118: =HLOOKUP(A118,'Courbe In'!$AA$2:$CD$3,2) ->  | D118: =HLOOKUP(A118,'Courbe In'!$AA$2:$CD$7,5) ->  | E118: =HLOOKUP(A118,'Courbe In'!$AA$2:$CD$7,4) ->  | F118: =HLOOKUP(A118,'Courbe In'!$AA$2:$CD$7,6) ->  | G118: =HLOOKUP(A118,'Courbe In'!$AA$2:$CD$8,7) ->  | H118: =HLOOKUP(A118,'Courbe In'!$AA$2:$CD$9,8) -> 
A119: 2021-05-14 | C119: =HLOOKUP(A119,'Courbe In'!$AA$2:$CD$3,2) ->  | D119: =HLOOKUP(A119,'Courbe In'!$AA$2:$CD$7,5) ->  | E119: =HLOOKUP(A119,'Courbe In'!$AA$2:$CD$7,4) ->  | F119: =HLOOKUP(A119,'Courbe In'!$AA$2:$CD$7,6) ->  | G119: =HLOOKUP(A119,'Courbe In'!$AA$2:$CD$8,7) ->  | H119: =HLOOKUP(A119,'Courbe In'!$AA$2:$CD$9,8) -> 
A120: 2021-05-15 | C120: =HLOOKUP(A120,'Courbe In'!$AA$2:$CD$3,2) ->  | D120: =HLOOKUP(A120,'Courbe In'!$AA$2:$CD$7,5) ->  | E120: =HLOOKUP(A120,'Courbe In'!$AA$2:$CD$7,4) ->  | F120: =HLOOKUP(A120,'Courbe In'!$AA$2:$CD$7,6) ->  | G120: =HLOOKUP(A120,'Courbe In'!$AA$2:$CD$8,7) ->  | H120: =HLOOKUP(A120,'Courbe In'!$AA$2:$CD$9,8) -> 
A121: 2021-05-16 | C121: =HLOOKUP(A121,'Courbe In'!$AA$2:$CD$3,2) ->  | D121: =HLOOKUP(A121,'Courbe In'!$AA$2:$CD$7,5) ->  | E121: =HLOOKUP(A121,'Courbe In'!$AA$2:$CD$7,4) ->  | F121: =HLOOKUP(A121,'Courbe In'!$AA$2:$CD$7,6) ->  | G121: =HLOOKUP(A121,'Courbe In'!$AA$2:$CD$8,7) ->  | H121: =HLOOKUP(A121,'Courbe In'!$AA$2:$CD$9,8) -> 
A122: 2021-05-17 | C122: =HLOOKUP(A122,'Courbe In'!$AA$2:$CD$3,2) ->  | D122: =HLOOKUP(A122,'Courbe In'!$AA$2:$CD$7,5) ->  | E122: =HLOOKUP(A122,'Courbe In'!$AA$2:$CD$7,4) ->  | F122: =HLOOKUP(A122,'Courbe In'!$AA$2:$CD$7,6) ->  | G122: =HLOOKUP(A122,'Courbe In'!$AA$2:$CD$8,7) ->  | H122: =HLOOKUP(A122,'Courbe In'!$AA$2:$CD$9,8) -> 
A123: 2021-05-18 | C123: =HLOOKUP(A123,'Courbe In'!$AA$2:$CD$3,2) ->  | D123: =HLOOKUP(A123,'Courbe In'!$AA$2:$CD$7,5) ->  | E123: =HLOOKUP(A123,'Courbe In'!$AA$2:$CD$7,4) ->  | F123: =HLOOKUP(A123,'Courbe In'!$AA$2:$CD$7,6) ->  | G123: =HLOOKUP(A123,'Courbe In'!$AA$2:$CD$8,7) ->  | H123: =HLOOKUP(A123,'Courbe In'!$AA$2:$CD$9,8) -> 
A124: 2021-05-19 | C124: =HLOOKUP(A124,'Courbe In'!$AA$2:$CD$3,2) ->  | D124: =HLOOKUP(A124,'Courbe In'!$AA$2:$CD$7,5) ->  | E124: =HLOOKUP(A124,'Courbe In'!$AA$2:$CD$7,4) ->  | F124: =HLOOKUP(A124,'Courbe In'!$AA$2:$CD$7,6) ->  | G124: =HLOOKUP(A124,'Courbe In'!$AA$2:$CD$8,7) ->  | H124: =HLOOKUP(A124,'Courbe In'!$AA$2:$CD$9,8) -> 
A125: 2021-05-20 | C125: =HLOOKUP(A125,'Courbe In'!$AA$2:$CD$3,2) ->  | D125: =HLOOKUP(A125,'Courbe In'!$AA$2:$CD$7,5) ->  | E125: =HLOOKUP(A125,'Courbe In'!$AA$2:$CD$7,4) ->  | F125: =HLOOKUP(A125,'Courbe In'!$AA$2:$CD$7,6) ->  | G125: =HLOOKUP(A125,'Courbe In'!$AA$2:$CD$8,7) ->  | H125: =HLOOKUP(A125,'Courbe In'!$AA$2:$CD$9,8) -> 
A126: 2021-05-21 | C126: =HLOOKUP(A126,'Courbe In'!$AA$2:$CD$3,2) ->  | D126: =HLOOKUP(A126,'Courbe In'!$AA$2:$CD$7,5) ->  | E126: =HLOOKUP(A126,'Courbe In'!$AA$2:$CD$7,4) ->  | F126: =HLOOKUP(A126,'Courbe In'!$AA$2:$CD$7,6) ->  | G126: =HLOOKUP(A126,'Courbe In'!$AA$2:$CD$8,7) ->  | H126: =HLOOKUP(A126,'Courbe In'!$AA$2:$CD$9,8) -> 
A127: 2021-05-22 | C127: =HLOOKUP(A127,'Courbe In'!$AA$2:$CD$3,2) ->  | D127: =HLOOKUP(A127,'Courbe In'!$AA$2:$CD$7,5) ->  | E127: =HLOOKUP(A127,'Courbe In'!$AA$2:$CD$7,4) ->  | F127: =HLOOKUP(A127,'Courbe In'!$AA$2:$CD$7,6) ->  | G127: =HLOOKUP(A127,'Courbe In'!$AA$2:$CD$8,7) ->  | H127: =HLOOKUP(A127,'Courbe In'!$AA$2:$CD$9,8) -> 
A128: 2021-05-23 | C128: =HLOOKUP(A128,'Courbe In'!$AA$2:$CD$3,2) ->  | D128: =HLOOKUP(A128,'Courbe In'!$AA$2:$CD$7,5) ->  | E128: =HLOOKUP(A128,'Courbe In'!$AA$2:$CD$7,4) ->  | F128: =HLOOKUP(A128,'Courbe In'!$AA$2:$CD$7,6) ->  | G128: =HLOOKUP(A128,'Courbe In'!$AA$2:$CD$8,7) ->  | H128: =HLOOKUP(A128,'Courbe In'!$AA$2:$CD$9,8) -> 
A129: 2021-05-24 | C129: =HLOOKUP(A129,'Courbe In'!$AA$2:$CD$3,2) ->  | D129: =HLOOKUP(A129,'Courbe In'!$AA$2:$CD$7,5) ->  | E129: =HLOOKUP(A129,'Courbe In'!$AA$2:$CD$7,4) ->  | F129: =HLOOKUP(A129,'Courbe In'!$AA$2:$CD$7,6) ->  | G129: =HLOOKUP(A129,'Courbe In'!$AA$2:$CD$8,7) ->  | H129: =HLOOKUP(A129,'Courbe In'!$AA$2:$CD$9,8) -> 
A130: 2021-05-25 | C130: =HLOOKUP(A130,'Courbe In'!$AA$2:$CD$3,2) ->  | D130: =HLOOKUP(A130,'Courbe In'!$AA$2:$CD$7,5) ->  | E130: =HLOOKUP(A130,'Courbe In'!$AA$2:$CD$7,4) ->  | F130: =HLOOKUP(A130,'Courbe In'!$AA$2:$CD$7,6) ->  | G130: =HLOOKUP(A130,'Courbe In'!$AA$2:$CD$8,7) ->  | H130: =HLOOKUP(A130,'Courbe In'!$AA$2:$CD$9,8) -> 
A131: 2021-05-26 | C131: =HLOOKUP(A131,'Courbe In'!$AA$2:$CD$3,2) ->  | D131: =HLOOKUP(A131,'Courbe In'!$AA$2:$CD$7,5) ->  | E131: =HLOOKUP(A131,'Courbe In'!$AA$2:$CD$7,4) ->  | F131: =HLOOKUP(A131,'Courbe In'!$AA$2:$CD$7,6) ->  | G131: =HLOOKUP(A131,'Courbe In'!$AA$2:$CD$8,7) ->  | H131: =HLOOKUP(A131,'Courbe In'!$AA$2:$CD$9,8) -> 
A132: =A131+1 -> 2021-05-27 | C132: =HLOOKUP(A132,'Courbe In'!$AA$2:$CD$3,2) ->  | D132: =HLOOKUP(A132,'Courbe In'!$AA$2:$CD$7,5) ->  | E132: =HLOOKUP(A132,'Courbe In'!$AA$2:$CD$7,4) ->  | F132: =HLOOKUP(A132,'Courbe In'!$AA$2:$CD$7,6) ->  | G132: =HLOOKUP(A132,'Courbe In'!$AA$2:$CD$8,7) ->  | H132: =HLOOKUP(A132,'Courbe In'!$AA$2:$CD$9,8) -> 
A133: 2021-05-28 | C133: =HLOOKUP(A133,'Courbe In'!$AA$2:$CD$3,2) ->  | D133: =HLOOKUP(A133,'Courbe In'!$AA$2:$CD$7,5) ->  | E133: =HLOOKUP(A133,'Courbe In'!$AA$2:$CD$7,4) ->  | F133: =HLOOKUP(A133,'Courbe In'!$AA$2:$CD$7,6) ->  | G133: =HLOOKUP(A133,'Courbe In'!$AA$2:$CD$8,7) ->  | H133: =HLOOKUP(A133,'Courbe In'!$AA$2:$CD$9,8) -> 
A134: 2021-05-29 | C134: =HLOOKUP(A134,'Courbe In'!$AA$2:$CD$3,2) ->  | D134: =HLOOKUP(A134,'Courbe In'!$AA$2:$CD$7,5) ->  | E134: =HLOOKUP(A134,'Courbe In'!$AA$2:$CD$7,4) ->  | F134: =HLOOKUP(A134,'Courbe In'!$AA$2:$CD$7,6) ->  | G134: =HLOOKUP(A134,'Courbe In'!$AA$2:$CD$8,7) ->  | H134: =HLOOKUP(A134,'Courbe In'!$AA$2:$CD$9,8) -> 
A135: 2021-05-30 | C135: =HLOOKUP(A135,'Courbe In'!$AA$2:$CD$3,2) ->  | D135: =HLOOKUP(A135,'Courbe In'!$AA$2:$CD$7,5) ->  | E135: =HLOOKUP(A135,'Courbe In'!$AA$2:$CD$7,4) ->  | F135: =HLOOKUP(A135,'Courbe In'!$AA$2:$CD$7,6) ->  | G135: =HLOOKUP(A135,'Courbe In'!$AA$2:$CD$8,7) ->  | H135: =HLOOKUP(A135,'Courbe In'!$AA$2:$CD$9,8) -> 
A136: 2021-05-31 | C136: =HLOOKUP(A136,'Courbe In'!$AA$2:$CD$3,2) ->  | D136: =HLOOKUP(A136,'Courbe In'!$AA$2:$CD$7,5) ->  | E136: =HLOOKUP(A136,'Courbe In'!$AA$2:$CD$7,4) ->  | F136: =HLOOKUP(A136,'Courbe In'!$AA$2:$CD$7,6) ->  | G136: =HLOOKUP(A136,'Courbe In'!$AA$2:$CD$8,7) ->  | H136: =HLOOKUP(A136,'Courbe In'!$AA$2:$CD$9,8) -> 
A137: 2021-06-01 | C137: =HLOOKUP(A137,'Courbe In'!$AA$2:$CD$3,2) ->  | D137: =HLOOKUP(A137,'Courbe In'!$AA$2:$CD$7,5) ->  | E137: =HLOOKUP(A137,'Courbe In'!$AA$2:$CD$7,4) ->  | F137: =HLOOKUP(A137,'Courbe In'!$AA$2:$CD$7,6) ->  | G137: =HLOOKUP(A137,'Courbe In'!$AA$2:$CD$8,7) ->  | H137: =HLOOKUP(A137,'Courbe In'!$AA$2:$CD$9,8) -> 
A138: 2021-06-02 | C138: =HLOOKUP(A138,'Courbe In'!$AA$2:$CD$3,2) ->  | D138: =HLOOKUP(A138,'Courbe In'!$AA$2:$CD$7,5) ->  | E138: =HLOOKUP(A138,'Courbe In'!$AA$2:$CD$7,4) ->  | F138: =HLOOKUP(A138,'Courbe In'!$AA$2:$CD$7,6) ->  | G138: =HLOOKUP(A138,'Courbe In'!$AA$2:$CD$8,7) ->  | H138: =HLOOKUP(A138,'Courbe In'!$AA$2:$CD$9,8) -> 
A139: 2021-06-03 | C139: =HLOOKUP(A139,'Courbe In'!$AA$2:$CD$3,2) ->  | D139: =HLOOKUP(A139,'Courbe In'!$AA$2:$CD$7,5) ->  | E139: =HLOOKUP(A139,'Courbe In'!$AA$2:$CD$7,4) ->  | F139: =HLOOKUP(A139,'Courbe In'!$AA$2:$CD$7,6) ->  | G139: =HLOOKUP(A139,'Courbe In'!$AA$2:$CD$8,7) ->  | H139: =HLOOKUP(A139,'Courbe In'!$AA$2:$CD$9,8) -> 
A140: 2021-06-04 | C140: =HLOOKUP(A140,'Courbe In'!$AA$2:$CD$3,2) ->  | D140: =HLOOKUP(A140,'Courbe In'!$AA$2:$CD$7,5) ->  | E140: =HLOOKUP(A140,'Courbe In'!$AA$2:$CD$7,4) ->  | F140: =HLOOKUP(A140,'Courbe In'!$AA$2:$CD$7,6) ->  | G140: =HLOOKUP(A140,'Courbe In'!$AA$2:$CD$8,7) ->  | H140: =HLOOKUP(A140,'Courbe In'!$AA$2:$CD$9,8) -> 
A141: 2021-06-05 | C141: =HLOOKUP(A141,'Courbe In'!$AA$2:$CD$3,2) ->  | D141: =HLOOKUP(A141,'Courbe In'!$AA$2:$CD$7,5) ->  | E141: =HLOOKUP(A141,'Courbe In'!$AA$2:$CD$7,4) ->  | F141: =HLOOKUP(A141,'Courbe In'!$AA$2:$CD$7,6) ->  | G141: =HLOOKUP(A141,'Courbe In'!$AA$2:$CD$8,7) ->  | H141: =HLOOKUP(A141,'Courbe In'!$AA$2:$CD$9,8) -> 
A142: 2021-06-06 | C142: =HLOOKUP(A142,'Courbe In'!$AA$2:$CD$3,2) ->  | D142: =HLOOKUP(A142,'Courbe In'!$AA$2:$CD$7,5) ->  | E142: =HLOOKUP(A142,'Courbe In'!$AA$2:$CD$7,4) ->  | F142: =HLOOKUP(A142,'Courbe In'!$AA$2:$CD$7,6) ->  | G142: =HLOOKUP(A142,'Courbe In'!$AA$2:$CD$8,7) ->  | H142: =HLOOKUP(A142,'Courbe In'!$AA$2:$CD$9,8) -> 
A143: 2021-06-07 | C143: =HLOOKUP(A143,'Courbe In'!$AA$2:$CD$3,2) ->  | D143: =HLOOKUP(A143,'Courbe In'!$AA$2:$CD$7,5) ->  | E143: =HLOOKUP(A143,'Courbe In'!$AA$2:$CD$7,4) ->  | F143: =HLOOKUP(A143,'Courbe In'!$AA$2:$CD$7,6) ->  | G143: =HLOOKUP(A143,'Courbe In'!$AA$2:$CD$8,7) ->  | H143: =HLOOKUP(A143,'Courbe In'!$AA$2:$CD$9,8) -> 
A144: 2021-06-08 | C144: =HLOOKUP(A144,'Courbe In'!$AA$2:$CD$3,2) ->  | D144: =HLOOKUP(A144,'Courbe In'!$AA$2:$CD$7,5) ->  | E144: =HLOOKUP(A144,'Courbe In'!$AA$2:$CD$7,4) ->  | F144: =HLOOKUP(A144,'Courbe In'!$AA$2:$CD$7,6) ->  | G144: =HLOOKUP(A144,'Courbe In'!$AA$2:$CD$8,7) ->  | H144: =HLOOKUP(A144,'Courbe In'!$AA$2:$CD$9,8) -> 
A145: 2021-06-09 | C145: =HLOOKUP(A145,'Courbe In'!$AA$2:$CD$3,2) ->  | D145: =HLOOKUP(A145,'Courbe In'!$AA$2:$CD$7,5) ->  | E145: =HLOOKUP(A145,'Courbe In'!$AA$2:$CD$7,4) ->  | F145: =HLOOKUP(A145,'Courbe In'!$AA$2:$CD$7,6) ->  | G145: =HLOOKUP(A145,'Courbe In'!$AA$2:$CD$8,7) ->  | H145: =HLOOKUP(A145,'Courbe In'!$AA$2:$CD$9,8) -> 
A146: 2021-06-10 | C146: =HLOOKUP(A146,'Courbe In'!$AA$2:$CD$3,2) ->  | D146: =HLOOKUP(A146,'Courbe In'!$AA$2:$CD$7,5) ->  | E146: =HLOOKUP(A146,'Courbe In'!$AA$2:$CD$7,4) ->  | F146: =HLOOKUP(A146,'Courbe In'!$AA$2:$CD$7,6) ->  | G146: =HLOOKUP(A146,'Courbe In'!$AA$2:$CD$8,7) ->  | H146: =HLOOKUP(A146,'Courbe In'!$AA$2:$CD$9,8) -> 
A147: 2021-06-11 | C147: =HLOOKUP(A147,'Courbe In'!$AA$2:$CD$3,2) ->  | D147: =HLOOKUP(A147,'Courbe In'!$AA$2:$CD$7,5) ->  | E147: =HLOOKUP(A147,'Courbe In'!$AA$2:$CD$7,4) ->  | F147: =HLOOKUP(A147,'Courbe In'!$AA$2:$CD$7,6) ->  | G147: =HLOOKUP(A147,'Courbe In'!$AA$2:$CD$8,7) ->  | H147: =HLOOKUP(A147,'Courbe In'!$AA$2:$CD$9,8) -> 
A148: 2021-06-12 | C148: =HLOOKUP(A148,'Courbe In'!$AA$2:$CD$3,2) ->  | D148: =HLOOKUP(A148,'Courbe In'!$AA$2:$CD$7,5) ->  | E148: =HLOOKUP(A148,'Courbe In'!$AA$2:$CD$7,4) ->  | F148: =HLOOKUP(A148,'Courbe In'!$AA$2:$CD$7,6) ->  | G148: =HLOOKUP(A148,'Courbe In'!$AA$2:$CD$8,7) ->  | H148: =HLOOKUP(A148,'Courbe In'!$AA$2:$CD$9,8) -> 
A149: 2021-06-13 | C149: =HLOOKUP(A149,'Courbe In'!$AA$2:$CD$3,2) ->  | D149: =HLOOKUP(A149,'Courbe In'!$AA$2:$CD$7,5) ->  | E149: =HLOOKUP(A149,'Courbe In'!$AA$2:$CD$7,4) ->  | F149: =HLOOKUP(A149,'Courbe In'!$AA$2:$CD$7,6) ->  | G149: =HLOOKUP(A149,'Courbe In'!$AA$2:$CD$8,7) ->  | H149: =HLOOKUP(A149,'Courbe In'!$AA$2:$CD$9,8) -> 
A150: 2021-06-14 | C150: =HLOOKUP(A150,'Courbe In'!$AA$2:$CD$3,2) ->  | D150: =HLOOKUP(A150,'Courbe In'!$AA$2:$CD$7,5) ->  | E150: =HLOOKUP(A150,'Courbe In'!$AA$2:$CD$7,4) ->  | F150: =HLOOKUP(A150,'Courbe In'!$AA$2:$CD$7,6) ->  | G150: =HLOOKUP(A150,'Courbe In'!$AA$2:$CD$8,7) ->  | H150: =HLOOKUP(A150,'Courbe In'!$AA$2:$CD$9,8) -> 
A151: 2021-06-15 | C151: =HLOOKUP(A151,'Courbe In'!$AA$2:$CD$3,2) ->  | D151: =HLOOKUP(A151,'Courbe In'!$AA$2:$CD$7,5) ->  | E151: =HLOOKUP(A151,'Courbe In'!$AA$2:$CD$7,4) ->  | F151: =HLOOKUP(A151,'Courbe In'!$AA$2:$CD$7,6) ->  | G151: =HLOOKUP(A151,'Courbe In'!$AA$2:$CD$8,7) ->  | H151: =HLOOKUP(A151,'Courbe In'!$AA$2:$CD$9,8) -> 
A152: 2021-06-16 | C152: =HLOOKUP(A152,'Courbe In'!$AA$2:$CD$3,2) ->  | D152: =HLOOKUP(A152,'Courbe In'!$AA$2:$CD$7,5) ->  | E152: =HLOOKUP(A152,'Courbe In'!$AA$2:$CD$7,4) ->  | F152: =HLOOKUP(A152,'Courbe In'!$AA$2:$CD$7,6) ->  | G152: =HLOOKUP(A152,'Courbe In'!$AA$2:$CD$8,7) ->  | H152: =HLOOKUP(A152,'Courbe In'!$AA$2:$CD$9,8) -> 
A153: 2021-06-17 | C153: =HLOOKUP(A153,'Courbe In'!$AA$2:$CD$3,2) ->  | D153: =HLOOKUP(A153,'Courbe In'!$AA$2:$CD$7,5) ->  | E153: =HLOOKUP(A153,'Courbe In'!$AA$2:$CD$7,4) ->  | F153: =HLOOKUP(A153,'Courbe In'!$AA$2:$CD$7,6) ->  | G153: =HLOOKUP(A153,'Courbe In'!$AA$2:$CD$8,7) ->  | H153: =HLOOKUP(A153,'Courbe In'!$AA$2:$CD$9,8) -> 
A154: 2021-06-18 | C154: =HLOOKUP(A154,'Courbe In'!$AA$2:$CD$3,2) ->  | D154: =HLOOKUP(A154,'Courbe In'!$AA$2:$CD$7,5) ->  | E154: =HLOOKUP(A154,'Courbe In'!$AA$2:$CD$7,4) ->  | F154: =HLOOKUP(A154,'Courbe In'!$AA$2:$CD$7,6) ->  | G154: =HLOOKUP(A154,'Courbe In'!$AA$2:$CD$8,7) ->  | H154: =HLOOKUP(A154,'Courbe In'!$AA$2:$CD$9,8) -> 
A155: 2021-06-19 | C155: =HLOOKUP(A155,'Courbe In'!$AA$2:$CD$3,2) ->  | D155: =HLOOKUP(A155,'Courbe In'!$AA$2:$CD$7,5) ->  | E155: =HLOOKUP(A155,'Courbe In'!$AA$2:$CD$7,4) ->  | F155: =HLOOKUP(A155,'Courbe In'!$AA$2:$CD$7,6) ->  | G155: =HLOOKUP(A155,'Courbe In'!$AA$2:$CD$8,7) ->  | H155: =HLOOKUP(A155,'Courbe In'!$AA$2:$CD$9,8) -> 
A156: 2021-06-20 | C156: =HLOOKUP(A156,'Courbe In'!$AA$2:$CD$3,2) ->  | D156: =HLOOKUP(A156,'Courbe In'!$AA$2:$CD$7,5) ->  | E156: =HLOOKUP(A156,'Courbe In'!$AA$2:$CD$7,4) ->  | F156: =HLOOKUP(A156,'Courbe In'!$AA$2:$CD$7,6) ->  | G156: =HLOOKUP(A156,'Courbe In'!$AA$2:$CD$8,7) ->  | H156: =HLOOKUP(A156,'Courbe In'!$AA$2:$CD$9,8) -> 
A157: 2021-06-21 | C157: =HLOOKUP(A157,'Courbe In'!$AA$2:$CD$3,2) ->  | D157: =HLOOKUP(A157,'Courbe In'!$AA$2:$CD$7,5) ->  | E157: =HLOOKUP(A157,'Courbe In'!$AA$2:$CD$7,4) ->  | F157: =HLOOKUP(A157,'Courbe In'!$AA$2:$CD$7,6) ->  | G157: =HLOOKUP(A157,'Courbe In'!$AA$2:$CD$8,7) ->  | H157: =HLOOKUP(A157,'Courbe In'!$AA$2:$CD$9,8) -> 
A158: 2021-06-22 | C158: =HLOOKUP(A158,'Courbe In'!$AA$2:$CD$3,2) ->  | D158: =HLOOKUP(A158,'Courbe In'!$AA$2:$CD$7,5) ->  | E158: =HLOOKUP(A158,'Courbe In'!$AA$2:$CD$7,4) ->  | F158: =HLOOKUP(A158,'Courbe In'!$AA$2:$CD$7,6) ->  | G158: =HLOOKUP(A158,'Courbe In'!$AA$2:$CD$8,7) ->  | H158: =HLOOKUP(A158,'Courbe In'!$AA$2:$CD$9,8) -> 
A159: 2021-06-23 | C159: =HLOOKUP(A159,'Courbe In'!$AA$2:$CD$3,2) ->  | D159: =HLOOKUP(A159,'Courbe In'!$AA$2:$CD$7,5) ->  | E159: =HLOOKUP(A159,'Courbe In'!$AA$2:$CD$7,4) ->  | F159: =HLOOKUP(A159,'Courbe In'!$AA$2:$CD$7,6) ->  | G159: =HLOOKUP(A159,'Courbe In'!$AA$2:$CD$8,7) ->  | H159: =HLOOKUP(A159,'Courbe In'!$AA$2:$CD$9,8) -> 
A160: 2021-06-24 | C160: =HLOOKUP(A160,'Courbe In'!$AA$2:$CD$3,2) ->  | D160: =HLOOKUP(A160,'Courbe In'!$AA$2:$CD$7,5) ->  | E160: =HLOOKUP(A160,'Courbe In'!$AA$2:$CD$7,4) ->  | F160: =HLOOKUP(A160,'Courbe In'!$AA$2:$CD$7,6) ->  | G160: =HLOOKUP(A160,'Courbe In'!$AA$2:$CD$8,7) ->  | H160: =HLOOKUP(A160,'Courbe In'!$AA$2:$CD$9,8) -> 
A161: 2021-06-25 | C161: =HLOOKUP(A161,'Courbe In'!$AA$2:$CD$3,2) ->  | D161: =HLOOKUP(A161,'Courbe In'!$AA$2:$CD$7,5) ->  | E161: =HLOOKUP(A161,'Courbe In'!$AA$2:$CD$7,4) ->  | F161: =HLOOKUP(A161,'Courbe In'!$AA$2:$CD$7,6) ->  | G161: =HLOOKUP(A161,'Courbe In'!$AA$2:$CD$8,7) ->  | H161: =HLOOKUP(A161,'Courbe In'!$AA$2:$CD$9,8) -> 
A162: 2021-06-26 | C162: =HLOOKUP(A162,'Courbe In'!$AA$2:$CD$3,2) ->  | D162: =HLOOKUP(A162,'Courbe In'!$AA$2:$CD$7,5) ->  | E162: =HLOOKUP(A162,'Courbe In'!$AA$2:$CD$7,4) ->  | F162: =HLOOKUP(A162,'Courbe In'!$AA$2:$CD$7,6) ->  | G162: =HLOOKUP(A162,'Courbe In'!$AA$2:$CD$8,7) ->  | H162: =HLOOKUP(A162,'Courbe In'!$AA$2:$CD$9,8) -> 
A163: 2021-06-27 | C163: =HLOOKUP(A163,'Courbe In'!$AA$2:$CD$3,2) ->  | D163: =HLOOKUP(A163,'Courbe In'!$AA$2:$CD$7,5) ->  | E163: =HLOOKUP(A163,'Courbe In'!$AA$2:$CD$7,4) ->  | F163: =HLOOKUP(A163,'Courbe In'!$AA$2:$CD$7,6) ->  | G163: =HLOOKUP(A163,'Courbe In'!$AA$2:$CD$8,7) ->  | H163: =HLOOKUP(A163,'Courbe In'!$AA$2:$CD$9,8) -> 
A164: 2021-06-28 | C164: =HLOOKUP(A164,'Courbe In'!$AA$2:$CD$3,2) ->  | D164: =HLOOKUP(A164,'Courbe In'!$AA$2:$CD$7,5) ->  | E164: =HLOOKUP(A164,'Courbe In'!$AA$2:$CD$7,4) ->  | F164: =HLOOKUP(A164,'Courbe In'!$AA$2:$CD$7,6) ->  | G164: =HLOOKUP(A164,'Courbe In'!$AA$2:$CD$8,7) ->  | H164: =HLOOKUP(A164,'Courbe In'!$AA$2:$CD$9,8) -> 
A165: 2021-06-29 | C165: =HLOOKUP(A165,'Courbe In'!$AA$2:$CD$3,2) ->  | D165: =HLOOKUP(A165,'Courbe In'!$AA$2:$CD$7,5) ->  | E165: =HLOOKUP(A165,'Courbe In'!$AA$2:$CD$7,4) ->  | F165: =HLOOKUP(A165,'Courbe In'!$AA$2:$CD$7,6) ->  | G165: =HLOOKUP(A165,'Courbe In'!$AA$2:$CD$8,7) ->  | H165: =HLOOKUP(A165,'Courbe In'!$AA$2:$CD$9,8) -> 
A166: 2021-06-30 | C166: =HLOOKUP(A166,'Courbe In'!$AA$2:$CD$3,2) ->  | D166: =HLOOKUP(A166,'Courbe In'!$AA$2:$CD$7,5) ->  | E166: =HLOOKUP(A166,'Courbe In'!$AA$2:$CD$7,4) ->  | F166: =HLOOKUP(A166,'Courbe In'!$AA$2:$CD$7,6) ->  | G166: =HLOOKUP(A166,'Courbe In'!$AA$2:$CD$8,7) ->  | H166: =HLOOKUP(A166,'Courbe In'!$AA$2:$CD$9,8) -> 
A167: 2021-07-01 | C167: =HLOOKUP(A167,'Courbe In'!$AA$2:$CD$3,2) ->  | D167: =HLOOKUP(A167,'Courbe In'!$AA$2:$CD$7,5) ->  | E167: =HLOOKUP(A167,'Courbe In'!$AA$2:$CD$7,4) ->  | F167: =HLOOKUP(A167,'Courbe In'!$AA$2:$CD$7,6) ->  | G167: =HLOOKUP(A167,'Courbe In'!$AA$2:$CD$8,7) ->  | H167: =HLOOKUP(A167,'Courbe In'!$AA$2:$CD$9,8) -> 
A168: 2021-07-02 | C168: =HLOOKUP(A168,'Courbe In'!$AA$2:$CD$3,2) ->  | D168: =HLOOKUP(A168,'Courbe In'!$AA$2:$CD$7,5) ->  | E168: =HLOOKUP(A168,'Courbe In'!$AA$2:$CD$7,4) ->  | F168: =HLOOKUP(A168,'Courbe In'!$AA$2:$CD$7,6) ->  | G168: =HLOOKUP(A168,'Courbe In'!$AA$2:$CD$8,7) ->  | H168: =HLOOKUP(A168,'Courbe In'!$AA$2:$CD$9,8) -> 
A169: 2021-07-03 | C169: =HLOOKUP(A169,'Courbe In'!$AA$2:$CD$3,2) ->  | D169: =HLOOKUP(A169,'Courbe In'!$AA$2:$CD$7,5) ->  | E169: =HLOOKUP(A169,'Courbe In'!$AA$2:$CD$7,4) ->  | F169: =HLOOKUP(A169,'Courbe In'!$AA$2:$CD$7,6) ->  | G169: =HLOOKUP(A169,'Courbe In'!$AA$2:$CD$8,7) ->  | H169: =HLOOKUP(A169,'Courbe In'!$AA$2:$CD$9,8) -> 
A170: 2021-07-04 | C170: =HLOOKUP(A170,'Courbe In'!$AA$2:$CD$3,2) ->  | D170: =HLOOKUP(A170,'Courbe In'!$AA$2:$CD$7,5) ->  | E170: =HLOOKUP(A170,'Courbe In'!$AA$2:$CD$7,4) ->  | F170: =HLOOKUP(A170,'Courbe In'!$AA$2:$CD$7,6) ->  | G170: =HLOOKUP(A170,'Courbe In'!$AA$2:$CD$8,7) ->  | H170: =HLOOKUP(A170,'Courbe In'!$AA$2:$CD$9,8) -> 
A171: 2021-07-05 | C171: =HLOOKUP(A171,'Courbe In'!$AA$2:$CD$3,2) ->  | D171: =HLOOKUP(A171,'Courbe In'!$AA$2:$CD$7,5) ->  | E171: =HLOOKUP(A171,'Courbe In'!$AA$2:$CD$7,4) ->  | F171: =HLOOKUP(A171,'Courbe In'!$AA$2:$CD$7,6) ->  | G171: =HLOOKUP(A171,'Courbe In'!$AA$2:$CD$8,7) ->  | H171: =HLOOKUP(A171,'Courbe In'!$AA$2:$CD$9,8) -> 
A172: 2021-07-06 | C172: =HLOOKUP(A172,'Courbe In'!$AA$2:$CD$3,2) ->  | D172: =HLOOKUP(A172,'Courbe In'!$AA$2:$CD$7,5) ->  | E172: =HLOOKUP(A172,'Courbe In'!$AA$2:$CD$7,4) ->  | F172: =HLOOKUP(A172,'Courbe In'!$AA$2:$CD$7,6) ->  | G172: =HLOOKUP(A172,'Courbe In'!$AA$2:$CD$8,7) ->  | H172: =HLOOKUP(A172,'Courbe In'!$AA$2:$CD$9,8) -> 
A173: 2021-07-07 | C173: =HLOOKUP(A173,'Courbe In'!$AA$2:$CD$3,2) ->  | D173: =HLOOKUP(A173,'Courbe In'!$AA$2:$CD$7,5) ->  | E173: =HLOOKUP(A173,'Courbe In'!$AA$2:$CD$7,4) ->  | F173: =HLOOKUP(A173,'Courbe In'!$AA$2:$CD$7,6) ->  | G173: =HLOOKUP(A173,'Courbe In'!$AA$2:$CD$8,7) ->  | H173: =HLOOKUP(A173,'Courbe In'!$AA$2:$CD$9,8) -> 
A174: 2021-07-08 | C174: =HLOOKUP(A174,'Courbe In'!$AA$2:$CD$3,2) ->  | D174: =HLOOKUP(A174,'Courbe In'!$AA$2:$CD$7,5) ->  | E174: =HLOOKUP(A174,'Courbe In'!$AA$2:$CD$7,4) ->  | F174: =HLOOKUP(A174,'Courbe In'!$AA$2:$CD$7,6) ->  | G174: =HLOOKUP(A174,'Courbe In'!$AA$2:$CD$8,7) ->  | H174: =HLOOKUP(A174,'Courbe In'!$AA$2:$CD$9,8) -> 
A175: 2021-07-09 | C175: =HLOOKUP(A175,'Courbe In'!$AA$2:$CD$3,2) ->  | D175: =HLOOKUP(A175,'Courbe In'!$AA$2:$CD$7,5) ->  | E175: =HLOOKUP(A175,'Courbe In'!$AA$2:$CD$7,4) ->  | F175: =HLOOKUP(A175,'Courbe In'!$AA$2:$CD$7,6) ->  | G175: =HLOOKUP(A175,'Courbe In'!$AA$2:$CD$8,7) ->  | H175: =HLOOKUP(A175,'Courbe In'!$AA$2:$CD$9,8) -> 
A176: 2021-07-10 | C176: =HLOOKUP(A176,'Courbe In'!$AA$2:$CD$3,2) ->  | D176: =HLOOKUP(A176,'Courbe In'!$AA$2:$CD$7,5) ->  | E176: =HLOOKUP(A176,'Courbe In'!$AA$2:$CD$7,4) ->  | F176: =HLOOKUP(A176,'Courbe In'!$AA$2:$CD$7,6) ->  | G176: =HLOOKUP(A176,'Courbe In'!$AA$2:$CD$8,7) ->  | H176: =HLOOKUP(A176,'Courbe In'!$AA$2:$CD$9,8) -> 
A177: 2021-07-11 | C177: =HLOOKUP(A177,'Courbe In'!$AA$2:$CD$3,2) ->  | D177: =HLOOKUP(A177,'Courbe In'!$AA$2:$CD$7,5) ->  | E177: =HLOOKUP(A177,'Courbe In'!$AA$2:$CD$7,4) ->  | F177: =HLOOKUP(A177,'Courbe In'!$AA$2:$CD$7,6) ->  | G177: =HLOOKUP(A177,'Courbe In'!$AA$2:$CD$8,7) ->  | H177: =HLOOKUP(A177,'Courbe In'!$AA$2:$CD$9,8) -> 
A178: 2021-07-12 | C178: =HLOOKUP(A178,'Courbe In'!$AA$2:$CD$3,2) ->  | D178: =HLOOKUP(A178,'Courbe In'!$AA$2:$CD$7,5) ->  | E178: =HLOOKUP(A178,'Courbe In'!$AA$2:$CD$7,4) ->  | F178: =HLOOKUP(A178,'Courbe In'!$AA$2:$CD$7,6) ->  | G178: =HLOOKUP(A178,'Courbe In'!$AA$2:$CD$8,7) ->  | H178: =HLOOKUP(A178,'Courbe In'!$AA$2:$CD$9,8) -> 
A179: 2021-07-13 | C179: =HLOOKUP(A179,'Courbe In'!$AA$2:$CD$3,2) ->  | D179: =HLOOKUP(A179,'Courbe In'!$AA$2:$CD$7,5) ->  | E179: =HLOOKUP(A179,'Courbe In'!$AA$2:$CD$7,4) ->  | F179: =HLOOKUP(A179,'Courbe In'!$AA$2:$CD$7,6) ->  | G179: =HLOOKUP(A179,'Courbe In'!$AA$2:$CD$8,7) ->  | H179: =HLOOKUP(A179,'Courbe In'!$AA$2:$CD$9,8) -> 
A180: 2021-07-14 | C180: =HLOOKUP(A180,'Courbe In'!$AA$2:$CD$3,2) ->  | D180: =HLOOKUP(A180,'Courbe In'!$AA$2:$CD$7,5) ->  | E180: =HLOOKUP(A180,'Courbe In'!$AA$2:$CD$7,4) ->  | F180: =HLOOKUP(A180,'Courbe In'!$AA$2:$CD$7,6) ->  | G180: =HLOOKUP(A180,'Courbe In'!$AA$2:$CD$8,7) ->  | H180: =HLOOKUP(A180,'Courbe In'!$AA$2:$CD$9,8) -> 
A181: 2021-07-15 | C181: =HLOOKUP(A181,'Courbe In'!$AA$2:$CD$3,2) ->  | D181: =HLOOKUP(A181,'Courbe In'!$AA$2:$CD$7,5) ->  | E181: =HLOOKUP(A181,'Courbe In'!$AA$2:$CD$7,4) ->  | F181: =HLOOKUP(A181,'Courbe In'!$AA$2:$CD$7,6) ->  | G181: =HLOOKUP(A181,'Courbe In'!$AA$2:$CD$8,7) ->  | H181: =HLOOKUP(A181,'Courbe In'!$AA$2:$CD$9,8) -> 
A182: 2021-07-16 | C182: =HLOOKUP(A182,'Courbe In'!$AA$2:$CD$3,2) ->  | D182: =HLOOKUP(A182,'Courbe In'!$AA$2:$CD$7,5) ->  | E182: =HLOOKUP(A182,'Courbe In'!$AA$2:$CD$7,4) ->  | F182: =HLOOKUP(A182,'Courbe In'!$AA$2:$CD$7,6) ->  | G182: =HLOOKUP(A182,'Courbe In'!$AA$2:$CD$8,7) ->  | H182: =HLOOKUP(A182,'Courbe In'!$AA$2:$CD$9,8) -> 
A183: 2021-07-17 | C183: =HLOOKUP(A183,'Courbe In'!$AA$2:$CD$3,2) ->  | D183: =HLOOKUP(A183,'Courbe In'!$AA$2:$CD$7,5) ->  | E183: =HLOOKUP(A183,'Courbe In'!$AA$2:$CD$7,4) ->  | F183: =HLOOKUP(A183,'Courbe In'!$AA$2:$CD$7,6) ->  | G183: =HLOOKUP(A183,'Courbe In'!$AA$2:$CD$8,7) ->  | H183: =HLOOKUP(A183,'Courbe In'!$AA$2:$CD$9,8) -> 
A184: 2021-07-18 | C184: =HLOOKUP(A184,'Courbe In'!$AA$2:$CD$3,2) ->  | D184: =HLOOKUP(A184,'Courbe In'!$AA$2:$CD$7,5) ->  | E184: =HLOOKUP(A184,'Courbe In'!$AA$2:$CD$7,4) ->  | F184: =HLOOKUP(A184,'Courbe In'!$AA$2:$CD$7,6) ->  | G184: =HLOOKUP(A184,'Courbe In'!$AA$2:$CD$8,7) ->  | H184: =HLOOKUP(A184,'Courbe In'!$AA$2:$CD$9,8) -> 
A185: 2021-07-19 | C185: =HLOOKUP(A185,'Courbe In'!$AA$2:$CD$3,2) ->  | D185: =HLOOKUP(A185,'Courbe In'!$AA$2:$CD$7,5) ->  | E185: =HLOOKUP(A185,'Courbe In'!$AA$2:$CD$7,4) ->  | F185: =HLOOKUP(A185,'Courbe In'!$AA$2:$CD$7,6) ->  | G185: =HLOOKUP(A185,'Courbe In'!$AA$2:$CD$8,7) ->  | H185: =HLOOKUP(A185,'Courbe In'!$AA$2:$CD$9,8) -> 
A186: 2021-07-20 | C186: =HLOOKUP(A186,'Courbe In'!$AA$2:$CD$3,2) ->  | D186: =HLOOKUP(A186,'Courbe In'!$AA$2:$CD$7,5) ->  | E186: =HLOOKUP(A186,'Courbe In'!$AA$2:$CD$7,4) ->  | F186: =HLOOKUP(A186,'Courbe In'!$AA$2:$CD$7,6) ->  | G186: =HLOOKUP(A186,'Courbe In'!$AA$2:$CD$8,7) ->  | H186: =HLOOKUP(A186,'Courbe In'!$AA$2:$CD$9,8) -> 
A187: 2021-07-21 | C187: =HLOOKUP(A187,'Courbe In'!$AA$2:$CD$3,2) ->  | D187: =HLOOKUP(A187,'Courbe In'!$AA$2:$CD$7,5) ->  | E187: =HLOOKUP(A187,'Courbe In'!$AA$2:$CD$7,4) ->  | F187: =HLOOKUP(A187,'Courbe In'!$AA$2:$CD$7,6) ->  | G187: =HLOOKUP(A187,'Courbe In'!$AA$2:$CD$8,7) ->  | H187: =HLOOKUP(A187,'Courbe In'!$AA$2:$CD$9,8) -> 
A188: 2021-07-22 | C188: =HLOOKUP(A188,'Courbe In'!$AA$2:$CD$3,2) ->  | D188: =HLOOKUP(A188,'Courbe In'!$AA$2:$CD$7,5) ->  | E188: =HLOOKUP(A188,'Courbe In'!$AA$2:$CD$7,4) ->  | F188: =HLOOKUP(A188,'Courbe In'!$AA$2:$CD$7,6) ->  | G188: =HLOOKUP(A188,'Courbe In'!$AA$2:$CD$8,7) ->  | H188: =HLOOKUP(A188,'Courbe In'!$AA$2:$CD$9,8) -> 
A189: 2021-07-23 | C189: =HLOOKUP(A189,'Courbe In'!$AA$2:$CD$3,2) ->  | D189: =HLOOKUP(A189,'Courbe In'!$AA$2:$CD$7,5) ->  | E189: =HLOOKUP(A189,'Courbe In'!$AA$2:$CD$7,4) ->  | F189: =HLOOKUP(A189,'Courbe In'!$AA$2:$CD$7,6) ->  | G189: =HLOOKUP(A189,'Courbe In'!$AA$2:$CD$8,7) ->  | H189: =HLOOKUP(A189,'Courbe In'!$AA$2:$CD$9,8) -> 
A190: 2021-07-24 | C190: =HLOOKUP(A190,'Courbe In'!$AA$2:$CD$3,2) ->  | D190: =HLOOKUP(A190,'Courbe In'!$AA$2:$CD$7,5) ->  | E190: =HLOOKUP(A190,'Courbe In'!$AA$2:$CD$7,4) ->  | F190: =HLOOKUP(A190,'Courbe In'!$AA$2:$CD$7,6) ->  | G190: =HLOOKUP(A190,'Courbe In'!$AA$2:$CD$8,7) ->  | H190: =HLOOKUP(A190,'Courbe In'!$AA$2:$CD$9,8) -> 
A191: 2021-07-25 | C191: =HLOOKUP(A191,'Courbe In'!$AA$2:$CD$3,2) ->  | D191: =HLOOKUP(A191,'Courbe In'!$AA$2:$CD$7,5) ->  | E191: =HLOOKUP(A191,'Courbe In'!$AA$2:$CD$7,4) ->  | F191: =HLOOKUP(A191,'Courbe In'!$AA$2:$CD$7,6) ->  | G191: =HLOOKUP(A191,'Courbe In'!$AA$2:$CD$8,7) ->  | H191: =HLOOKUP(A191,'Courbe In'!$AA$2:$CD$9,8) -> 
A192: 2021-07-26 | C192: =HLOOKUP(A192,'Courbe In'!$AA$2:$CD$3,2) ->  | D192: =HLOOKUP(A192,'Courbe In'!$AA$2:$CD$7,5) ->  | E192: =HLOOKUP(A192,'Courbe In'!$AA$2:$CD$7,4) ->  | F192: =HLOOKUP(A192,'Courbe In'!$AA$2:$CD$7,6) ->  | G192: =HLOOKUP(A192,'Courbe In'!$AA$2:$CD$8,7) ->  | H192: =HLOOKUP(A192,'Courbe In'!$AA$2:$CD$9,8) -> 
A193: 2021-07-27 | C193: =HLOOKUP(A193,'Courbe In'!$AA$2:$CD$3,2) ->  | D193: =HLOOKUP(A193,'Courbe In'!$AA$2:$CD$7,5) ->  | E193: =HLOOKUP(A193,'Courbe In'!$AA$2:$CD$7,4) ->  | F193: =HLOOKUP(A193,'Courbe In'!$AA$2:$CD$7,6) ->  | G193: =HLOOKUP(A193,'Courbe In'!$AA$2:$CD$8,7) ->  | H193: =HLOOKUP(A193,'Courbe In'!$AA$2:$CD$9,8) -> 
A194: 2021-07-28 | C194: =HLOOKUP(A194,'Courbe In'!$AA$2:$CD$3,2) ->  | D194: =HLOOKUP(A194,'Courbe In'!$AA$2:$CD$7,5) ->  | E194: =HLOOKUP(A194,'Courbe In'!$AA$2:$CD$7,4) ->  | F194: =HLOOKUP(A194,'Courbe In'!$AA$2:$CD$7,6) ->  | G194: =HLOOKUP(A194,'Courbe In'!$AA$2:$CD$8,7) ->  | H194: =HLOOKUP(A194,'Courbe In'!$AA$2:$CD$9,8) -> 
A195: 2021-07-29 | C195: =HLOOKUP(A195,'Courbe In'!$AA$2:$CD$3,2) ->  | D195: =HLOOKUP(A195,'Courbe In'!$AA$2:$CD$7,5) ->  | E195: =HLOOKUP(A195,'Courbe In'!$AA$2:$CD$7,4) ->  | F195: =HLOOKUP(A195,'Courbe In'!$AA$2:$CD$7,6) ->  | G195: =HLOOKUP(A195,'Courbe In'!$AA$2:$CD$8,7) ->  | H195: =HLOOKUP(A195,'Courbe In'!$AA$2:$CD$9,8) -> 
A196: =A195+1 -> 2021-07-30 | C196: =HLOOKUP(A196,'Courbe In'!$AA$2:$CD$3,2) ->  | D196: =HLOOKUP(A196,'Courbe In'!$AA$2:$CD$7,5) ->  | E196: =HLOOKUP(A196,'Courbe In'!$AA$2:$CD$7,4) ->  | F196: =HLOOKUP(A196,'Courbe In'!$AA$2:$CD$7,6) ->  | G196: =HLOOKUP(A196,'Courbe In'!$AA$2:$CD$8,7) ->  | H196: =HLOOKUP(A196,'Courbe In'!$AA$2:$CD$9,8) -> 
A197: 2021-07-31 | C197: =HLOOKUP(A197,'Courbe In'!$AA$2:$CD$3,2) ->  | D197: =HLOOKUP(A197,'Courbe In'!$AA$2:$CD$7,5) ->  | E197: =HLOOKUP(A197,'Courbe In'!$AA$2:$CD$7,4) ->  | F197: =HLOOKUP(A197,'Courbe In'!$AA$2:$CD$7,6) ->  | G197: =HLOOKUP(A197,'Courbe In'!$AA$2:$CD$8,7) ->  | H197: =HLOOKUP(A197,'Courbe In'!$AA$2:$CD$9,8) -> 
A198: 2021-08-01 | C198: =HLOOKUP(A198,'Courbe In'!$AA$2:$CD$3,2) ->  | D198: =HLOOKUP(A198,'Courbe In'!$AA$2:$CD$7,5) ->  | E198: =HLOOKUP(A198,'Courbe In'!$AA$2:$CD$7,4) ->  | F198: =HLOOKUP(A198,'Courbe In'!$AA$2:$CD$7,6) ->  | G198: =HLOOKUP(A198,'Courbe In'!$AA$2:$CD$8,7) ->  | H198: =HLOOKUP(A198,'Courbe In'!$AA$2:$CD$9,8) -> 
A199: 2021-08-02 | C199: =HLOOKUP(A199,'Courbe In'!$AA$2:$CD$3,2) ->  | D199: =HLOOKUP(A199,'Courbe In'!$AA$2:$CD$7,5) ->  | E199: =HLOOKUP(A199,'Courbe In'!$AA$2:$CD$7,4) ->  | F199: =HLOOKUP(A199,'Courbe In'!$AA$2:$CD$7,6) ->  | G199: =HLOOKUP(A199,'Courbe In'!$AA$2:$CD$8,7) ->  | H199: =HLOOKUP(A199,'Courbe In'!$AA$2:$CD$9,8) -> 
A200: 2021-08-03 | C200: =HLOOKUP(A200,'Courbe In'!$AA$2:$CD$3,2) ->  | D200: =HLOOKUP(A200,'Courbe In'!$AA$2:$CD$7,5) ->  | E200: =HLOOKUP(A200,'Courbe In'!$AA$2:$CD$7,4) ->  | F200: =HLOOKUP(A200,'Courbe In'!$AA$2:$CD$7,6) ->  | G200: =HLOOKUP(A200,'Courbe In'!$AA$2:$CD$8,7) ->  | H200: =HLOOKUP(A200,'Courbe In'!$AA$2:$CD$9,8) -> 
... 167 more rows

Sheet Saisie Pds
B3: Date | C3: Modifier la date | O3: =VLOOKUP($L$5-2,Feuil1!$A$2:'Feuil1'!$B$366,2) -> 
B4: =NOW() -> 2021-01-17T16:05:21.520 | C4: 1 | F4: 1 | G4: =B4 -> 2021-01-17T16:05:21.520 | H4: =VLOOKUP(C4,F4:G64,2) -> 2021-01-17T16:05:21.520 | O4: =VLOOKUP($L$5-1,Feuil1!$A$2:'Feuil1'!$B$366,2) -> 
F5: 2 | G5: =G4-1 -> 2021-01-16T16:05:21.520 | H5: =SUM(H4-Accueil!B3+1) -> 1.670387963 | K5: =B4 -> 44213.67039 | L5: =K5-28 -> 44185.67039 | M5: =MAX(O3:O7) ->  | O5: =VLOOKUP($L$5,Feuil1!$A$2:'Feuil1'!$B$366,2) -> 
B6: Entrer le poids de ce jour | F6: 3 | G6: =G5-1 -> 2021-01-15T16:05:21.520 | K6: =IF(M5=0,"NC",M5) ->  | L6: =IF(K6="NC","NC",B7-K6) ->  | O6: =VLOOKUP($L$5+1,Feuil1!$A$2:'Feuil1'!$B$366,2) -> 
A7: =IF(T(B7)="",1,0) -> 1 | C7: kg | F7: 4 | G7: 2021-01-14T16:05:21.520 | O7: =VLOOKUP($L$5+2,Feuil1!$A$2:'Feuil1'!$B$366,2) -> 
B8: =SEARCH(".",B7) ->  | F8: 5 | G8: 2021-01-13T16:05:21.520
B9: =LEFT(B7,B8-1) ->  | F9: 6 | G9: 2021-01-12T16:05:21.520
B10: =VALUE(B9) ->  | F10: 7 | G10: 2021-01-11T16:05:21.520
B11: =LEN(B7) -> 0 | F11: 8 | G11: 2021-01-10T16:05:21.520
B12: =RIGHT(B7,B11-B8) ->  | F12: 9 | G12: 2021-01-09T16:05:21.520
B13: =VALUE(B12)/(10*(B11-B8)) ->  | F13: 10 | G13: 2021-01-08T16:05:21.520
B14: =B9+B13 ->  | F14: 11 | G14: 2021-01-07T16:05:21.520
F15: 12 | G15: 2021-01-06T16:05:21.520
B16: Variation du poids sur 4 semaines : | F16: 13 | G16: 2021-01-05T16:05:21.520
D17: =IFERROR(IF(L6="NC","non valide",L6),"pas encore disponible") -> pas encore disponible | E17: =IF(ISNUMBER(D17),"KG","") ->  | F17: 14 | G17: 2021-01-04T16:05:21.520
F18: 15 | G18: 2021-01-03T16:05:21.520
F19: 16 | G19: 2021-01-02T16:05:21.520
F20: 17 | G20: 2021-01-01T16:05:21.520
F21: 18 | G21: 2020-12-31T16:05:21.520
F22: 19 | G22: 2020-12-30T16:05:21.520
F23: 20 | G23: 2020-12-29T16:05:21.520
F24: 21 | G24: 2020-12-28T16:05:21.520
F25: 22 | G25: 2020-12-27T16:05:21.520
F26: 23 | G26: 2020-12-26T16:05:21.520
F27: 24 | G27: 2020-12-25T16:05:21.520
F28: 25 | G28: 2020-12-24T16:05:21.520
F29: 26 | G29: 2020-12-23T16:05:21.520
F30: 27 | G30: 2020-12-22T16:05:21.520
F31: 28 | G31: 2020-12-21T16:05:21.520
F32: 29 | G32: 2020-12-20T16:05:21.520
F33: 30 | G33: 2020-12-19T16:05:21.520
F34: 31 | G34: 2020-12-18T16:05:21.520
F35: 32 | G35: 2020-12-17T16:05:21.520
F36: 33 | G36: 2020-12-16T16:05:21.520
F37: 34 | G37: 2020-12-15T16:05:21.520
F38: 35 | G38: 2020-12-14T16:05:21.520
F39: 36 | G39: 2020-12-13T16:05:21.520
F40: 37 | G40: 2020-12-12T16:05:21.520
F41: 38 | G41: 2020-12-11T16:05:21.520
F42: 39 | G42: 2020-12-10T16:05:21.520
F43: 40 | G43: 2020-12-09T16:05:21.520
F44: 41 | G44: 2020-12-08T16:05:21.520
F45: 42 | G45: 2020-12-07T16:05:21.520
F46: 43 | G46: 2020-12-06T16:05:21.520
F47: 44 | G47: 2020-12-05T16:05:21.520
F48: 45 | G48: 2020-12-04T16:05:21.520
F49: 46 | G49: 2020-12-03T16:05:21.520
F50: 47 | G50: 2020-12-02T16:05:21.520
F51: 48 | G51: 2020-12-01T16:05:21.520
F52: 49 | G52: 2020-11-30T16:05:21.520
F53: 50 | G53: 2020-11-29T16:05:21.520
F54: 51 | G54: 2020-11-28T16:05:21.520
F55: 52 | G55: 2020-11-27T16:05:21.520
F56: 53 | G56: 2020-11-26T16:05:21.520
F57: 54 | G57: 2020-11-25T16:05:21.520
F58: 55 | G58: 2020-11-24T16:05:21.520
F59: 56 | G59: 2020-11-23T16:05:21.520
F60: 57 | G60: 2020-11-22T16:05:21.520
F61: 58 | G61: 2020-11-21T16:05:21.520
F62: 59 | G62: 2020-11-20T16:05:21.520
F63: 60 | G63: 2020-11-19T16:05:21.520
F64: 61 | G64: 2020-11-18T16:05:21.520

Sheet IDC
B1: Image du corps
A2: Cocher pour chaque ligne la case correspondant le mieux à votre appréciation personnelle de votre image corporelle et notez de 1 à 6 l'importance que vous y attachez.
C3: J'aime beaucoup | D3: J'aime bien | E3: J'aime un peu | F3: Je n'aime pas vraiment | G3: Je n'aime pas | H3: Je déteste | I3: Importance
A4: 1 | B4: Ma silhouette générale | J4: =IF(M4>I$26,1,0) -> 0 | L4: =IF(J4*K4>4,"!","") ->  | M4: =IF(ISBLANK(N4),"",N4-1) ->  | O4: =IF(ISBLANK(K4),0,IF(ISBLANK(N4),0,1)) -> 0
A5: 2 | B5: Mes cheveux | J5: =IF(M5>I$26,1,0) -> 0 | L5: =IF(J5*K5>4,"!","") ->  | M5: =IF(ISBLANK(N5),"",N5-1) ->  | O5: =IF(ISBLANK(K5),0,IF(ISBLANK(N5),0,1)) -> 0
A6: 3 | B6: Mon visage | J6: 0 | O6: 0
A7: 4 | B7: Mes yeux | J7: 0 | O7: 0
A8: 5 | B8: Mon nez | J8: 0 | O8: 0
A9: 6 | B9: Ma bouche | J9: 0 | O9: 0
A10: 7 | B10: Mon cou | J10: 0 | O10: 0
A11: 8 | B11: Mes épaules | J11: 0 | O11: 0
A12: 9 | B12: Mes bras | J12: 0 | O12: 0
A13: 10 | B13: Mes avant-bras | J13: 0 | O13: 0
A14: 11 | B14: Mes mains | J14: 0 | O14: 0
A15: 12 | B15: Mon dos | J15: 0 | O15: 0
A16: 13 | B16: Ma poitrine | J16: 0 | O16: 0
A17: 14 | B17: Mes hanches | J17: 0 | O17: 0
A18: 15 | B18: Mon ventre | J18: 0 | O18: 0
A19: 16 | B19: Mes fesses | J19: 0 | O19: 0
A20: 17 | B20: Mes cuisses | J20: 0 | O20: 0
A21: 18 | B21: Mes genoux | J21: 0 | O21: 0
A22: 19 | B22: Mes mollets | J22: 0 | O22: 0
A23: 20 | B23: Mes pieds | J23: 0 | O23: 0
A24: 21 | B24: L'aspect de ma peau | J24: 0 | O24: 0
A25: 22 | B25: Ma musculature | J25: 0 | O25: 0
H26: MOYENNE | I26: =IF(N25="","",AVERAGEA(M4:M25)) ->  | O26: =SUM(O4:O25) -> 0
B35: Silhouette | C35: Cheveux | D35: Visage | E35: Yeux | F35: Nez | G35: Bouche | H35: Cou | I35: Epaules | J35: Bras | K35: Avant-bras | L35: Mains | M35: Dos | N35: Poitrine | O35: Hanches | P35: Ventre | Q35: Fesses | R35: Cuisses | S35: Genoux | T35: Mollets | U35: Pieds | V35: Peau | W35: Musculature
A36: Importance | B36: =M4 ->  | C36: =M5 ->  | D36: =M6 ->  | E36: =M7 ->  | F36: =M8 ->  | G36: =M9 ->  | H36: =M10 ->  | I36: =M11 ->  | J36: =M12 ->  | K36: =M13 ->  | L36: =M14 ->  | M36: =M15 ->  | N36: =M16 ->  | O36: =M17 ->  | P36: =M18 ->  | Q36: =M19 ->  | R36: =M20 ->  | S36: =M21 ->  | T36: =M22 ->  | U36: =M23 ->  | V36: =M24 ->  | W36: =M25 -> 
A37: Valence | B37: =K4 -> 0 | C37: =K5 -> 0 | D37: =K6 -> 0 | E37: =K7 -> 0 | F37: =K8 -> 0 | G37: =K9 -> 0 | H37: =K10 -> 0 | I37: =K11 -> 0 | J37: =K12 -> 0 | K37: =K13 -> 0 | L37: =K14 -> 0 | M37: =K15 -> 0 | N37: =K16 -> 0 | O37: =K17 -> 0 | P37: =K18 -> 0 | Q37: =K19 -> 0 | R37: =K20 -> 0 | S37: =K21 -> 0 | T37: =K22 -> 0 | U37: =K23 -> 0 | V37: =K24 -> 0 | W37: =K25 -> 0

Sheet Graph IDC
